{"text_format":"1","workbook":"xlsx","n_sheets":15,"sheets":["devis","préattach","attachement n°1","attachement n°2","attachement n°3","attachement n°4","avn1","avn2","avn3","avn4","situation1","situation2","situation3","situation4","inf"],"not_rendered":{"charts":0,"images":0,"macros":1,"external_links":0,"defined_names":5,"comments":0,"pivot_tables":0},"unopened":[],"bounds":{"document_bytes":16777216,"sheet_cells":100000,"rows_first":2000,"rows_last":500,"rows_between":2000,"halvings":0,"cell_chars":16384,"cell_head_chars":4096},"cells_cut":0,"cells_raw":0,"read":"whole","date_system":"1900"}

{"sheet":"devis","index":0,"n_rows":149,"n_cols":18,"rows_kept":149,"cut":false,"hidden":true,"merged":[]}
[" ","DESIGNATION DES OUVRAGES","U","Qté Total","P.U H.T.V.A","Attachement 6 fin Juin",null,null,null,null,null,null,null,null,"at1","at2","at3","at4"]
[null,"A. TERRASSEMENT"]
[1,"Fouille en pleine masse Fouille en pleine masse  Fouille en pleine masse ","M3",100,6.6]
["A.2","Fouilles  en puits de 0 à 2,50 m","M3",200,5.5]
[5,"Travaux de terrassement et nettoyage","M2",300,6.6]
["A.4","T.V drainant 0/30","M3",400,27.5]
[6,"Remblais provenant de déblais","M3",500,3]
[null,"TOTAL "]
[null,"beton 1114"]
[157,"Béton de propreté","M3",600,143]
[1,"Gros béton en fondation HRS (250kg/m3)","M3",700,155]
["B.1.3","Béton Banché(200kg/m3)","M3",800,145]
["B.1.4","Béton armé en fondation ","M3",900,473]
["B.1.5","Voiles périphérique du sous sol (HRS)","M3",1000,495]
["B.1.6","Chape armée  de 20cm sur Béton de propreté","M²",1100,90]
["B.1.7","Chape armé de  10cm ","M²",1200,30]
[null,"TOTAL"]
[null,"B. 2 BÉTONS ARMES ET BETONS DIVERS"]
["B.2.0","Voiles des cages d`assenceurs, escaliers, poteaux et les rampes d`acces du sous sol dose a 400kg/m3 (HRS)","M3",235,550]
["B.2.1","Béton armé en élévation en ciment CPI-42,5 ","M3",500,330.55]
["B.2.1.1","Béton armé en élévation pour poutre plancher haut sous sol","M3",770,550]
["B.2.1.2","Béton armé en élévation en ciment CPI-42,5 pour le reste du projet","M3",1374,550]
["B.2.2","Plancher en dalle pleine",null,0]
["B.2.2.1","Dalle pleine épaisseur 20cm","M²",0,100]
["B.2.2.2","Dalle pleine épaisseur 25cm","M²",1127,140]
["B.2.2.3","Dalle pleine épaisseur 30cm","M²",0,165]
["B.2.2.4","Dalle pleine plancher haut sous sol dosé à 400kg/M3 de ciment CPI 42,5 épaisseur 20cm","M²",2305,250]
["B.2.2.5","Dalle pleine plancher haut sous sol dosé à 400kg/M3 de ciment CPI 42,5 épaisseur 30cm","M²",68,350]
["B.2.3","Planchers en corps creux céramique",null,0,60]
[null,"a) 16+5","M²",0,65]
[null,"b) 19+6","M²",7878,68]
[null,"c) 16+7,5+6,5","M²",0,500]
["B.2.4","Béton armé en élévation  CPI-42,5 brut de décofrage","M3",260,800,100]
[null,null,"TOTAL BÉTONS  ARMES ET BETONS DIVERS"]
[null,"C. MAÇONNERIE",null,null,40]
["C.1","Double cloison de 0,45","M²",60,35]
["C.2","Double cloison de 0,40","M²",70,30]
["C.3","Double cloison de 0,35","M²",80,25,400]
["C.4","Double cloison de 0,30","M²",90,22]
["C.5","Cloison de 0,25","M²",80,20,350]
["C.6","Cloison de 0,20","M²",50,17,400]
["C.7","Cloison de 0,15","M²",60,20]
["C.8","Cloison de 0,10","M²",40,12,800]
["C.9","Double cloison de 0,20","M²",120,11]
["C.10","Chemisage des éléments  en béton","M²",133,15]
["C.11","Fourniture et pose de panneaux de laine de roche pour isolation thermique des terrasses","M²",150,16]
[null,null,"TOTAL MACONNERIE",null,19]
[null,"D. ENDUITS",null,null,8.5]
["D.1","Enduit  extérieur","M²",100,9,400]
["D.2","Enduit intérieur","M²",200,9.5,600]
["D.3","Enduit sous plafond","M²",100,5.5]
["D.4","Enduit au mortier de ciment","M²",50,33,2500]
["D.5","Enduit sous plafond en gobetis ","M²",1520,33]
["D.6","Précadres Placard","UN",450,50,54]
["D.7","Gaine","UN",120,300,33]
["D.8","Cuvelage étanche type SIKA sur élément vertical (sans repicage)","M²",15,45,1200]
["D.9","Cuvelage étanche type SIKA sur élément horizontal (sans repicage)","M²",15,45,350]
[null,null,"TOTAL ENDUITS"]
[null,"E. REVETEMENT DIVERS "]
["E.1","Béton de garnissage","M3",300,9]
["E.2","Revêtement de sol ","M3",400,40]
["E.2.1","Fourniture et Pose decarrelage granito marbre blanc 25*25","M²",15,22]
["E.2.2","Fourniture et Pose de dallage en marbre thala de 30*30 ","M²",14,20]
["E.2.3","Fourniture et Pose de dallage en marbre blanc de 30*30 ","M²",14,4]
["E.2.4","Fourniture et Pose de carreaux en grès dans la masse de 30/30,","M²",15,13]
["E.2.5","Fourniture et Pose de carreaux en grès dans la masse de 20/20  anti- dérapant","M²",15,14]
["E.3","Revêtement mural ",null,15,4]
["E.3.1","Fourniture et Pose de faïence ","M²",15,3.5]
["E.3.2","Fourniture et Pose de frise décoré de 10 cm ","ML",164,3]
["E.3.3","Fourniture et Pose de plinthe en marbre blanc de 8 cm ","ML",122,3]
["E.3.4","Fourniture et Pose de plinthe en marbre thala  de 8cm ","ML",12]
["E.3.5","Plinthe céramique","ML",12,35]
["E.4","Marches, contre marches et plinthe d'escalier",null,null,35]
["E.4.1","Fourniture et Pose de marche en marbre thala de 3cm d'epaisseur","M²",4,4]
["E.4.2.","Fourniture et Pose de contre marche en marbre thala de 2cm d'epaisseur","M²",15]
["E.4.3","Fourniture et Pose de plinthe crémaillere en marbre thala de 1,2 cm d'épaisseur ","ML",15,35]
["E.5"," Seuils et Siffles",null,15,35]
["E.5.1","Fourniture et Pose de seuil pour porte d'entrée d'immeble et appartement en marbre  blanc de 3cm d'épaisseur","M²",15,5]
["E.5.2","Fourniture et Pose de seuil  battant pour porte fenêtre  en marbre blanc ou thala de 3cm d'épaisseur","M²",122,5]
["E.5.3","Fourniture et Pose de siffle pour porte intérieure en marbre thala de 2cm d'epaisseur","ML",122,35]
["E.5.4","Fourniture et Pose de siffle pour porte intérieure  en marbre blanc de 2cm d'epaisseur","ML",11,35]
["E.6","Fourniture et Pose d' appuis de fenêtre en marbre thala de 2 cm","M²",11,35]
["E.7","Fourniture et Pose  de  dallette  lavabo et potager de cuisine en marbre  blanc.","M²",11,25]
["E.8","Fourniture et Pose  d'encadrement ascenseur en marbre blanc ","ML",12]
["E.9","Fourniture et Pose grès dans la masse type extérieur de 30/30  ","M²",15]
[null,null,"TOTAL REVETEMENT DIVERS",null,25]
[null,"F. ETANCHEITE"]
["F.1","Forme de pente en béton léger ( polytherme)","M²",12,20]
["F.2","Etancheité monocouche sous protection lourde ","M3",17,12]
["F.3","Etancheité monocouche avec  protection en vernis aluminium .","M²",22,22]
["F.4","Etancheite sous carrelage pour locaux humides","M²",27,20]
["F.5","Relevé d'etancheité sous protection lourde","ML",32,19]
["F.6","Relevé d'etancheité  avec protection en vernis aluminium","ML",37,18]
["F.7","Solin pour protection des relevés","ML",42,17]
["F.8"," Protection lourde en carreaux granito mosaîque de 25/25 sur place","M²",47,16]
["F.9","Couvre joint de dilatation extérieur en tôle d'aluminium.","ML",52,35]
["F.10","Etanchéité en GC5","M3",57,6.5]
[null,null,"TOTAL ETANCHEITE",null,35]
[null,"G / FERRONNERIE ET OUVRAGE DIVERS"]
["G.1","Fourniture et pose de Garde corps métallique escalier.","ML",11,50]
["G.2","Fourniture et pose Garde corps balcon.","ML",14,53]
["G.3","Fourniture et pose Grille de protection en fer forgé","M²",17,56]
["G.4","Fourniture et pose échelle métallique","ML",20,59]
["G.5","Fourniture et pose porte métallique en tôle noire","M²",23,62]
["G.6","Fourniture et pose Grille de ventilation","M²",26,90]
["G.7","Fourniture et pose ouvrage divers en fer forge                                                               ","Kg",29,150]
["G.8","Fourniture et pose socle pour antenne  TV","UN",32,80]
["G.9","Fourniture et pose Lanterneau de desemfumage de 100*100","UN",35,60]
["G.10","Fourniture et Pose de cadre en bois ou en acier galvanisé","UN",38,80]
["G.11","Fourniture et pose pipette en P.V.C. avec platine de Ø 40","UN",41,140]
["G.12","Forme de  marche en béton","ML",44,3]
["G.13","Fourniture et pose fourreaux en PVC pour extracteur de fumée et de  chauffeaux","UN",47,150]
["G.14","Tête de souche de gaine ","UN",50,1000]
["G.15","Socle antivibratil","M²",53,10]
["G.16","Fourniture et pose faux plafond en staff lisse","M²",56,35]
["G.17","Fourniture et pose gorge en staff lisse","M²",59,12]
["G.18","Fourniture et pose cache  rideau en staff  lisse","ML",62,50]
["G.19","Porte sectionnelle basculante (pour accés parking)","ENS",65,330]
["G.20","Pose de baignoire sans joint en silicone","UN",68,60]
["G.21","Fourniture et pose isolation phonique sous carrelage","M²",71,30]
["G.22","Pose de cadre de climatisation","UN",74,25]
["G.23","Pose de précadre en Alu de toutes dimensions","UN",77,15]
["G.24","Fourniture et pose de caisson préfabriqué pour volet roulant","ML",80,2500]
[null,null,"TOTAL FERRONNERIE ET OUVRAGE DIVERS",null,120]
[null,"H. AMENGEMENT EXTERIEUR ",null,null,12]
["H.1","Evacuation eaux usées eaux vannes",null,3,12]
[null,"a- Tube en PVC diamètre DN 50.","ML",6,12]
[null,"b- Tube en PVC diamètre DN 110.","ML",9,11]
[null,"c- Tube en PVC diamètre DN 125.","ML",12,10]
[null,"d- Tube en PVC diamètre DN 140.","ML",15,9]
[null,"e- Tube en PVC diamètre DN 160.","ML",18,8]
[null,"f- Tube en PVC diamètre DN 200.","ML",21,7]
[null,"g- Tube en PVC diamètre DN 250.","ML",24,14]
["H.2","Regard de visite",null,27,13]
[null,"a- Regard de 40*40*40","UN",30,12]
[null,"b- Regard extérieure siphoide 50*50*50.","UN",33,11]
[null,"c- Regard 60*60*60","UN",36,10]
[null,"d- Regard 80*80*80","UN",39,9]
[null,"e- Regard circulaire serie lourde Ø 800","UN",42,8]
["H.3","Raccordement  au réseau ONAS","ENS",45,33]
["H.4","Boite de  branchement Siphoide type ONAS","UN",48,32]
["H.5","Regard de puisard",null,51,31]
[null,"100*100","UN",54,30]
["H.6","Caniveau à grille","ML",57,29]
["H.7","Terre végétale","M3",60,28]
["H.8","Gravier sous terre vegetale","M3",63,27]
["H.9","Chape de protection sous sol ","M²",66,26]
["H.10","Pavés  autobloquants","M²",69,25]
[null,null,"TOTAL AMENAGEMENT EXTERIEUR "]

{"sheet":"préattach","index":1,"n_rows":956,"n_cols":72,"rows_kept":956,"cut":false,"hidden":true,"merged":[[35,5,35,8],[36,5,36,8],[72,5,72,8],[46,5,46,8],[47,5,47,8],[58,5,58,8],[59,5,59,8],[71,5,71,8],[8,1,8,7],[6,1,6,7],[7,1,7,7],[25,5,25,8],[26,5,26,8]]}
[null,null,null,null,null,null,null,null,null,null,"M3","….","x","1   X   1   X   1   X   5   =   5","x","….","x","….",{"$f":"\"=    \"&TEXT(U1,\"0,000\")","v":"=    0,000"},5,{"$f":"IFERROR(L1*N1*P1*R1,0)","v":0},{"$f":"COUNTA($Y$41:$Y$410)","v":1},"1   X   1   X   15000   X   1   =   15000",null,"1   X   1   X   1   X   10   =   ",{"$f":"IFERROR(\"=       \"& TEXT(S1*U1*W1*Y1,\"#,###\"),0)","v":0},{"$f":"COUNTA(Y12:Y30)","v":0},null,"15000",null,null,null,null,1,null,"avn1",1,"avn2","attachement n°",null,null,{"$f":"COUNTA($AT:$AT)","v":142},{"$f":"COUNTA($AT:$AT)","v":142},null," ","DESIGNATION DES OUVRAGES","U","Qté Total","P.U H.T.V.A","Attachement 6 fin Juin",null,null,null,null,null,null,null,null,null,null,null,null,null,null,null,null,null,null,null,null,"B. 2 BÉTONS ARMES ET BETONS DIVERS"]
[null,null,null,null,null,null,null,null,null,null,"M2","….","x","….","x","….",null,null,{"$f":"IFERROR(\"=           \"&(L2*N2*P2),\"0\")","v":"0"},null,{"$f":"IFERROR(L2*N2*P2,0)","v":0},null,null,null,11,null,{"$f":"COUNTA(Y43:Y431)","v":0},null,null,null,null,null,null,1,null,{"$f":"\"attachement n°\"&AK1","v":"attachement n°1"},{"$f":"RIGHT(AJ1,1)","v":"1"},null,"situation",null,null,null,null,null,null,"A. TERRASSEMENT",null,null,null,null,null,null,"A. TERRASSEMENT",null,null,null,null,null,null,null,null,null,null,null,null,null,null,null,null,2,"Béton armé en élévation en ciment CPI-42,5 ",0]
[null,null,null,null,null,null,null,null,null,null,"ML",null,null,null,null,null,null,null,null,null,null,null,null,"M3",{"$f":"IF(I1=\"\",\"                      total:     \"&$Z$11,\"   \"&B1&\"   \"&C1&\"   \"&D1&\"   \"&E1&\"  \"&F1&\"   \"&G1&\"    \"&H1&\"   \"&I1)","v":"                      total:     0"},null,{"$f":"COUNTIF(Y:Y,Y10)","v":1},null,"M²",{"$f":"LEN(AE5)-LEN(SUBSTITUTE(AE5,AD5,\"\"))","v":0},null,{"$f":"COUNTIF(Y43:Y1200,Y10)","v":0},null,1,null,{"$f":"\"situation\"&AK1","v":"situation1"},null,null,"AVN",null,null,null,null,null,1,"Fouille en pleine masse Fouille en pleine masse  Fouille en pleine masse ","M3",100,6.6,null,null,null,"beton 1114"]
[null,null,null,null,null,null,null,null,null,null,"U",null,null,null,null,null,null,null,null,null,null,"M3",null,"M²",{"$f":"IF(I2=\"\",\"                      total:     \"&$Z$11,\"   \"&B2&\"   \"&C2&\"   \"&D2&\"   \"&E2&\"  \"&F2&\"   \"&G2&\"    \"&H2&\"   \"&I2)","v":"                      total:     0"},null,null,null,null,null,null,{"$f":"COUNTIF(Y43:Y1201,Y11)","v":0},null,1,null,null,null,null,"AVN",null,null,null,null,null,"A.2","Fouilles  en puits de 0 à 2,50 m","M3",200,5.5,null,null,null,"B. 2 BÉTONS ARMES ET BETONS DIVERS"]
[null,null,null,null,null,null,null,null,null,null,null,null,null,null,null,null,null,null,null,null,null,"M²",null,null,{"$f":"IF(I1=\"\",\"                      total:     \"&$Z$11,\"   \"&B1&\"   \"&C1&\"   \"&D1&\"   \"&E1&\"  \"&F1&\"   \"&G1&\"    \"&H1&\"   \"&I1)","v":"                      total:     0"},null,null,null,null,",","10",null,null,1,null,null,null,null,null,null,null,null,null,null,5,"Travaux de terrassement et nettoyage","M2",300,6.6,null,null,null,"C. MAÇONNERIE"]
[null,null,null,null,null,null,null,null,null,null,null,null,null,null,null,null,null,null,null,null,null,null,null,null,{"$f":"IF(I4=\"\",\"                      total:     \"&$Z$11,\"   \"&B4&\"   \"&C4&\"   \"&D4&\"   \"&E4&\"  \"&F4&\"   \"&G4&\"    \"&H4&\"   \"&I4)","v":"                      total:     0"},{"$f":"IF(Z7=\"M²\",\"M2\",Z7)","v":"M3"},null,null,null,null,null,null,null,1,{"$f":"(IFERROR(VLOOKUP(Y11,'attachement n°1'!C:I,3,0),0))+(IFERROR(VLOOKUP(Y11,'attachement n°2'!C:I,3,0),0))+(IFERROR(VLOOKUP(Y11,'attachement n°3'!C:I,3,0),0))","v":0},null,null,null,null,null,null,null,null,null,"A.4","T.V drainant 0/30","M3",400,27.5,null,null,null,"D. ENDUITS"]
[null,null,null,null,null,null,null,null,null,null,null,null,null,null,null,null,null,null,null,null,null,null,null,null,15,{"$f":"IFERROR(VLOOKUP(A9,préattach!N:P,3,0),\"M3\")","v":"M3"},"M2","N",null,null,null,null,null,1,null,null,null,null,null,null,null,null,null,null,6,"Remblais provenant de déblais","M3",500,3,null,null,null,"E. REVETEMENT DIVERS "]
[null,null,null,null,null,null,null,null,null,null,null,null,null,"ss",{"$f":"Y10","v":"A. TERRASSEMENT"},null,null,null,null,null,null,null,null,null,{"$f":"B10*D10*F10*H10","v":0},null,null,null,{"$f":"COUNTA(Y43:Y298)+41","v":41},null,null,null,null,1,null,null,null,null,null,null,null,null,null,null,null,"TOTAL ",null,null,null,null,null,null,"F. ETANCHEITE"]
[null,null,null,null,null,null,null,null,null,null,{"$f":"SUM(K10:K24)","v":0},null,null,null,{"$f":"Y10","v":"A. TERRASSEMENT"},null,null,null,null,null,null,null,null,null,11,{"$f":"IF(Z6=\"M2\",(TEXT(Z11,\"0,00\")),IF(Z6=\"M3\",(TEXT(Z11,\"0,000\")),IF(Z6=\"ML\",(TEXT(Z11,\"0,00\")),IF(Z6=\"u\",(TEXT(Z11,\"0,00\"))))))&\"  \"&Z6","v":"0,000  M3"},{"$f":"IF(Z6=\"M2\",(TEXT(Z11,\"0,00\")),IF(Z6=\"M3\",(TEXT(Z11,\"0,000\")),IF(Z6=\"ML\",(TEXT(Z11,\"0,00\")),IF(Z6=\"u\",(TEXT(Z11,\"0,00\"))))))&\"  \"&Z6","v":"0,000  M3"},"   =SI(I13=\"\";\"                      total:     \"&Z11;\"   \"&B13&\"   \"&C13&\"   \"&D13&\"   \"&E13&\"  \"&F13&\"   \"&G13&\"    \"&H13&\"   \"&I13)",null,null,null,null,null,1,null,null,null,null,null,null,null,null,null,null,null,"beton 1114",null,null,null,null,null,null,"G / FERRONNERIE ET OUVRAGE DIVERS"]
[null,null,null,null,null,null,null,null,null,null,null,null,null,1,"Fouille en pleine masse Fouille en pleine masse  Fouille en pleine masse ","M3",100,6.6,400,null,"",{"$f":"COUNTIF(Y:Y,Y10)","v":1},{"$f":"MAX(W12:W31)","v":1},"         ","A. TERRASSEMENT",null,null,null,null,{"$f":"COUNTA(Y12:Y29)","v":0},null,null,null,1,null,null,null,null,null,null,null,null,null,null,157,"Béton de propreté","M3",600,143,null,null,null,"H. AMENGEMENT EXTERIEUR "]
[null,null,null,null,null,null,null,null,null,null,null,null,null,"A.2","Fouilles  en puits de 0 à 2,50 m","M3",200,5.5,600,100,null,null,0,null,{"$f":"B9","v":0},{"$f":"SUM(AE$12:$AE$30)","v":0},{"$f":"SUM(AE12:AE23)","v":0},null,null,{"$f":"AD10+1","v":1},{"$f":"COUNTA(J10:J29)","v":0},{"$f":"IFERROR(IF(VLOOKUP(X11,N10:Q86,4,0)<Z11,\"avenenet\",\"\"),\"\")","v":""},"   ------------------",{"$f":"IFERROR(VLOOKUP(X11,N10:Q86,4,0),0)","v":0},{"$f":"IFERROR(VLOOKUP(Y11,'attachement n°1'!C:E,3,0)+VLOOKUP(Y11,'attachement n°2'!C:C,3,0)+VLOOKUP(Y11,'attachement n°3'!C:C,3,0),0)","v":0},null,null,null,null,null,null,null,null,null,1,"Gros béton en fondation HRS (250kg/m3)","M3",700,155]
[null,null,null,null,null,null,null,null,null,null,null,null,null,5,"Travaux de terrassement et nettoyage","M2",300,6.6,null,2,null,null,1,null,null,null,null,null,null,null,null,null,null,null,{"$f":"SUM(AH12:AH21)","v":0},{"$f":"COUNTA(AH12:AH25)","v":0},null,null,null,null,null,null,null,null,"B.1.3","Béton Banché(200kg/m3)","M3",800,145]
[null,null,null,null,null,null,null,null,null,null,null,null,null,"A.4","T.V drainant 0/30","M3",400,27.5,2500,2,{"$f":"COUNTIF(Y13,\"*total*\")","v":0},null,null,null,null,null,null,null,null,null,null,null,null,null,{"$f":"IF(Z6=\"M2\",(TEXT(AI12,\"0,00\")),IF(Z6=\"M3\",(TEXT(AI12,\"0,000\")),IF(Z6=\"ML\",(TEXT(AI12,\"0,00\")),IF(Z6=\"u\",(TEXT(AI12,\"0,00\"))))))&\"  \"&Z6","v":"0,000  M3"},null,null,null,null,null,null,null,null,null,"B.1.4","Béton armé en fondation ","M3",900,473]
[null,null,null,null,null,null,null,null,null,null,null,null,null,6,"Remblais provenant de déblais","M3",500,3,null,2,{"$f":"COUNTIF(Y14,\"*total*\")","v":0},null,null,null,null,null,null,null,null,null,null,null,null,null,null," ",null,null,null,null,null,null,null,null,"B.1.5","Voiles périphérique du sous sol (HRS)","M3",1000,495]
[null,null,null,null,null,null,null,null,null,null,null,null,null,null,null,null,null,null,54,2,{"$f":"COUNTIF(Y15,\"*total*\")","v":0},null,null,null,null,null,null,null,null,null,null,null,null,null,null,null,null,null,null,null,null,null,null,null,"B.1.6","Chape armée  de 20cm sur Béton de propreté","M²",1100,90]
[null,null,null,null,null,null,null,null,null,null,null,null,null,null,null,null,null,null,33,null,0,null,null,null,null,null,null,null,null,null,null,null,null,null,null,null,null,null,null,null,null,null,null,null,"B.1.7","Chape armé de  10cm ","M²",1200,30]
[null,null,null,null,null,null,null,null,null,null,null,null,null,null,null,null,null,null,1200,null,0,null,null,null,null,null,null,null,null,null,null,null,null,null,null,null,null,null,null,null,null,null,null,null,null,"TOTAL"]
[null,null,null,null,null,null,null,null,null,null,null,null,null,null,null,null,null,null,350,null,0,null,null,null,null,null,null,null,null,null,null,null,null,null,null,null,null,null,null,null,null,null,null,null,null,"B. 2 BÉTONS ARMES ET BETONS DIVERS"]
[null,null,null,null,null,null,null,null,null,null,null,null,null,null,null,null,null,null,null,null,0,null,null,null,null,null,null,null,null,null,null,null,null,null,null,null,null,null,null,null,null,null,null,null,"B.2.0","Voiles des cages d`assenceurs, escaliers, poteaux et les rampes d`acces du sous sol dose a 400kg/m3 (HRS)","M3",235,550]
[null,null,null,null,null,null,null,null,null,null,null,null,null,null,null,null,null,null,null,null,0,null,null,null,null,null,null,null,null,null,null,null,null,null,null,null,null,null,null,null,null,null,null,null,"B.2.1","Béton armé en élévation en ciment CPI-42,5 ","M3",500,330.55]
[null,null,null,null,null,null,null,null,null,null,null,null,null,null,null,null,null,null,null,null,0,null,null,null,null,null,null,null,null,null,null,null,null,null,null,null,null,null,null,null,null,null,null,null,"B.2.1.1","Béton armé en élévation pour poutre plancher haut sous sol","M3",770,550]
[null,null,null,null,null,null,null,null,null,null,null,null,null,null,null,null,null,null,null,null,0,null,null,null,null,null,null,null,null,null,null,null,null,null,null,null,null,null,null,null,null,null,null,null,"B.2.1.2","Béton armé en élévation en ciment CPI-42,5 pour le reste du projet","M3",1374,550]
[null,null,null,null,null,null,null,null,null,null,null,null,null,null,null,null,null,null,null," ",0,null,null,null,null,null,null,null,null,null,null,null,null,null,null,null,null,null,null,null,null,null,null,null,"B.2.2","Plancher en dalle pleine",null,0]
[null,null,null,null,null,null,null,null,null,null,null,null,null,null,null,null,null,null,null,null,0,null,null,null,null,null,null,null,null,null,null,null,null,null,null,null,null,null,null,null,null,null,null,null,"B.2.2.1","Dalle pleine épaisseur 20cm","M²",0,100]
[null,null,null,null,null,null,null,null,null,null,null,null,null,null,null,null,null,null,null,null,0,null,null,null,null,null,null,null,null,null,null,null,null,null,null,null,null,null,null,null,null,null,null,null,"B.2.2.2","Dalle pleine épaisseur 25cm","M²",1127,140]
[null,null,null,null,null,null,null,null,null,null,null,null,null,null,null,null,null,null,null,null,0,null,null,null,null,null,null,null,null,null,null,null,null,null,null,null,null,null,null,null,null,null,null,null,"B.2.2.3","Dalle pleine épaisseur 30cm","M²",0,165]
[null,null,null,null,null,null,null,null,null,null,null,null,null,null,null,null,null,null,null,null,0,null,null,null,null,null,null,null,null,null,null,null,null,null,null,null,null,null,null,null,null,null,null,null,"B.2.2.4","Dalle pleine plancher haut sous sol dosé à 400kg/M3 de ciment CPI 42,5 épaisseur 20cm","M²",2305,250]
[null,null,null,null,null,null,null,null,null,null,null,null,null,null,null,null,null,null,null,null,null,null,null,null,null,null,null,null,null,null,null,null,null,null,null,null,null,null,null,null,null,null,null,null,"B.2.2.5","Dalle pleine plancher haut sous sol dosé à 400kg/M3 de ciment CPI 42,5 épaisseur 30cm","M²",68,350]
[null,null,null,null,null,null,null,null,null,null,null,null,null,null,null,null,null,null,null,null,null,null,null,null,null,null,null,null,null,null,null,null,null,null,null,null,null,null,null,null,null,null,null,null,"B.2.3","Planchers en corps creux céramique",null,0,60]
[null,null,null,null,null,null,null,null,null,null,null,null,null,null,null,null,null,null,null,null,null,null,null,null,null,null,null,null,null,null,null,null,null,null,null,null,null,null,null,null,null,null,null,null,null,"a) 16+5","M²",0,65]
[null,null,null,null,null,null,null,null,null,null,null,null,null,null,null,null,null,null,null,null,null,null,null,null,null,null,null,null,null,null,null,null,null,null,null,null,null,null,null,null,null,null,null,null,null,"b) 19+6","M²",7878,68]
[null,null,null,null,null,null,null,null,null,null,null,null,null,null,null,null,null,null,null,null,null,null,null,null,null,null,null,null,null,null,null,null,null,null,null,null,null,null,null,null,null,null,null,null,null,"c) 16+7,5+6,5","M²",0,500]
[null,null,null,null,null,null,null,null,null,null,null,null,null,null,null,null,null,null,null,null,null,null,null,null,null,null,null,null,null,null,null,null,null,null,null,null,null,null,null,null,null,null,null,null,"B.2.4","Béton armé en élévation  CPI-42,5 brut de décofrage","M3",260,800,100]
[null,null,null,null,null,null,null,null,null,null,null,null,null,null,null,null,null,null,null,null,null,null,null,null,null,null,null,null,null,null,null,null,null,null,null,null,null,null,null,null,null,null,null,null,null,null,"TOTAL BÉTONS  ARMES ET BETONS DIVERS"]
[null,null,null,null,null,null,null,null,null,null,null,null,null,null,null,null,null,null,null,null,null,null,null,null,null,null,null,null,null,null,null,null,null,null,null,null,null,null,null,null,null,null,null,null,null,"C. MAÇONNERIE",null,null,40]
[null,null,null,null,null,null,null,null,null,null,null,null,null,null,null,null,null,null,null,null,null,null,null,null,null,null,null,null,null,null,null,null,null,null,null,null,null,null,null,null,null,null,null,null,"C.1","Double cloison de 0,45","M²",60,35]
[null,null,null,null,null,null,null,null,null,null,null,null,null,null,null,null,null,null,null,null,null,null,null,null,null,null,null,null,null,null,null,null,null,null,null,null,null,null,null,null,null,null,null,null,"C.2","Double cloison de 0,40","M²",70,30]
[null,null,null,null,null,null,null,null,null,null,null,null,null,null,null,null,null,null,null,null,null,null,null,null,null,null,null,null,null,null,null,null,null,null,null,null,null,null,null,null,null,null,null,null,"C.3","Double cloison de 0,35","M²",80,25,400]
[null,null,null,null,null,null,null,null,null,null,null,null,null,null,null,null,null,null,null,null,null,null,null,null,null,null,null,null,null,null,null,null,null,null,null,null,null,null,null,null,null,null,null,null,"C.4","Double cloison de 0,30","M²",90,22]
[null,null,null,null,null,null,null,null,null,null,null,null,null,null,null,null,null,null,null,null,null,null,null,null,null,null,null,null,null,null,null,null,null,null,null,null,null,null,null,null,null,null,null,null,"C.5","Cloison de 0,25","M²",80,20,350]
[null,null,null,null,null,null,null,null,null,null,null,null,null,null,null,null,null,null,null,null,null,null,null,null,null,null,null,null,null,null,null,null,null,null,null,null,null,null,null,null,null,null,null,null,"C.6","Cloison de 0,20","M²",50,17,400]
[null,null,null,null,null,null,null,null,null,null,null,null,null,null,null,null,null,null,null,null,null,null,1000,null,"5",null,{"$f":"COUNTA(Y43:Y298)+41","v":41},null,null,null,"------------",null,null,null,null,null,null,null,null,null,null,null,null,null,"C.7","Cloison de 0,15","M²",60,20]
[null,null,null,null,null,null,null,null,null,null,null,null,null,null,null,null,null,null,null,null,null,null,1001,null,null,null,null,null,null,null,null,null,null,null,null,null,null,null,null,null,null,null,null,null,"C.8","Cloison de 0,10","M²",40,12,800]
[null,null,null,null,null,null,null,null,null,null,null,null,null,null,null,null,null,null,null,null,null,null,1002,null,null,null,null,null,null,null,null,null,null,null,null,null,null,null,null,null,null,null,null,null,"C.9","Double cloison de 0,20","M²",120,11]
[null,null,null,null,null,null,null,null,null,null,null,null,null,null,null,null,null,null,null,null,null,null,1003,null,null,null,null,null,null,null,null,null,null,null,null,null,null,null,null,null,null,null,null,null,"C.10","Chemisage des éléments  en béton","M²",133,15]
[null,null,null,null,null,null,null,null,null,null,null,null,null,null,null,null,null,null,null,null,null,null,1004,null,null,null,null,null,null,null,null,null,null,null,null,null,null,null,null,null,null,null,null,null,"C.11","Fourniture et pose de panneaux de laine de roche pour isolation thermique des terrasses","M²",150,16]
[null,null,null,null,null,null,null,null,null,null,null,null,null,null,null,null,null,null,null,null,null,null,1005,null,null,null,null,null,null,null,null,null,null,null,null,null,null,null,null,null,null,null,null,null,null,null,"TOTAL MACONNERIE",null,19]
[null,null,null,null,null,null,null,null,null,null,null,null,null,null,null,null,null,null,null,null,null,null,1006,null,null,null,null,null,null,null,null,null,null,null,null,null,null,null,null,null,null,null,null,null,null,"D. ENDUITS",null,null,8.5]
[null,null,null,null,null,null,null,null,null,null,null,null,null,null,null,null,null,null,null,null,null,null,1007,null,null,null,null,null,null,null,null,null,null,null,null,null,null,null,null,null,null,null,null,null,"D.1","Enduit  extérieur","M²",100,9,400]
[null,null,null,null,null,null,null,null,null,null,null,null,null,null,null,null,null,null,null,null,null,null,1008,null,null,null,null,null,null,null,null,null,null,null,null,null,null,null,null,null,null,null,null,null,"D.2","Enduit intérieur","M²",200,9.5,600]
[null,null,null,null,null,null,null,null,null,null,null,null,null,null,null,null,null,null,null,null,null,null,1009,null,null,null,null,null,null,null,null,null,null,null,null,null,null,null,null,null,null,null,null,null,"D.3","Enduit sous plafond","M²",100,5.5]
[null,null,null,null,null,null,null,null,null,null,null,null,null,null,null,null,null,null,null,null,null,null,1010,null,null,null,null,null,null,null,null,null,null,null,null,null,null,null,null,null,null,null,null,null,"D.4","Enduit au mortier de ciment","M²",50,33,2500]
[null,null,null,null,null,null,null,null,null,null,null,null,null,null,null,null,null,null,null,null,null,null,1011,null,null,null,null,null,null,null,null,null,null,null,null,null,null,null,null,null,null,null,null,null,"D.5","Enduit sous plafond en gobetis ","M²",1520,33]
[null,null,null,null,null,null,null,null,null,null,null,null,null,null,null,null,null,null,null,null,null,null,1012,null,null,null,null,null,null,null,null,null,null,null,null,null,null,null,null,null,null,null,null,null,"D.6","Précadres Placard","UN",450,50,54]
[null,null,null,null,null,null,null,null,null,null,null,null,null,null,null,null,null,null,null,null,null,null,1013,null,null,null,null,null,null,null,null,null,null,null,null,null,null,null,null,null,null,null,null,null,"D.7","Gaine","UN",120,300,33]
[null,null,null,null,null,null,null,null,null,null,null,null,null,null,null,null,null,null,null,null,null,null,1014,null,null,null,null,null,null,null,null,null,null,null,null,null,null,null,null,null,null,null,null,null,"D.8","Cuvelage étanche type SIKA sur élément vertical (sans repicage)","M²",15,45,1200]
[null,null,null,null,null,null,null,null,null,null,null,null,null,null,null,null,null,null,null,null,null,null,1015,null,null,null,null,null,null,null,null,null,null,null,null,null,null,null,null,null,null,null,null,null,"D.9","Cuvelage étanche type SIKA sur élément horizontal (sans repicage)","M²",15,45,350]
[null,null,null,null,null,null,null,null,null,null,null,null,null,null,null,null,null,null,null,null,null,null,1016,null,null,null,null,null,null,null,null,null,null,null,null,null,null,null,null,null,null,null,null,null,null,null,"TOTAL ENDUITS"]
[null,null,null,null,null,null,null,null,null,null,null,null,null,null,null,null,null,null,null,null,null,null,1017,null,null,null,null,null,null,null,null,null,null,null,null,null,null,null,null,null,null,null,null,null,null,"E. REVETEMENT DIVERS "]
[null,null,null,null,null,null,null,null,null,null,null,null,null,null,null,null,null,null,null,null,null,null,1018,null,null,null,null,null,null,null,null,null,null,null,null,null,null,null,null,null,null,null,null,null,"E.1","Béton de garnissage","M3",300,9]
[null,null,null,null,null,null,null,null,null,null,null,null,null,null,null,null,null,null,null,null,null,null,1019,null,null,null,null,null,null,null,null,null,null,null,null,null,null,null,null,null,null,null,null,null,"E.2","Revêtement de sol ","M3",400,40]
[null,null,null,null,null,null,null,null,null,null,null,null,null,null,null,null,null,null,null,null,null,null,1020,null,null,null,null,null,null,null,null,null,null,null,null,null,null,null,null,null,null,null,null,null,"E.2.1","Fourniture et Pose decarrelage granito marbre blanc 25*25","M²",15,22]
[null,null,null,null,null,null,null,null,null,null,null,null,null,null,null,null,null,null,null,null,null,null,1021,null,null,null,null,null,null,null,null,null,null,null,null,null,null,null,null,null,null,null,null,null,"E.2.2","Fourniture et Pose de dallage en marbre thala de 30*30 ","M²",14,20]
[null,null,null,null,null,null,null,null,null,null,null,null,null,null,null,null,null,null,null,null,null,null,1022,null,null,null,null,null,null,null,null,null,null,null,null,null,null,null,null,null,null,null,null,null,"E.2.3","Fourniture et Pose de dallage en marbre blanc de 30*30 ","M²",14,4]
[null,null,null,null,null,null,null,null,null,null,null,null,null,null,null,null,null,null,null,null,null,null,1023,null,null,null,null,null,null,null,null,null,null,null,null,null,null,null,null,null,null,null,null,null,"E.2.4","Fourniture et Pose de carreaux en grès dans la masse de 30/30,","M²",15,13]
[null,null,null,null,null,null,null,null,null,null,null,null,null,null,null,null,null,null,null,null,null,null,1024,null,null,null,null,null,null,null,null,null,null,null,null,null,null,null,null,null,null,null,null,null,"E.2.5","Fourniture et Pose de carreaux en grès dans la masse de 20/20  anti- dérapant","M²",15,14]
[null,null,null,null,null,null,null,null,null,null,null,null,null,null,null,null,null,null,null,null,null,null,1025,null,null,null,null,null,null,null,null,null,null,null,null,null,null,null,null,null,null,null,null,null,"E.3","Revêtement mural ",null,15,4]
[null,null,null,null,null,null,null,null,null,null,null,null,null,null,null,null,null,null,null,null,null,null,1026,null,null,null,null,null,null,null,null,null,null,null,null,null,null,null,null,null,null,null,null,null,"E.3.1","Fourniture et Pose de faïence ","M²",15,3.5]
[null,null,null,null,null,null,null,null,null,null,null,null,null,null,null,null,null,null,null,null,null,null,1027,null,null,null,null,null,null,null,null,null,null,null,null,null,null,null,null,null,null,null,null,null,"E.3.2","Fourniture et Pose de frise décoré de 10 cm ","ML",164,3]
[null,null,null,null,null,null,null,null,null,null,null,null,null,null,null,null,null,null,null,null,null,null,1028,null,null,null,null,null,null,null,null,null,null,null,null,null,null,null,null,null,null,null,null,null,"E.3.3","Fourniture et Pose de plinthe en marbre blanc de 8 cm ","ML",122,3]
[null,null,null,null,null,null,null,null,null,null,null,null,null,null,null,null,null,null,null,null,null,null,1029,null,null,null,null,null,null,null,null,null,null,null,null,null,null,null,null,null,null,null,null,null,"E.3.4","Fourniture et Pose de plinthe en marbre thala  de 8cm ","ML",12]
[null,null,null,null,null,null,null,null,null,null,null,null,null,null,null,null,null,null,null,null,null,null,1030,null,null,null,null,null,null,null,null,null,null,null,null,null,null,null,null,null,null,null,null,null,"E.3.5","Plinthe céramique","ML",12,35]
[null,null,null,null,null,null,null,null,null,null,null,null,null,null,null,null,null,null,null,null,null,null,1031,null,null,null,null,null,null,null,null,null,null,null,null,null,null,null,null,null,null,null,null,null,"E.4","Marches, contre marches et plinthe d'escalier",null,null,35]
[null,null,null,null,null,null,null,null,null,null,null,null,null,null,null,null,null,null,null,null,null,null,1032,null,null,null,null,null,null,null,null,null,null,null,null,null,null,null,null,null,null,null,null,null,"E.4.1","Fourniture et Pose de marche en marbre thala de 3cm d'epaisseur","M²",4,4]
[null,null,null,null,null,null,null,null,null,null,null,null,null,null,null,null,null,null,null,null,null,null,1033,null,null,null,null,null,null,null,null,null,null,null,null,null,null,null,null,null,null,null,null,null,"E.4.2.","Fourniture et Pose de contre marche en marbre thala de 2cm d'epaisseur","M²",15]
[null,null,null,null,null,null,null,null,null,null,null,null,null,null,null,null,null,null,null,null,null,null,1034,null,null,null,null,null,null,null,null,null,null,null,null,null,null,null,null,null,null,null,null,null,"E.4.3","Fourniture et Pose de plinthe crémaillere en marbre thala de 1,2 cm d'épaisseur ","ML",15,35]
[null,null,null,null,null,null,null,null,null,null,null,null,null,null,null,null,null,null,null,null,null,null,1035,null,null,null,null,null,null,null,null,null,null,null,null,null,null,null,null,null,null,null,null,null,"E.5"," Seuils et Siffles",null,15,35]
[null,null,null,null,null,null,null,null,null,null,null,null,null,null,null,null,null,null,null,null,null,null,1036,null,null,null,null,null,null,null,null,null,null,null,null,null,null,null,null,null,null,null,null,null,"E.5.1","Fourniture et Pose de seuil pour porte d'entrée d'immeble et appartement en marbre  blanc de 3cm d'épaisseur","M²",15,5]
[null,null,null,null,null,null,null,null,null,null,null,null,null,null,null,null,null,null,null,null,null,null,1037,null,null,null,null,null,null,null,null,null,null,null,null,null,null,null,null,null,null,null,null,null,"E.5.2","Fourniture et Pose de seuil  battant pour porte fenêtre  en marbre blanc ou thala de 3cm d'épaisseur","M²",122,5]
[null,null,null,null,null,null,null,null,null,null,null,null,null,null,null,null,null,null,null,null,null,null,1038,null,null,null,null,null,null,null,null,null,null,null,null,null,null,null,null,null,null,null,null,null,"E.5.3","Fourniture et Pose de siffle pour porte intérieure en marbre thala de 2cm d'epaisseur","ML",122,35]
[null,null,null,null,null,null,null,null,null,null,null,null,null,null,null,null,null,null,null,null,null,null,1039,null,null,null,null,null,null,null,null,null,null,null,null,null,null,null,null,null,null,null,null,null,"E.5.4","Fourniture et Pose de siffle pour porte intérieure  en marbre blanc de 2cm d'epaisseur","ML",11,35]
[null,null,null,null,null,null,null,null,null,null,null,null,null,null,null,null,null,null,null,null,null,null,1040,null,null,null,null,null,null,null,null,null,null,null,null,null,null,null,null,null,null,null,null,null,"E.6","Fourniture et Pose d' appuis de fenêtre en marbre thala de 2 cm","M²",11,35]
[null,null,null,null,null,null,null,null,null,null,null,null,null,null,null,null,null,null,null,null,null,null,1041,null,null,null,null,null,null,null,null,null,null,null,null,null,null,null,null,null,null,null,null,null,"E.7","Fourniture et Pose  de  dallette  lavabo et potager de cuisine en marbre  blanc.","M²",11,25]
[null,null,null,null,null,null,null,null,null,null,null,null,null,null,null,null,null,null,null,null,null,null,1042,null,null,null,null,null,null,null,null,null,null,null,null,null,null,null,null,null,null,null,null,null,"E.8","Fourniture et Pose  d'encadrement ascenseur en marbre blanc ","ML",12]
[null,null,null,null,null,null,null,null,null,null,null,null,null,null,null,null,null,null,null,null,null,null,1043,null,null,null,null,null,null,null,null,null,null,null,null,null,null,null,null,null,null,null,null,null,"E.9","Fourniture et Pose grès dans la masse type extérieur de 30/30  ","M²",15]
[null,null,null,null,null,null,null,null,null,null,null,null,null,null,null,null,null,null,null,null,null,null,1044,null,null,null,null,null,null,null,null,null,null,null,null,null,null,null,null,null,null,null,null,null,null,null,"TOTAL REVETEMENT DIVERS",null,25]
[null,null,null,null,null,null,null,null,null,null,null,null,null,null,null,null,null,null,null,null,null,null,1045,null,null,null,null,null,null,null,null,null,null,null,null,null,null,null,null,null,null,null,null,null,null,"F. ETANCHEITE"]
[null,null,null,null,null,null,null,null,null,null,null,null,null,null,null,null,null,null,null,null,null,null,1046,null,null,null,null,null,null,null,null,null,null,null,null,null,null,null,null,null,null,null,null,null,"F.1","Forme de pente en béton léger ( polytherme)","M²",12,20]
[null,null,null,null,null,null,null,null,null,null,null,null,null,null,null,null,null,null,null,null,null,null,1047,null,null,null,null,null,null,null,null,null,null,null,null,null,null,null,null,null,null,null,null,null,"F.2","Etancheité monocouche sous protection lourde ","M3",17,12]
[null,null,null,null,null,null,null,null,null,null,null,null,null,null,null,null,null,null,null,null,null,null,1048,null,null,null,null,null,null,null,null,null,null,null,null,null,null,null,null,null,null,null,null,null,"F.3","Etancheité monocouche avec  protection en vernis aluminium .","M²",22,22]
[null,null,null,null,null,null,null,null,null,null,null,null,null,null,null,null,null,null,null,null,null,null,1049,null,null,null,null,null,null,null,null,null,null,null,null,null,null,null,null,null,null,null,null,null,"F.4","Etancheite sous carrelage pour locaux humides","M²",27,20]
[null,null,null,null,null,null,null,null,null,null,null,null,null,null,null,null,null,null,null,null,null,null,1050,null,null,null,null,null,null,null,null,null,null,null,null,null,null,null,null,null,null,null,null,null,"F.5","Relevé d'etancheité sous protection lourde","ML",32,19]
[null,null,null,null,null,null,null,null,null,null,null,null,null,null,null,null,null,null,null,null,null,null,1051,null,null,null,null,null,null,null,null,null,null,null,null,null,null,null,null,null,null,null,null,null,"F.6","Relevé d'etancheité  avec protection en vernis aluminium","ML",37,18]
[null,null,null,null,null,null,null,null,null,null,null,null,null,null,null,null,null,null,null,null,null,null,1052,null,null,null,null,null,null,null,null,null,null,null,null,null,null,null,null,null,null,null,null,null,"F.7","Solin pour protection des relevés","ML",42,17]
[null,null,null,null,null,null,null,null,null,null,null,null,null,null,null,null,null,null,null,null,null,null,1053,null,null,null,null,null,null,null,null,null,null,null,null,null,null,null,null,null,null,null,null,null,"F.8"," Protection lourde en carreaux granito mosaîque de 25/25 sur place","M²",47,16]
[null,null,null,null,null,null,null,null,null,null,null,null,null,null,null,null,null,null,null,null,null,null,1054,null,null,null,null,null,null,null,null,null,null,null,null,null,null,null,null,null,null,null,null,null,"F.9","Couvre joint de dilatation extérieur en tôle d'aluminium.","ML",52,35]
[null,null,null,null,null,null,null,null,null,null,null,null,null,null,null,null,null,null,null,null,null,null,1055,null,null,null,null,null,null,null,null,null,null,null,null,null,null,null,null,null,null,null,null,null,"F.10","Etanchéité en GC5","M3",57,6.5]
[null,null,null,null,null,null,null,null,null,null,null,null,null,null,null,null,null,null,null,null,null,null,1056,null,null,null,null,null,null,null,null,null,null,null,null,null,null,null,null,null,null,null,null,null,null,null,"TOTAL ETANCHEITE",null,35]
[null,null,null,null,null,null,null,null,null,null,null,null,null,null,null,null,null,null,null,null,null,null,1057,null,null,null,null,null,null,null,null,null,null,null,null,null,null,null,null,null,null,null,null,null,null,"G / FERRONNERIE ET OUVRAGE DIVERS"]
[null,null,null,null,null,null,null,null,null,null,null,null,null,null,null,null,null,null,null,null,null,null,1058,null,null,null,null,null,null,null,null,null,null,null,null,null,null,null,null,null,null,null,null,null,"G.1","Fourniture et pose de Garde corps métallique escalier.","ML",11,50]
[null,null,null,null,null,null,null,null,null,null,null,null,null,null,null,null,null,null,null,null,null,null,1059,null,null,null,null,null,null,null,null,null,null,null,null,null,null,null,null,null,null,null,null,null,"G.2","Fourniture et pose Garde corps balcon.","ML",14,53]
[null,null,null,null,null,null,null,null,null,null,null,null,null,null,null,null,null,null,null,null,null,null,1060,null,null,null,null,null,null,null,null,null,null,null,null,null,null,null,null,null,null,null,null,null,"G.3","Fourniture et pose Grille de protection en fer forgé","M²",17,56]
[null,null,null,null,null,null,null,null,null,null,null,null,null,null,null,null,null,null,null,null,null,null,1061,null,null,null,null,null,null,null,null,null,null,null,null,null,null,null,null,null,null,null,null,null,"G.4","Fourniture et pose échelle métallique","ML",20,59]
[null,null,null,null,null,null,null,null,null,null,null,null,null,null,null,null,null,null,null,null,null,null,1062,null,null,null,null,null,null,null,null,null,null,null,null,null,null,null,null,null,null,null,null,null,"G.5","Fourniture et pose porte métallique en tôle noire","M²",23,62]
[null,null,null,null,null,null,null,null,null,null,null,null,null,null,null,null,null,null,null,null,null,null,1063,null,null,null,null,null,null,null,null,null,null,null,null,null,null,null,null,null,null,null,null,null,"G.6","Fourniture et pose Grille de ventilation","M²",26,90]
[null,null,null,null,null,null,null,null,null,null,null,null,null,null,null,null,null,null,null,null,null,null,1064,null,null,null,null,null,null,null,null,null,null,null,null,null,null,null,null,null,null,null,null,null,"G.7","Fourniture et pose ouvrage divers en fer forge                                                               ","Kg",29,150]
[null,null,null,null,null,null,null,null,null,null,null,null,null,null,null,null,null,null,null,null,null,null,1065,null,null,null,null,null,null,null,null,null,null,null,null,null,null,null,null,null,null,null,null,null,"G.8","Fourniture et pose socle pour antenne  TV","UN",32,80]
[null,null,null,null,null,null,null,null,null,null,null,null,null,null,null,null,null,null,null,null,null,null,1066,null,null,null,null,null,null,null,null,null,null,null,null,null,null,null,null,null,null,null,null,null,"G.9","Fourniture et pose Lanterneau de desemfumage de 100*100","UN",35,60]
[null,null,null,null,null,null,null,null,null,null,null,null,null,null,null,null,null,null,null,null,null,null,1067,null,null,null,null,null,null,null,null,null,null,null,null,null,null,null,null,null,null,null,null,null,"G.10","Fourniture et Pose de cadre en bois ou en acier galvanisé","UN",38,80]
[null,null,null,null,null,null,null,null,null,null,null,null,null,null,null,null,null,null,null,null,null,null,1068,null,null,null,null,null,null,null,null,null,null,null,null,null,null,null,null,null,null,null,null,null,"G.11","Fourniture et pose pipette en P.V.C. avec platine de Ø 40","UN",41,140]
[null,null,null,null,null,null,null,null,null,null,null,null,null,null,null,null,null,null,null,null,null,null,1069,null,null,null,null,null,null,null,null,null,null,null,null,null,null,null,null,null,null,null,null,null,"G.12","Forme de  marche en béton","ML",44,3]
[null,null,null,null,null,null,null,null,null,null,null,null,null,null,null,null,null,null,null,null,null,null,1070,null,null,null,null,null,null,null,null,null,null,null,null,null,null,null,null,null,null,null,null,null,"G.13","Fourniture et pose fourreaux en PVC pour extracteur de fumée et de  chauffeaux","UN",47,150]
[null,null,null,null,null,null,null,null,null,null,null,null,null,null,null,null,null,null,null,null,null,null,1071,null,null,null,null,null,null,null,null,null,null,null,null,null,null,null,null,null,null,null,null,null,"G.14","Tête de souche de gaine ","UN",50,1000]
[null,null,null,null,null,null,null,null,null,null,null,null,null,null,null,null,null,null,null,null,null,null,1072,null,null,null,null,null,null,null,null,null,null,null,null,null,null,null,null,null,null,null,null,null,"G.15","Socle antivibratil","M²",53,10]
[null,null,null,null,null,null,null,null,null,null,null,null,null,null,null,null,null,null,null,null,null,null,1073,null,null,null,null,null,null,null,null,null,null,null,null,null,null,null,null,null,null,null,null,null,"G.16","Fourniture et pose faux plafond en staff lisse","M²",56,35]
[null,null,null,null,null,null,null,null,null,null,null,null,null,null,null,null,null,null,null,null,null,null,1074,null,null,null,null,null,null,null,null,null,null,null,null,null,null,null,null,null,null,null,null,null,"G.17","Fourniture et pose gorge en staff lisse","M²",59,12]
[null,null,null,null,null,null,null,null,null,null,null,null,null,null,null,null,null,null,null,null,null,null,1075,null,null,null,null,null,null,null,null,null,null,null,null,null,null,null,null,null,null,null,null,null,"G.18","Fourniture et pose cache  rideau en staff  lisse","ML",62,50]
[null,null,null,null,null,null,null,null,null,null,null,null,null,null,null,null,null,null,null,null,null,null,1076,null,null,null,null,null,null,null,null,null,null,null,null,null,null,null,null,null,null,null,null,null,"G.19","Porte sectionnelle basculante (pour accés parking)","ENS",65,330]
[null,null,null,null,null,null,null,null,null,null,null,null,null,null,null,null,null,null,null,null,null,null,1077,null,null,null,null,null,null,null,null,null,null,null,null,null,null,null,null,null,null,null,null,null,"G.20","Pose de baignoire sans joint en silicone","UN",68,60]
[null,null,null,null,null,null,null,null,null,null,null,null,null,null,null,null,null,null,null,null,null,null,1078,null,null,null,null,null,null,null,null,null,null,null,null,null,null,null,null,null,null,null,null,null,"G.21","Fourniture et pose isolation phonique sous carrelage","M²",71,30]
[null,null,null,null,null,null,null,null,null,null,null,null,null,null,null,null,null,null,null,null,null,null,1079,null,null,null,null,null,null,null,null,null,null,null,null,null,null,null,null,null,null,null,null,null,"G.22","Pose de cadre de climatisation","UN",74,25]
[null,null,null,null,null,null,null,null,null,null,null,null,null,null,null,null,null,null,null,null,null,null,1080,null,null,null,null,null,null,null,null,null,null,null,null,null,null,null,null,null,null,null,null,null,"G.23","Pose de précadre en Alu de toutes dimensions","UN",77,15]
[null,null,null,null,null,null,null,null,null,null,null,null,null,null,null,null,null,null,null,null,null,null,1081,null,null,null,null,null,null,null,null,null,null,null,null,null,null,null,null,null,null,null,null,null,"G.24","Fourniture et pose de caisson préfabriqué pour volet roulant","ML",80,2500]
[null,null,null,null,null,null,null,null,null,null,null,null,null,null,null,null,null,null,null,null,null,null,1082,null,null,null,null,null,null,null,null,null,null,null,null,null,null,null,null,null,null,null,null,null,null,null,"TOTAL FERRONNERIE ET OUVRAGE DIVERS",null,120]
[null,null,null,null,null,null,null,null,null,null,null,null,null,null,null,null,null,null,null,null,null,null,1083,null,null,null,null,null,null,null,null,null,null,null,null,null,null,null,null,null,null,null,null,null,null,"H. AMENGEMENT EXTERIEUR ",null,null,12]
[null,null,null,null,null,null,null,null,null,null,null,null,null,null,null,null,null,null,null,null,null,null,1084,null,null,null,null,null,null,null,null,null,null,null,null,null,null,null,null,null,null,null,null,null,"H.1","Evacuation eaux usées eaux vannes",null,3,12]
[null,null,null,null,null,null,null,null,null,null,null,null,null,null,null,null,null,null,null,null,null,null,1085,null,null,null,null,null,null,null,null,null,null,null,null,null,null,null,null,null,null,null,null,null,null,"a- Tube en PVC diamètre DN 50.","ML",6,12]
[null,null,null,null,null,null,null,null,null,null,null,null,null,null,null,null,null,null,null,null,null,null,1086,null,null,null,null,null,null,null,null,null,null,null,null,null,null,null,null,null,null,null,null,null,null,"b- Tube en PVC diamètre DN 110.","ML",9,11]
[null,null,null,null,null,null,null,null,null,null,null,null,null,null,null,null,null,null,null,null,null,null,1087,null,null,null,null,null,null,null,null,null,null,null,null,null,null,null,null,null,null,null,null,null,null,"c- Tube en PVC diamètre DN 125.","ML",12,10]
[null,null,null,null,null,null,null,null,null,null,null,null,null,null,null,null,null,null,null,null,null,null,1088,null,null,null,null,null,null,null,null,null,null,null,null,null,null,null,null,null,null,null,null,null,null,"d- Tube en PVC diamètre DN 140.","ML",15,9]
[null,null,null,null,null,null,null,null,null,null,null,null,null,null,null,null,null,null,null,null,null,null,1089,null,null,null,null,null,null,null,null,null,null,null,null,null,null,null,null,null,null,null,null,null,null,"e- Tube en PVC diamètre DN 160.","ML",18,8]
[null,null,null,null,null,null,null,null,null,null,null,null,null,null,null,null,null,null,null,null,null,null,1090,null,null,null,null,null,null,null,null,null,null,null,null,null,null,null,null,null,null,null,null,null,null,"f- Tube en PVC diamètre DN 200.","ML",21,7]
[null,null,null,null,null,null,null,null,null,null,null,null,null,null,null,null,null,null,null,null,null,null,1091,null,null,null,null,null,null,null,null,null,null,null,null,null,null,null,null,null,null,null,null,null,null,"g- Tube en PVC diamètre DN 250.","ML",24,14]
[null,null,null,null,null,null,null,null,null,null,null,null,null,null,null,null,null,null,null,null,null,null,1092,null,null,null,null,null,null,null,null,null,null,null,null,null,null,null,null,null,null,null,null,null,"H.2","Regard de visite",null,27,13]
[null,null,null,null,null,null,null,null,null,null,null,null,null,null,null,null,null,null,null,null,null,null,1093,null,null,null,null,null,null,null,null,null,null,null,null,null,null,null,null,null,null,null,null,null,null,"a- Regard de 40*40*40","UN",30,12]
[null,null,null,null,null,null,null,null,null,null,null,null,null,null,null,null,null,null,null,null,null,null,1094,null,null,null,null,null,null,null,null,null,null,null,null,null,null,null,null,null,null,null,null,null,null,"b- Regard extérieure siphoide 50*50*50.","UN",33,11]
[null,null,null,null,null,null,null,null,null,null,null,null,null,null,null,null,null,null,null,null,null,null,1095,null,null,null,null,null,null,null,null,null,null,null,null,null,null,null,null,null,null,null,null,null,null,"c- Regard 60*60*60","UN",36,10]
[null,null,null,null,null,null,null,null,null,null,null,null,null,null,null,null,null,null,null,null,null,null,1096,null,null,null,null,null,null,null,null,null,null,null,null,null,null,null,null,null,null,null,null,null,null,"d- Regard 80*80*80","UN",39,9]
[null,null,null,null,null,null,null,null,null,null,null,null,null,null,null,null,null,null,null,null,null,null,1097,null,null,null,null,null,null,null,null,null,null,null,null,null,null,null,null,null,null,null,null,null,null,"e- Regard circulaire serie lourde Ø 800","UN",42,8]
[null,null,null,null,null,null,null,null,null,null,null,null,null,null,null,null,null,null,null,null,null,null,1098,null,null,null,null,null,null,null,null,null,null,null,null,null,null,null,null,null,null,null,null,null,"H.3","Raccordement  au réseau ONAS","ENS",45,33]
[null,null,null,null,null,null,null,null,null,null,null,null,null,null,null,null,null,null,null,null,null,null,1099,null,null,null,null,null,null,null,null,null,null,null,null,null,null,null,null,null,null,null,null,null,"H.4","Boite de  branchement Siphoide type ONAS","UN",48,32]
[null,null,null,null,null,null,null,null,null,null,null,null,null,null,null,null,null,null,null,null,null,null,1100,null,null,null,null,null,null,null,null,null,null,null,null,null,null,null,null,null,null,null,null,null,"H.5","Regard de puisard",null,51,31]
[null,null,null,null,null,null,null,null,null,null,null,null,null,null,null,null,null,null,null,null,null,null,1101,null,null,null,null,null,null,null,null,null,null,null,null,null,null,null,null,null,null,null,null,null,null,"100*100","UN",54,30]
[null,null,null,null,null,null,null,null,null,null,null,null,null,null,null,null,null,null,null,null,null,null,1102,null,null,null,null,null,null,null,null,null,null,null,null,null,null,null,null,null,null,null,null,null,"H.6","Caniveau à grille","ML",57,29]
[null,null,null,null,null,null,null,null,null,null,null,null,null,null,null,null,null,null,null,null,null,null,1103,null,null,null,null,null,null,null,null,null,null,null,null,null,null,null,null,null,null,null,null,null,"H.7","Terre végétale","M3",60,28]
[null,null,null,null,null,null,null,null,null,null,null,null,null,null,null,null,null,null,null,null,null,null,1104,null,null,null,null,null,null,null,null,null,null,null,null,null,null,null,null,null,null,null,null,null,"H.8","Gravier sous terre vegetale","M3",63,27]
[null,null,null,null,null,null,null,null,null,null,null,null,null,null,null,null,null,null,null,null,null,null,1105,null,null,null,null,null,null,null,null,null,null,null,null,null,null,null,null,null,null,null,null,null,"H.9","Chape de protection sous sol ","M²",66,26]
[null,null,null,null,null,null,null,null,null,null,null,null,null,null,null,null,null,null,null,null,null,null,1106,null,null,null,null,null,null,null,null,null,null,null,null,null,null,null,null,null,null,null,null,null,"H.10","Pavés  autobloquants","M²",69,25]
[null,null,null,null,null,null,null,null,null,null,null,null,null,null,null,null,null,null,null,null,null,null,1107,null,null,null,null,null,null,null,null,null,null,null,null,null,null,null,null,null,null,null,null,null,null,null,"TOTAL AMENAGEMENT EXTERIEUR "]
[null,null,null,null,null,null,null,null,null,null,null,null,null,null,null,null,null,null,null,null,null,null,1108]
[null,null,null,null,null,null,null,null,null,null,null,null,null,null,null,null,null,null,null,null,null,null,1109]
[null,null,null,null,null,null,null,null,null,null,null,null,null,null,null,null,null,null,null,null,null,null,1110]
[null,null,null,null,null,null,null,null,null,null,null,null,null,null,null,null,null,null,null,null,null,null,1111]
[null,null,null,null,null,null,null,null,null,null,null,null,null,null,null,null,null,null,null,null,null,null,1112]
[null,null,null,null,null,null,null,null,null,null,null,null,null,null,null,null,null,null,null,null,null,null,1113]
[null,null,null,null,null,null,null,null,null,null,null,null,null,null,null,null,null,null,null,null,null,null,1114]
[null,null,null,null,null,null,null,null,null,null,null,null,null,null,null,null,null,null,null,null,null,null,1115]
[null,null,null,null,null,null,null,null,null,null,null,null,null,null,null,null,null,null,null,null,null,null,1116]
[null,null,null,null,null,null,null,null,null,null,null,null,null,null,null,null,null,null,null,null,null,null,1117]
[null,null,null,null,null,null,null,null,null,null,null,null,null,null,null,null,null,null,null,null,null,null,1118]
[null,null,null,null,null,null,null,null,null,null,null,null,null,null,null,null,null,null,null,null,null,null,1119]
[null,null,null,null,null,null,null,null,null,null,null,null,null,null,null,null,null,null,null,null,null,null,1120]
[null,null,null,null,null,null,null,null,null,null,null,null,null,null,null,null,null,null,null,null,null,null,1121]
[null,null,null,null,null,null,null,null,null,null,null,null,null,null,null,null,null,null,null,null,null,null,1122]
[null,null,null,null,null,null,null,null,null,null,null,null,null,null,null,null,null,null,null,null,null,null,1123]
[null,null,null,null,null,null,null,null,null,null,null,null,null,null,null,null,null,null,null,null,null,null,1124]
[null,null,null,null,null,null,null,null,null,null,null,null,null,null,null,null,null,null,null,null,null,null,1125]
[null,null,null,null,null,null,null,null,null,null,null,null,null,null,null,null,null,null,null,null,null,null,1126]
[null,null,null,null,null,null,null,null,null,null,null,null,null,null,null,null,null,null,null,null,null,null,1127]
[null,null,null,null,null,null,null,null,null,null,null,null,null,null,null,null,null,null,null,null,null,null,1128]
[null,null,null,null,null,null,null,null,null,null,null,null,null,null,null,null,null,null,null,null,null,null,1129]
[null,null,null,null,null,null,null,null,null,null,null,null,null,null,null,null,null,null,null,null,null,null,1130]
[null,null,null,null,null,null,null,null,null,null,null,null,null,null,null,null,null,null,null,null,null,null,1131]
[null,null,null,null,null,null,null,null,null,null,null,null,null,null,null,null,null,null,null,null,null,null,1132]
[null,null,null,null,null,null,null,null,null,null,null,null,null,null,null,null,null,null,null,null,null,null,1133]
[null,null,null,null,null,null,null,null,null,null,null,null,null,null,null,null,null,null,null,null,null,null,1134]
[null,null,null,null,null,null,null,null,null,null,null,null,null,null,null,null,null,null,null,null,null,null,1135]
[null,null,null,null,null,null,null,null,null,null,null,null,null,null,null,null,null,null,null,null,null,null,1136]
[null,null,null,null,null,null,null,null,null,null,null,null,null,null,null,null,null,null,null,null,null,null,1137]
[null,null,null,null,null,null,null,null,null,null,null,null,null,null,null,null,null,null,null,null,null,null,1138]
[null,null,null,null,null,null,null,null,null,null,null,null,null,null,null,null,null,null,null,null,null,null,1139]
[null,null,null,null,null,null,null,null,null,null,null,null,null,null,null,null,null,null,null,null,null,null,1140]
[null,null,null,null,null,null,null,null,null,null,null,null,null,null,null,null,null,null,null,null,null,null,1141]
[null,null,null,null,null,null,null,null,null,null,null,null,null,null,null,null,null,null,null,null,null,null,1142]
[null,null,null,null,null,null,null,null,null,null,null,null,null,null,null,null,null,null,null,null,null,null,1143]
[null,null,null,null,null,null,null,null,null,null,null,null,null,null,null,null,null,null,null,null,null,null,1144]
[null,null,null,null,null,null,null,null,null,null,null,null,null,null,null,null,null,null,null,null,null,null,1145]
[null,null,null,null,null,null,null,null,null,null,null,null,null,null,null,null,null,null,null,null,null,null,1146]
[null,null,null,null,null,null,null,null,null,null,null,null,null,null,null,null,null,null,null,null,null,null,1147]
[null,null,null,null,null,null,null,null,null,null,null,null,null,null,null,null,null,null,null,null,null,null,1148]
[null,null,null,null,null,null,null,null,null,null,null,null,null,null,null,null,null,null,null,null,null,null,1149]
[null,null,null,null,null,null,null,null,null,null,null,null,null,null,null,null,null,null,null,null,null,null,1150]
[null,null,null,null,null,null,null,null,null,null,null,null,null,null,null,null,null,null,null,null,null,null,1151]
[null,null,null,null,null,null,null,null,null,null,null,null,null,null,null,null,null,null,null,null,null,null,1152]
[null,null,null,null,null,null,null,null,null,null,null,null,null,null,null,null,null,null,null,null,null,null,1153]
[null,null,null,null,null,null,null,null,null,null,null,null,null,null,null,null,null,null,null,null,null,null,1154]
[null,null,null,null,null,null,null,null,null,null,null,null,null,null,null,null,null,null,null,null,null,null,1155]
[null,null,null,null,null,null,null,null,null,null,null,null,null,null,null,null,null,null,null,null,null,null,1156]
[null,null,null,null,null,null,null,null,null,null,null,null,null,null,null,null,null,null,null,null,null,null,1157]
[null,null,null,null,null,null,null,null,null,null,null,null,null,null,null,null,null,null,null,null,null,null,1158]
[null,null,null,null,null,null,null,null,null,null,null,null,null,null,null,null,null,null,null,null,null,null,1159]
[null,null,null,null,null,null,null,null,null,null,null,null,null,null,null,null,null,null,null,null,null,null,1160]
[null,null,null,null,null,null,null,null,null,null,null,null,null,null,null,null,null,null,null,null,null,null,1161]
[null,null,null,null,null,null,null,null,null,null,null,null,null,null,null,null,null,null,null,null,null,null,1162]
[null,null,null,null,null,null,null,null,null,null,null,null,null,null,null,null,null,null,null,null,null,null,1163]
[null,null,null,null,null,null,null,null,null,null,null,null,null,null,null,null,null,null,null,null,null,null,1164]
[null,null,null,null,null,null,null,null,null,null,null,null,null,null,null,null,null,null,null,null,null,null,1165]
[null,null,null,null,null,null,null,null,null,null,null,null,null,null,null,null,null,null,null,null,null,null,1166]
[null,null,null,null,null,null,null,null,null,null,null,null,null,null,null,null,null,null,null,null,null,null,1167]
[null,null,null,null,null,null,null,null,null,null,null,null,null,null,null,null,null,null,null,null,null,null,1168]
[null,null,null,null,null,null,null,null,null,null,null,null,null,null,null,null,null,null,null,null,null,null,1169]
[null,null,null,null,null,null,null,null,null,null,null,null,null,null,null,null,null,null,null,null,null,null,1170]
[null,null,null,null,null,null,null,null,null,null,null,null,null,null,null,null,null,null,null,null,null,null,1171]
[null,null,null,null,null,null,null,null,null,null,null,null,null,null,null,null,null,null,null,null,null,null,1172]
[null,null,null,null,null,null,null,null,null,null,null,null,null,null,null,null,null,null,null,null,null,null,1173]
[null,null,null,null,null,null,null,null,null,null,null,null,null,null,null,null,null,null,null,null,null,null,1174]
[null,null,null,null,null,null,null,null,null,null,null,null,null,null,null,null,null,null,null,null,null,null,1175]
[null,null,null,null,null,null,null,null,null,null,null,null,null,null,null,null,null,null,null,null,null,null,1176]
[null,null,null,null,null,null,null,null,null,null,null,null,null,null,null,null,null,null,null,null,null,null,1177]
[null,null,null,null,null,null,null,null,null,null,null,null,null,null,null,null,null,null,null,null,null,null,1178]
[null,null,null,null,null,null,null,null,null,null,null,null,null,null,null,null,null,null,null,null,null,null,1179]
[null,null,null,null,null,null,null,null,null,null,null,null,null,null,null,null,null,null,null,null,null,null,1180]
[null,null,null,null,null,null,null,null,null,null,null,null,null,null,null,null,null,null,null,null,null,null,1181]
[null,null,null,null,null,null,null,null,null,null,null,null,null,null,null,null,null,null,null,null,null,null,1182]
[null,null,null,null,null,null,null,null,null,null,null,null,null,null,null,null,null,null,null,null,null,null,1183]
[null,null,null,null,null,null,null,null,null,null,null,null,null,null,null,null,null,null,null,null,null,null,1184]
[null,null,null,null,null,null,null,null,null,null,null,null,null,null,null,null,null,null,null,null,null,null,1185]
[null,null,null,null,null,null,null,null,null,null,null,null,null,null,null,null,null,null,null,null,null,null,1186]
[null,null,null,null,null,null,null,null,null,null,null,null,null,null,null,null,null,null,null,null,null,null,1187]
[null,null,null,null,null,null,null,null,null,null,null,null,null,null,null,null,null,null,null,null,null,null,1188]
[null,null,null,null,null,null,null,null,null,null,null,null,null,null,null,null,null,null,null,null,null,null,1189]
[null,null,null,null,null,null,null,null,null,null,null,null,null,null,null,null,null,null,null,null,null,null,1190]
[null,null,null,null,null,null,null,null,null,null,null,null,null,null,null,null,null,null,null,null,null,null,1191]
[null,null,null,null,null,null,null,null,null,null,null,null,null,null,null,null,null,null,null,null,null,null,1192]
[null,null,null,null,null,null,null,null,null,null,null,null,null,null,null,null,null,null,null,null,null,null,1193]
[null,null,null,null,null,null,null,null,null,null,null,null,null,null,null,null,null,null,null,null,null,null,1194]
[null,null,null,null,null,null,null,null,null,null,null,null,null,null,null,null,null,null,null,null,null,null,1195]
[null,null,null,null,null,null,null,null,null,null,null,null,null,null,null,null,null,null,null,null,null,null,1196]
[null,null,null,null,null,null,null,null,null,null,null,null,null,null,null,null,null,null,null,null,null,null,1197]
[null,null,null,null,null,null,null,null,null,null,null,null,null,null,null,null,null,null,null,null,null,null,1198]
[null,null,null,null,null,null,null,null,null,null,null,null,null,null,null,null,null,null,null,null,null,null,1199]
[null,null,null,null,null,null,null,null,null,null,null,null,null,null,null,null,null,null,null,null,null,null,1200]
[null,null,null,null,null,null,null,null,null,null,null,null,null,null,null,null,null,null,null,null,null,null,1201]
[null,null,null,null,null,null,null,null,null,null,null,null,null,null,null,null,null,null,null,null,null,null,1202]
[null,null,null,null,null,null,null,null,null,null,null,null,null,null,null,null,null,null,null,null,null,null,1203]
[null,null,null,null,null,null,null,null,null,null,null,null,null,null,null,null,null,null,null,null,null,null,1204]
[null,null,null,null,null,null,null,null,null,null,null,null,null,null,null,null,null,null,null,null,null,null,1205]
[null,null,null,null,null,null,null,null,null,null,null,null,null,null,null,null,null,null,null,null,null,null,1206]
[null,null,null,null,null,null,null,null,null,null,null,null,null,null,null,null,null,null,null,null,null,null,1207]
[null,null,null,null,null,null,null,null,null,null,null,null,null,null,null,null,null,null,null,null,null,null,1208]
[null,null,null,null,null,null,null,null,null,null,null,null,null,null,null,null,null,null,null,null,null,null,1209]
[null,null,null,null,null,null,null,null,null,null,null,null,null,null,null,null,null,null,null,null,null,null,1210]
[null,null,null,null,null,null,null,null,null,null,null,null,null,null,null,null,null,null,null,null,null,null,1211]
[null,null,null,null,null,null,null,null,null,null,null,null,null,null,null,null,null,null,null,null,null,null,1212]
[null,null,null,null,null,null,null,null,null,null,null,null,null,null,null,null,null,null,null,null,null,null,1213]
[null,null,null,null,null,null,null,null,null,null,null,null,null,null,null,null,null,null,null,null,null,null,1214]
[null,null,null,null,null,null,null,null,null,null,null,null,null,null,null,null,null,null,null,null,null,null,1215]
[null,null,null,null,null,null,null,null,null,null,null,null,null,null,null,null,null,null,null,null,null,null,1216]
[null,null,null,null,null,null,null,null,null,null,null,null,null,null,null,null,null,null,null,null,null,null,1217]
[null,null,null,null,null,null,null,null,null,null,null,null,null,null,null,null,null,null,null,null,null,null,1218]
[null,null,null,null,null,null,null,null,null,null,null,null,null,null,null,null,null,null,null,null,null,null,1219]
[null,null,null,null,null,null,null,null,null,null,null,null,null,null,null,null,null,null,null,null,null,null,1220]
[null,null,null,null,null,null,null,null,null,null,null,null,null,null,null,null,null,null,null,null,null,null,1221]
[null,null,null,null,null,null,null,null,null,null,null,null,null,null,null,null,null,null,null,null,null,null,1222]
[null,null,null,null,null,null,null,null,null,null,null,null,null,null,null,null,null,null,null,null,null,null,1223]
[null,null,null,null,null,null,null,null,null,null,null,null,null,null,null,null,null,null,null,null,null,null,1224]
[null,null,null,null,null,null,null,null,null,null,null,null,null,null,null,null,null,null,null,null,null,null,1225]
[null,null,null,null,null,null,null,null,null,null,null,null,null,null,null,null,null,null,null,null,null,null,1226]
[null,null,null,null,null,null,null,null,null,null,null,null,null,null,null,null,null,null,null,null,null,null,1227]
[null,null,null,null,null,null,null,null,null,null,null,null,null,null,null,null,null,null,null,null,null,null,1228]
[null,null,null,null,null,null,null,null,null,null,null,null,null,null,null,null,null,null,null,null,null,null,1229]
[null,null,null,null,null,null,null,null,null,null,null,null,null,null,null,null,null,null,null,null,null,null,1230]
[null,null,null,null,null,null,null,null,null,null,null,null,null,null,null,null,null,null,null,null,null,null,1231]
[null,null,null,null,null,null,null,null,null,null,null,null,null,null,null,null,null,null,null,null,null,null,1232]
[null,null,null,null,null,null,null,null,null,null,null,null,null,null,null,null,null,null,null,null,null,null,1233]
[null,null,null,null,null,null,null,null,null,null,null,null,null,null,null,null,null,null,null,null,null,null,1234]
[null,null,null,null,null,null,null,null,null,null,null,null,null,null,null,null,null,null,null,null,null,null,1235]
[null,null,null,null,null,null,null,null,null,null,null,null,null,null,null,null,null,null,null,null,null,null,1236]
[null,null,null,null,null,null,null,null,null,null,null,null,null,null,null,null,null,null,null,null,null,null,1237]
[null,null,null,null,null,null,null,null,null,null,null,null,null,null,null,null,null,null,null,null,null,null,1238]
[null,null,null,null,null,null,null,null,null,null,null,null,null,null,null,null,null,null,null,null,null,null,1239]
[null,null,null,null,null,null,null,null,null,null,null,null,null,null,null,null,null,null,null,null,null,null,1240]
[null,null,null,null,null,null,null,null,null,null,null,null,null,null,null,null,null,null,null,null,null,null,1241]
[null,null,null,null,null,null,null,null,null,null,null,null,null,null,null,null,null,null,null,null,null,null,1242]
[null,null,null,null,null,null,null,null,null,null,null,null,null,null,null,null,null,null,null,null,null,null,1243]
[null,null,null,null,null,null,null,null,null,null,null,null,null,null,null,null,null,null,null,null,null,null,1244]
[null,null,null,null,null,null,null,null,null,null,null,null,null,null,null,null,null,null,null,null,null,null,1245]
[null,null,null,null,null,null,null,null,null,null,null,null,null,null,null,null,null,null,null,null,null,null,1246]
[null,null,null,null,null,null,null,null,null,null,null,null,null,null,null,null,null,null,null,null,null,null,1247]
[null,null,null,null,null,null,null,null,null,null,null,null,null,null,null,null,null,null,null,null,null,null,1248]
[null,null,null,null,null,null,null,null,null,null,null,null,null,null,null,null,null,null,null,null,null,null,1249]
[null,null,null,null,null,null,null,null,null,null,null,null,null,null,null,null,null,null,null,null,null,null,1250]
[null,null,null,null,null,null,null,null,null,null,null,null,null,null,null,null,null,null,null,null,null,null,1251]
[null,null,null,null,null,null,null,null,null,null,null,null,null,null,null,null,null,null,null,null,null,null,1252]
[null,null,null,null,null,null,null,null,null,null,null,null,null,null,null,null,null,null,null,null,null,null,1253]
[null,null,null,null,null,null,null,null,null,null,null,null,null,null,null,null,null,null,null,null,null,null,1254]
[null,null,null,null,null,null,null,null,null,null,null,null,null,null,null,null,null,null,null,null,null,null,1255]
[null,null,null,null,null,null,null,null,null,null,null,null,null,null,null,null,null,null,null,null,null,null,1256]
[null,null,null,null,null,null,null,null,null,null,null,null,null,null,null,null,null,null,null,null,null,null,1257]
[null,null,null,null,null,null,null,null,null,null,null,null,null,null,null,null,null,null,null,null,null,null,1258]
[null,null,null,null,null,null,null,null,null,null,null,null,null,null,null,null,null,null,null,null,null,null,1259]
[null,null,null,null,null,null,null,null,null,null,null,null,null,null,null,null,null,null,null,null,null,null,1260]
[null,null,null,null,null,null,null,null,null,null,null,null,null,null,null,null,null,null,null,null,null,null,1261]
[null,null,null,null,null,null,null,null,null,null,null,null,null,null,null,null,null,null,null,null,null,null,1262]
[null,null,null,null,null,null,null,null,null,null,null,null,null,null,null,null,null,null,null,null,null,null,1263]
[null,null,null,null,null,null,null,null,null,null,null,null,null,null,null,null,null,null,null,null,null,null,1264]
[null,null,null,null,null,null,null,null,null,null,null,null,null,null,null,null,null,null,null,null,null,null,1265]
[null,null,null,null,null,null,null,null,null,null,null,null,null,null,null,null,null,null,null,null,null,null,1266]
[null,null,null,null,null,null,null,null,null,null,null,null,null,null,null,null,null,null,null,null,null,null,1267]
[null,null,null,null,null,null,null,null,null,null,null,null,null,null,null,null,null,null,null,null,null,null,1268]
[null,null,null,null,null,null,null,null,null,null,null,null,null,null,null,null,null,null,null,null,null,null,1269]
[null,null,null,null,null,null,null,null,null,null,null,null,null,null,null,null,null,null,null,null,null,null,1270]
[null,null,null,null,null,null,null,null,null,null,null,null,null,null,null,null,null,null,null,null,null,null,1271]
[null,null,null,null,null,null,null,null,null,null,null,null,null,null,null,null,null,null,null,null,null,null,1272]
[null,null,null,null,null,null,null,null,null,null,null,null,null,null,null,null,null,null,null,null,null,null,1273]
[null,null,null,null,null,null,null,null,null,null,null,null,null,null,null,null,null,null,null,null,null,null,1274]
[null,null,null,null,null,null,null,null,null,null,null,null,null,null,null,null,null,null,null,null,null,null,1275]
[null,null,null,null,null,null,null,null,null,null,null,null,null,null,null,null,null,null,null,null,null,null,1276]
[null,null,null,null,null,null,null,null,null,null,null,null,null,null,null,null,null,null,null,null,null,null,1277]
[null,null,null,null,null,null,null,null,null,null,null,null,null,null,null,null,null,null,null,null,null,null,1278]
[null,null,null,null,null,null,null,null,null,null,null,null,null,null,null,null,null,null,null,null,null,null,1279]
[null,null,null,null,null,null,null,null,null,null,null,null,null,null,null,null,null,null,null,null,null,null,1280]
[null,null,null,null,null,null,null,null,null,null,null,null,null,null,null,null,null,null,null,null,null,null,1281]
[null,null,null,null,null,null,null,null,null,null,null,null,null,null,null,null,null,null,null,null,null,null,1282]
[null,null,null,null,null,null,null,null,null,null,null,null,null,null,null,null,null,null,null,null,null,null,1283]
[null,null,null,null,null,null,null,null,null,null,null,null,null,null,null,null,null,null,null,null,null,null,1284]
[null,null,null,null,null,null,null,null,null,null,null,null,null,null,null,null,null,null,null,null,null,null,1285]
[null,null,null,null,null,null,null,null,null,null,null,null,null,null,null,null,null,null,null,null,null,null,1286]
[null,null,null,null,null,null,null,null,null,null,null,null,null,null,null,null,null,null,null,null,null,null,1287]
[null,null,null,null,null,null,null,null,null,null,null,null,null,null,null,null,null,null,null,null,null,null,1288]
[null,null,null,null,null,null,null,null,null,null,null,null,null,null,null,null,null,null,null,null,null,null,1289]
[null,null,null,null,null,null,null,null,null,null,null,null,null,null,null,null,null,null,null,null,null,null,1290]
[null,null,null,null,null,null,null,null,null,null,null,null,null,null,null,null,null,null,null,null,null,null,1291]
[null,null,null,null,null,null,null,null,null,null,null,null,null,null,null,null,null,null,null,null,null,null,1292]
[null,null,null,null,null,null,null,null,null,null,null,null,null,null,null,null,null,null,null,null,null,null,1293]
[null,null,null,null,null,null,null,null,null,null,null,null,null,null,null,null,null,null,null,null,null,null,1294]
[null,null,null,null,null,null,null,null,null,null,null,null,null,null,null,null,null,null,null,null,null,null,1295]
[null,null,null,null,null,null,null,null,null,null,null,null,null,null,null,null,null,null,null,null,null,null,1296]
[null,null,null,null,null,null,null,null,null,null,null,null,null,null,null,null,null,null,null,null,null,null,1297]
[null,null,null,null,null,null,null,null,null,null,null,null,null,null,null,null,null,null,null,null,null,null,1298]
[null,null,null,null,null,null,null,null,null,null,null,null,null,null,null,null,null,null,null,null,null,null,1299]
[null,null,null,null,null,null,null,null,null,null,null,null,null,null,null,null,null,null,null,null,null,null,1300]
[null,null,null,null,null,null,null,null,null,null,null,null,null,null,null,null,null,null,null,null,null,null,1301]
[null,null,null,null,null,null,null,null,null,null,null,null,null,null,null,null,null,null,null,null,null,null,1302]
[null,null,null,null,null,null,null,null,null,null,null,null,null,null,null,null,null,null,null,null,null,null,1303]
[null,null,null,null,null,null,null,null,null,null,null,null,null,null,null,null,null,null,null,null,null,null,1304]
[null,null,null,null,null,null,null,null,null,null,null,null,null,null,null,null,null,null,null,null,null,null,1305]
[null,null,null,null,null,null,null,null,null,null,null,null,null,null,null,null,null,null,null,null,null,null,1306]
[null,null,null,null,null,null,null,null,null,null,null,null,null,null,null,null,null,null,null,null,null,null,1307]
[null,null,null,null,null,null,null,null,null,null,null,null,null,null,null,null,null,null,null,null,null,null,1308]
[null,null,null,null,null,null,null,null,null,null,null,null,null,null,null,null,null,null,null,null,null,null,1309]
[null,null,null,null,null,null,null,null,null,null,null,null,null,null,null,null,null,null,null,null,null,null,1310]
[null,null,null,null,null,null,null,null,null,null,null,null,null,null,null,null,null,null,null,null,null,null,1311]
[null,null,null,null,null,null,null,null,null,null,null,null,null,null,null,null,null,null,null,null,null,null,1312]
[null,null,null,null,null,null,null,null,null,null,null,null,null,null,null,null,null,null,null,null,null,null,1313]
[null,null,null,null,null,null,null,null,null,null,null,null,null,null,null,null,null,null,null,null,null,null,1314]
[null,null,null,null,null,null,null,null,null,null,null,null,null,null,null,null,null,null,null,null,null,null,1315]
[null,null,null,null,null,null,null,null,null,null,null,null,null,null,null,null,null,null,null,null,null,null,1316]
[null,null,null,null,null,null,null,null,null,null,null,null,null,null,null,null,null,null,null,null,null,null,1317]
[null,null,null,null,null,null,null,null,null,null,null,null,null,null,null,null,null,null,null,null,null,null,1318]
[null,null,null,null,null,null,null,null,null,null,null,null,null,null,null,null,null,null,null,null,null,null,1319]
[null,null,null,null,null,null,null,null,null,null,null,null,null,null,null,null,null,null,null,null,null,null,1320]
[null,null,null,null,null,null,null,null,null,null,null,null,null,null,null,null,null,null,null,null,null,null,1321]
[null,null,null,null,null,null,null,null,null,null,null,null,null,null,null,null,null,null,null,null,null,null,1322]
[null,null,null,null,null,null,null,null,null,null,null,null,null,null,null,null,null,null,null,null,null,null,1323]
[null,null,null,null,null,null,null,null,null,null,null,null,null,null,null,null,null,null,null,null,null,null,1324]
[null,null,null,null,null,null,null,null,null,null,null,null,null,null,null,null,null,null,null,null,null,null,1325]
[null,null,null,null,null,null,null,null,null,null,null,null,null,null,null,null,null,null,null,null,null,null,1326]
[null,null,null,null,null,null,null,null,null,null,null,null,null,null,null,null,null,null,null,null,null,null,1327]
[null,null,null,null,null,null,null,null,null,null,null,null,null,null,null,null,null,null,null,null,null,null,1328]
[null,null,null,null,null,null,null,null,null,null,null,null,null,null,null,null,null,null,null,null,null,null,1329]
[null,null,null,null,null,null,null,null,null,null,null,null,null,null,null,null,null,null,null,null,null,null,1330]
[null,null,null,null,null,null,null,null,null,null,null,null,null,null,null,null,null,null,null,null,null,null,1331]
[null,null,null,null,null,null,null,null,null,null,null,null,null,null,null,null,null,null,null,null,null,null,1332]
[null,null,null,null,null,null,null,null,null,null,null,null,null,null,null,null,null,null,null,null,null,null,1333]
[null,null,null,null,null,null,null,null,null,null,null,null,null,null,null,null,null,null,null,null,null,null,1334]
[null,null,null,null,null,null,null,null,null,null,null,null,null,null,null,null,null,null,null,null,null,null,1335]
[null,null,null,null,null,null,null,null,null,null,null,null,null,null,null,null,null,null,null,null,null,null,1336]
[null,null,null,null,null,null,null,null,null,null,null,null,null,null,null,null,null,null,null,null,null,null,1337]
[null,null,null,null,null,null,null,null,null,null,null,null,null,null,null,null,null,null,null,null,null,null,1338]
[null,null,null,null,null,null,null,null,null,null,null,null,null,null,null,null,null,null,null,null,null,null,1339]
[null,null,null,null,null,null,null,null,null,null,null,null,null,null,null,null,null,null,null,null,null,null,1340]
[null,null,null,null,null,null,null,null,null,null,null,null,null,null,null,null,null,null,null,null,null,null,1341]
[null,null,null,null,null,null,null,null,null,null,null,null,null,null,null,null,null,null,null,null,null,null,1342]
[null,null,null,null,null,null,null,null,null,null,null,null,null,null,null,null,null,null,null,null,null,null,1343]
[null,null,null,null,null,null,null,null,null,null,null,null,null,null,null,null,null,null,null,null,null,null,1344]
[null,null,null,null,null,null,null,null,null,null,null,null,null,null,null,null,null,null,null,null,null,null,1345]
[null,null,null,null,null,null,null,null,null,null,null,null,null,null,null,null,null,null,null,null,null,null,1346]
[null,null,null,null,null,null,null,null,null,null,null,null,null,null,null,null,null,null,null,null,null,null,1347]
[null,null,null,null,null,null,null,null,null,null,null,null,null,null,null,null,null,null,null,null,null,null,1348]
[null,null,null,null,null,null,null,null,null,null,null,null,null,null,null,null,null,null,null,null,null,null,1349]
[null,null,null,null,null,null,null,null,null,null,null,null,null,null,null,null,null,null,null,null,null,null,1350]
[null,null,null,null,null,null,null,null,null,null,null,null,null,null,null,null,null,null,null,null,null,null,1351]
[null,null,null,null,null,null,null,null,null,null,null,null,null,null,null,null,null,null,null,null,null,null,1352]
[null,null,null,null,null,null,null,null,null,null,null,null,null,null,null,null,null,null,null,null,null,null,1353]
[null,null,null,null,null,null,null,null,null,null,null,null,null,null,null,null,null,null,null,null,null,null,1354]
[null,null,null,null,null,null,null,null,null,null,null,null,null,null,null,null,null,null,null,null,null,null,1355]
[null,null,null,null,null,null,null,null,null,null,null,null,null,null,null,null,null,null,null,null,null,null,1356]
[null,null,null,null,null,null,null,null,null,null,null,null,null,null,null,null,null,null,null,null,null,null,1357]
[null,null,null,null,null,null,null,null,null,null,null,null,null,null,null,null,null,null,null,null,null,null,1358]
[null,null,null,null,null,null,null,null,null,null,null,null,null,null,null,null,null,null,null,null,null,null,1359]
[null,null,null,null,null,null,null,null,null,null,null,null,null,null,null,null,null,null,null,null,null,null,1360]
[null,null,null,null,null,null,null,null,null,null,null,null,null,null,null,null,null,null,null,null,null,null,1361]
[null,null,null,null,null,null,null,null,null,null,null,null,null,null,null,null,null,null,null,null,null,null,1362]
[null,null,null,null,null,null,null,null,null,null,null,null,null,null,null,null,null,null,null,null,null,null,1363]
[null,null,null,null,null,null,null,null,null,null,null,null,null,null,null,null,null,null,null,null,null,null,1364]
[null,null,null,null,null,null,null,null,null,null,null,null,null,null,null,null,null,null,null,null,null,null,1365]
[null,null,null,null,null,null,null,null,null,null,null,null,null,null,null,null,null,null,null,null,null,null,1366]
[null,null,null,null,null,null,null,null,null,null,null,null,null,null,null,null,null,null,null,null,null,null,1367]
[null,null,null,null,null,null,null,null,null,null,null,null,null,null,null,null,null,null,null,null,null,null,1368]
[null,null,null,null,null,null,null,null,null,null,null,null,null,null,null,null,null,null,null,null,null,null,1369]
[null,null,null,null,null,null,null,null,null,null,null,null,null,null,null,null,null,null,null,null,null,null,1370]
[null,null,null,null,null,null,null,null,null,null,null,null,null,null,null,null,null,null,null,null,null,null,1371]
[null,null,null,null,null,null,null,null,null,null,null,null,null,null,null,null,null,null,null,null,null,null,1372]
[null,null,null,null,null,null,null,null,null,null,null,null,null,null,null,null,null,null,null,null,null,null,1373]
[null,null,null,null,null,null,null,null,null,null,null,null,null,null,null,null,null,null,null,null,null,null,1374]
[null,null,null,null,null,null,null,null,null,null,null,null,null,null,null,null,null,null,null,null,null,null,1375]
[null,null,null,null,null,null,null,null,null,null,null,null,null,null,null,null,null,null,null,null,null,null,1376]
[null,null,null,null,null,null,null,null,null,null,null,null,null,null,null,null,null,null,null,null,null,null,1377]
[null,null,null,null,null,null,null,null,null,null,null,null,null,null,null,null,null,null,null,null,null,null,1378]
[null,null,null,null,null,null,null,null,null,null,null,null,null,null,null,null,null,null,null,null,null,null,1379]
[null,null,null,null,null,null,null,null,null,null,null,null,null,null,null,null,null,null,null,null,null,null,1380]
[null,null,null,null,null,null,null,null,null,null,null,null,null,null,null,null,null,null,null,null,null,null,1381]
[null,null,null,null,null,null,null,null,null,null,null,null,null,null,null,null,null,null,null,null,null,null,1382]
[null,null,null,null,null,null,null,null,null,null,null,null,null,null,null,null,null,null,null,null,null,null,1383]
[null,null,null,null,null,null,null,null,null,null,null,null,null,null,null,null,null,null,null,null,null,null,1384]
[null,null,null,null,null,null,null,null,null,null,null,null,null,null,null,null,null,null,null,null,null,null,1385]
[null,null,null,null,null,null,null,null,null,null,null,null,null,null,null,null,null,null,null,null,null,null,1386]
[null,null,null,null,null,null,null,null,null,null,null,null,null,null,null,null,null,null,null,null,null,null,1387]
[null,null,null,null,null,null,null,null,null,null,null,null,null,null,null,null,null,null,null,null,null,null,1388]
[null,null,null,null,null,null,null,null,null,null,null,null,null,null,null,null,null,null,null,null,null,null,1389]
[null,null,null,null,null,null,null,null,null,null,null,null,null,null,null,null,null,null,null,null,null,null,1390]
[null,null,null,null,null,null,null,null,null,null,null,null,null,null,null,null,null,null,null,null,null,null,1391]
[null,null,null,null,null,null,null,null,null,null,null,null,null,null,null,null,null,null,null,null,null,null,1392]
[null,null,null,null,null,null,null,null,null,null,null,null,null,null,null,null,null,null,null,null,null,null,1393]
[null,null,null,null,null,null,null,null,null,null,null,null,null,null,null,null,null,null,null,null,null,null,1394]
[null,null,null,null,null,null,null,null,null,null,null,null,null,null,null,null,null,null,null,null,null,null,1395]
[null,null,null,null,null,null,null,null,null,null,null,null,null,null,null,null,null,null,null,null,null,null,1396]
[null,null,null,null,null,null,null,null,null,null,null,null,null,null,null,null,null,null,null,null,null,null,1397]
[null,null,null,null,null,null,null,null,null,null,null,null,null,null,null,null,null,null,null,null,null,null,1398]
[null,null,null,null,null,null,null,null,null,null,null,null,null,null,null,null,null,null,null,null,null,null,1399]
[null,null,null,null,null,null,null,null,null,null,null,null,null,null,null,null,null,null,null,null,null,null,1400]
[null,null,null,null,null,null,null,null,null,null,null,null,null,null,null,null,null,null,null,null,null,null,1401]
[null,null,null,null,null,null,null,null,null,null,null,null,null,null,null,null,null,null,null,null,null,null,1402]
[null,null,null,null,null,null,null,null,null,null,null,null,null,null,null,null,null,null,null,null,null,null,1403]
[null,null,null,null,null,null,null,null,null,null,null,null,null,null,null,null,null,null,null,null,null,null,1404]
[null,null,null,null,null,null,null,null,null,null,null,null,null,null,null,null,null,null,null,null,null,null,1405]
[null,null,null,null,null,null,null,null,null,null,null,null,null,null,null,null,null,null,null,null,null,null,1406]
[null,null,null,null,null,null,null,null,null,null,null,null,null,null,null,null,null,null,null,null,null,null,1407]
[null,null,null,null,null,null,null,null,null,null,null,null,null,null,null,null,null,null,null,null,null,null,1408]
[null,null,null,null,null,null,null,null,null,null,null,null,null,null,null,null,null,null,null,null,null,null,1409]
[null,null,null,null,null,null,null,null,null,null,null,null,null,null,null,null,null,null,null,null,null,null,1410]
[null,null,null,null,null,null,null,null,null,null,null,null,null,null,null,null,null,null,null,null,null,null,1411]
[null,null,null,null,null,null,null,null,null,null,null,null,null,null,null,null,null,null,null,null,null,null,1412]
[null,null,null,null,null,null,null,null,null,null,null,null,null,null,null,null,null,null,null,null,null,null,1413]
[null,null,null,null,null,null,null,null,null,null,null,null,null,null,null,null,null,null,null,null,null,null,1414]
[null,null,null,null,null,null,null,null,null,null,null,null,null,null,null,null,null,null,null,null,null,null,1415]
[null,null,null,null,null,null,null,null,null,null,null,null,null,null,null,null,null,null,null,null,null,null,1416]
[null,null,null,null,null,null,null,null,null,null,null,null,null,null,null,null,null,null,null,null,null,null,1417]
[null,null,null,null,null,null,null,null,null,null,null,null,null,null,null,null,null,null,null,null,null,null,1418]
[null,null,null,null,null,null,null,null,null,null,null,null,null,null,null,null,null,null,null,null,null,null,1419]
[null,null,null,null,null,null,null,null,null,null,null,null,null,null,null,null,null,null,null,null,null,null,1420]
[null,null,null,null,null,null,null,null,null,null,null,null,null,null,null,null,null,null,null,null,null,null,1421]
[null,null,null,null,null,null,null,null,null,null,null,null,null,null,null,null,null,null,null,null,null,null,1422]
[null,null,null,null,null,null,null,null,null,null,null,null,null,null,null,null,null,null,null,null,null,null,1423]
[null,null,null,null,null,null,null,null,null,null,null,null,null,null,null,null,null,null,null,null,null,null,1424]
[null,null,null,null,null,null,null,null,null,null,null,null,null,null,null,null,null,null,null,null,null,null,1425]
[null,null,null,null,null,null,null,null,null,null,null,null,null,null,null,null,null,null,null,null,null,null,1426]
[null,null,null,null,null,null,null,null,null,null,null,null,null,null,null,null,null,null,null,null,null,null,1427]
[null,null,null,null,null,null,null,null,null,null,null,null,null,null,null,null,null,null,null,null,null,null,1428]
[null,null,null,null,null,null,null,null,null,null,null,null,null,null,null,null,null,null,null,null,null,null,1429]
[null,null,null,null,null,null,null,null,null,null,null,null,null,null,null,null,null,null,null,null,null,null,1430]
[null,null,null,null,null,null,null,null,null,null,null,null,null,null,null,null,null,null,null,null,null,null,1431]
[null,null,null,null,null,null,null,null,null,null,null,null,null,null,null,null,null,null,null,null,null,null,1432]
[null,null,null,null,null,null,null,null,null,null,null,null,null,null,null,null,null,null,null,null,null,null,1433]
[null,null,null,null,null,null,null,null,null,null,null,null,null,null,null,null,null,null,null,null,null,null,1434]
[null,null,null,null,null,null,null,null,null,null,null,null,null,null,null,null,null,null,null,null,null,null,1435]
[null,null,null,null,null,null,null,null,null,null,null,null,null,null,null,null,null,null,null,null,null,null,1436]
[null,null,null,null,null,null,null,null,null,null,null,null,null,null,null,null,null,null,null,null,null,null,1437]
[null,null,null,null,null,null,null,null,null,null,null,null,null,null,null,null,null,null,null,null,null,null,1438]
[null,null,null,null,null,null,null,null,null,null,null,null,null,null,null,null,null,null,null,null,null,null,1439]
[null,null,null,null,null,null,null,null,null,null,null,null,null,null,null,null,null,null,null,null,null,null,1440]
[null,null,null,null,null,null,null,null,null,null,null,null,null,null,null,null,null,null,null,null,null,null,1441]
[null,null,null,null,null,null,null,null,null,null,null,null,null,null,null,null,null,null,null,null,null,null,1442]
[null,null,null,null,null,null,null,null,null,null,null,null,null,null,null,null,null,null,null,null,null,null,1443]
[null,null,null,null,null,null,null,null,null,null,null,null,null,null,null,null,null,null,null,null,null,null,1444]
[null,null,null,null,null,null,null,null,null,null,null,null,null,null,null,null,null,null,null,null,null,null,1445]
[null,null,null,null,null,null,null,null,null,null,null,null,null,null,null,null,null,null,null,null,null,null,1446]
[null,null,null,null,null,null,null,null,null,null,null,null,null,null,null,null,null,null,null,null,null,null,1447]
[null,null,null,null,null,null,null,null,null,null,null,null,null,null,null,null,null,null,null,null,null,null,1448]
[null,null,null,null,null,null,null,null,null,null,null,null,null,null,null,null,null,null,null,null,null,null,1449]
[null,null,null,null,null,null,null,null,null,null,null,null,null,null,null,null,null,null,null,null,null,null,1450]
[null,null,null,null,null,null,null,null,null,null,null,null,null,null,null,null,null,null,null,null,null,null,1451]
[null,null,null,null,null,null,null,null,null,null,null,null,null,null,null,null,null,null,null,null,null,null,1452]
[null,null,null,null,null,null,null,null,null,null,null,null,null,null,null,null,null,null,null,null,null,null,1453]
[null,null,null,null,null,null,null,null,null,null,null,null,null,null,null,null,null,null,null,null,null,null,1454]
[null,null,null,null,null,null,null,null,null,null,null,null,null,null,null,null,null,null,null,null,null,null,1455]
[null,null,null,null,null,null,null,null,null,null,null,null,null,null,null,null,null,null,null,null,null,null,1456]
[null,null,null,null,null,null,null,null,null,null,null,null,null,null,null,null,null,null,null,null,null,null,1457]
[null,null,null,null,null,null,null,null,null,null,null,null,null,null,null,null,null,null,null,null,null,null,1458]
[null,null,null,null,null,null,null,null,null,null,null,null,null,null,null,null,null,null,null,null,null,null,1459]
[null,null,null,null,null,null,null,null,null,null,null,null,null,null,null,null,null,null,null,null,null,null,1460]
[null,null,null,null,null,null,null,null,null,null,null,null,null,null,null,null,null,null,null,null,null,null,1461]
[null,null,null,null,null,null,null,null,null,null,null,null,null,null,null,null,null,null,null,null,null,null,1462]
[null,null,null,null,null,null,null,null,null,null,null,null,null,null,null,null,null,null,null,null,null,null,1463]
[null,null,null,null,null,null,null,null,null,null,null,null,null,null,null,null,null,null,null,null,null,null,1464]
[null,null,null,null,null,null,null,null,null,null,null,null,null,null,null,null,null,null,null,null,null,null,1465]
[null,null,null,null,null,null,null,null,null,null,null,null,null,null,null,null,null,null,null,null,null,null,1466]
[null,null,null,null,null,null,null,null,null,null,null,null,null,null,null,null,null,null,null,null,null,null,1467]
[null,null,null,null,null,null,null,null,null,null,null,null,null,null,null,null,null,null,null,null,null,null,1468]
[null,null,null,null,null,null,null,null,null,null,null,null,null,null,null,null,null,null,null,null,null,null,1469]
[null,null,null,null,null,null,null,null,null,null,null,null,null,null,null,null,null,null,null,null,null,null,1470]
[null,null,null,null,null,null,null,null,null,null,null,null,null,null,null,null,null,null,null,null,null,null,1471]
[null,null,null,null,null,null,null,null,null,null,null,null,null,null,null,null,null,null,null,null,null,null,1472]
[null,null,null,null,null,null,null,null,null,null,null,null,null,null,null,null,null,null,null,null,null,null,1473]
[null,null,null,null,null,null,null,null,null,null,null,null,null,null,null,null,null,null,null,null,null,null,1474]
[null,null,null,null,null,null,null,null,null,null,null,null,null,null,null,null,null,null,null,null,null,null,1475]
[null,null,null,null,null,null,null,null,null,null,null,null,null,null,null,null,null,null,null,null,null,null,1476]
[null,null,null,null,null,null,null,null,null,null,null,null,null,null,null,null,null,null,null,null,null,null,1477]
[null,null,null,null,null,null,null,null,null,null,null,null,null,null,null,null,null,null,null,null,null,null,1478]
[null,null,null,null,null,null,null,null,null,null,null,null,null,null,null,null,null,null,null,null,null,null,1479]
[null,null,null,null,null,null,null,null,null,null,null,null,null,null,null,null,null,null,null,null,null,null,1480]
[null,null,null,null,null,null,null,null,null,null,null,null,null,null,null,null,null,null,null,null,null,null,1481]
[null,null,null,null,null,null,null,null,null,null,null,null,null,null,null,null,null,null,null,null,null,null,1482]
[null,null,null,null,null,null,null,null,null,null,null,null,null,null,null,null,null,null,null,null,null,null,1483]
[null,null,null,null,null,null,null,null,null,null,null,null,null,null,null,null,null,null,null,null,null,null,1484]
[null,null,null,null,null,null,null,null,null,null,null,null,null,null,null,null,null,null,null,null,null,null,1485]
[null,null,null,null,null,null,null,null,null,null,null,null,null,null,null,null,null,null,null,null,null,null,1486]
[null,null,null,null,null,null,null,null,null,null,null,null,null,null,null,null,null,null,null,null,null,null,1487]
[null,null,null,null,null,null,null,null,null,null,null,null,null,null,null,null,null,null,null,null,null,null,1488]
[null,null,null,null,null,null,null,null,null,null,null,null,null,null,null,null,null,null,null,null,null,null,1489]
[null,null,null,null,null,null,null,null,null,null,null,null,null,null,null,null,null,null,null,null,null,null,1490]
[null,null,null,null,null,null,null,null,null,null,null,null,null,null,null,null,null,null,null,null,null,null,1491]
[null,null,null,null,null,null,null,null,null,null,null,null,null,null,null,null,null,null,null,null,null,null,1492]
[null,null,null,null,null,null,null,null,null,null,null,null,null,null,null,null,null,null,null,null,null,null,1493]
[null,null,null,null,null,null,null,null,null,null,null,null,null,null,null,null,null,null,null,null,null,null,1494]
[null,null,null,null,null,null,null,null,null,null,null,null,null,null,null,null,null,null,null,null,null,null,1495]
[null,null,null,null,null,null,null,null,null,null,null,null,null,null,null,null,null,null,null,null,null,null,1496]
[null,null,null,null,null,null,null,null,null,null,null,null,null,null,null,null,null,null,null,null,null,null,1497]
[null,null,null,null,null,null,null,null,null,null,null,null,null,null,null,null,null,null,null,null,null,null,1498]
[null,null,null,null,null,null,null,null,null,null,null,null,null,null,null,null,null,null,null,null,null,null,1499]
[null,null,null,null,null,null,null,null,null,null,null,null,null,null,null,null,null,null,null,null,null,null,1500]
[null,null,null,null,null,null,null,null,null,null,null,null,null,null,null,null,null,null,null,null,null,null,1501]
[null,null,null,null,null,null,null,null,null,null,null,null,null,null,null,null,null,null,null,null,null,null,1502]
[null,null,null,null,null,null,null,null,null,null,null,null,null,null,null,null,null,null,null,null,null,null,1503]
[null,null,null,null,null,null,null,null,null,null,null,null,null,null,null,null,null,null,null,null,null,null,1504]
[null,null,null,null,null,null,null,null,null,null,null,null,null,null,null,null,null,null,null,null,null,null,1505]
[null,null,null,null,null,null,null,null,null,null,null,null,null,null,null,null,null,null,null,null,null,null,1506]
[null,null,null,null,null,null,null,null,null,null,null,null,null,null,null,null,null,null,null,null,null,null,1507]
[null,null,null,null,null,null,null,null,null,null,null,null,null,null,null,null,null,null,null,null,null,null,1508]
[null,null,null,null,null,null,null,null,null,null,null,null,null,null,null,null,null,null,null,null,null,null,1509]
[null,null,null,null,null,null,null,null,null,null,null,null,null,null,null,null,null,null,null,null,null,null,1510]
[null,null,null,null,null,null,null,null,null,null,null,null,null,null,null,null,null,null,null,null,null,null,1511]
[null,null,null,null,null,null,null,null,null,null,null,null,null,null,null,null,null,null,null,null,null,null,1512]
[null,null,null,null,null,null,null,null,null,null,null,null,null,null,null,null,null,null,null,null,null,null,1513]
[null,null,null,null,null,null,null,null,null,null,null,null,null,null,null,null,null,null,null,null,null,null,1514]
[null,null,null,null,null,null,null,null,null,null,null,null,null,null,null,null,null,null,null,null,null,null,1515]
[null,null,null,null,null,null,null,null,null,null,null,null,null,null,null,null,null,null,null,null,null,null,1516]
[null,null,null,null,null,null,null,null,null,null,null,null,null,null,null,null,null,null,null,null,null,null,1517]
[null,null,null,null,null,null,null,null,null,null,null,null,null,null,null,null,null,null,null,null,null,null,1518]
[null,null,null,null,null,null,null,null,null,null,null,null,null,null,null,null,null,null,null,null,null,null,1519]
[null,null,null,null,null,null,null,null,null,null,null,null,null,null,null,null,null,null,null,null,null,null,1520]
[null,null,null,null,null,null,null,null,null,null,null,null,null,null,null,null,null,null,null,null,null,null,1521]
[null,null,null,null,null,null,null,null,null,null,null,null,null,null,null,null,null,null,null,null,null,null,1522]
[null,null,null,null,null,null,null,null,null,null,null,null,null,null,null,null,null,null,null,null,null,null,1523]
[null,null,null,null,null,null,null,null,null,null,null,null,null,null,null,null,null,null,null,null,null,null,1524]
[null,null,null,null,null,null,null,null,null,null,null,null,null,null,null,null,null,null,null,null,null,null,1525]
[null,null,null,null,null,null,null,null,null,null,null,null,null,null,null,null,null,null,null,null,null,null,1526]
[null,null,null,null,null,null,null,null,null,null,null,null,null,null,null,null,null,null,null,null,null,null,1527]
[null,null,null,null,null,null,null,null,null,null,null,null,null,null,null,null,null,null,null,null,null,null,1528]
[null,null,null,null,null,null,null,null,null,null,null,null,null,null,null,null,null,null,null,null,null,null,1529]
[null,null,null,null,null,null,null,null,null,null,null,null,null,null,null,null,null,null,null,null,null,null,1530]
[null,null,null,null,null,null,null,null,null,null,null,null,null,null,null,null,null,null,null,null,null,null,1531]
[null,null,null,null,null,null,null,null,null,null,null,null,null,null,null,null,null,null,null,null,null,null,1532]
[null,null,null,null,null,null,null,null,null,null,null,null,null,null,null,null,null,null,null,null,null,null,1533]
[null,null,null,null,null,null,null,null,null,null,null,null,null,null,null,null,null,null,null,null,null,null,1534]
[null,null,null,null,null,null,null,null,null,null,null,null,null,null,null,null,null,null,null,null,null,null,1535]
[null,null,null,null,null,null,null,null,null,null,null,null,null,null,null,null,null,null,null,null,null,null,1536]
[null,null,null,null,null,null,null,null,null,null,null,null,null,null,null,null,null,null,null,null,null,null,1537]
[null,null,null,null,null,null,null,null,null,null,null,null,null,null,null,null,null,null,null,null,null,null,1538]
[null,null,null,null,null,null,null,null,null,null,null,null,null,null,null,null,null,null,null,null,null,null,1539]
[null,null,null,null,null,null,null,null,null,null,null,null,null,null,null,null,null,null,null,null,null,null,1540]
[null,null,null,null,null,null,null,null,null,null,null,null,null,null,null,null,null,null,null,null,null,null,1541]
[null,null,null,null,null,null,null,null,null,null,null,null,null,null,null,null,null,null,null,null,null,null,1542]
[null,null,null,null,null,null,null,null,null,null,null,null,null,null,null,null,null,null,null,null,null,null,1543]
[null,null,null,null,null,null,null,null,null,null,null,null,null,null,null,null,null,null,null,null,null,null,1544]
[null,null,null,null,null,null,null,null,null,null,null,null,null,null,null,null,null,null,null,null,null,null,1545]
[null,null,null,null,null,null,null,null,null,null,null,null,null,null,null,null,null,null,null,null,null,null,1546]
[null,null,null,null,null,null,null,null,null,null,null,null,null,null,null,null,null,null,null,null,null,null,1547]
[null,null,null,null,null,null,null,null,null,null,null,null,null,null,null,null,null,null,null,null,null,null,1548]
[null,null,null,null,null,null,null,null,null,null,null,null,null,null,null,null,null,null,null,null,null,null,1549]
[null,null,null,null,null,null,null,null,null,null,null,null,null,null,null,null,null,null,null,null,null,null,1550]
[null,null,null,null,null,null,null,null,null,null,null,null,null,null,null,null,null,null,null,null,null,null,1551]
[null,null,null,null,null,null,null,null,null,null,null,null,null,null,null,null,null,null,null,null,null,null,1552]
[null,null,null,null,null,null,null,null,null,null,null,null,null,null,null,null,null,null,null,null,null,null,1553]
[null,null,null,null,null,null,null,null,null,null,null,null,null,null,null,null,null,null,null,null,null,null,1554]
[null,null,null,null,null,null,null,null,null,null,null,null,null,null,null,null,null,null,null,null,null,null,1555]
[null,null,null,null,null,null,null,null,null,null,null,null,null,null,null,null,null,null,null,null,null,null,1556]
[null,null,null,null,null,null,null,null,null,null,null,null,null,null,null,null,null,null,null,null,null,null,1557]
[null,null,null,null,null,null,null,null,null,null,null,null,null,null,null,null,null,null,null,null,null,null,1558]
[null,null,null,null,null,null,null,null,null,null,null,null,null,null,null,null,null,null,null,null,null,null,1559]
[null,null,null,null,null,null,null,null,null,null,null,null,null,null,null,null,null,null,null,null,null,null,1560]
[null,null,null,null,null,null,null,null,null,null,null,null,null,null,null,null,null,null,null,null,null,null,1561]
[null,null,null,null,null,null,null,null,null,null,null,null,null,null,null,null,null,null,null,null,null,null,1562]
[null,null,null,null,null,null,null,null,null,null,null,null,null,null,null,null,null,null,null,null,null,null,1563]
[null,null,null,null,null,null,null,null,null,null,null,null,null,null,null,null,null,null,null,null,null,null,1564]
[null,null,null,null,null,null,null,null,null,null,null,null,null,null,null,null,null,null,null,null,null,null,1565]
[null,null,null,null,null,null,null,null,null,null,null,null,null,null,null,null,null,null,null,null,null,null,1566]
[null,null,null,null,null,null,null,null,null,null,null,null,null,null,null,null,null,null,null,null,null,null,1567]
[null,null,null,null,null,null,null,null,null,null,null,null,null,null,null,null,null,null,null,null,null,null,1568]
[null,null,null,null,null,null,null,null,null,null,null,null,null,null,null,null,null,null,null,null,null,null,1569]
[null,null,null,null,null,null,null,null,null,null,null,null,null,null,null,null,null,null,null,null,null,null,1570]
[null,null,null,null,null,null,null,null,null,null,null,null,null,null,null,null,null,null,null,null,null,null,1571]
[null,null,null,null,null,null,null,null,null,null,null,null,null,null,null,null,null,null,null,null,null,null,1572]
[null,null,null,null,null,null,null,null,null,null,null,null,null,null,null,null,null,null,null,null,null,null,1573]
[null,null,null,null,null,null,null,null,null,null,null,null,null,null,null,null,null,null,null,null,null,null,1574]
[null,null,null,null,null,null,null,null,null,null,null,null,null,null,null,null,null,null,null,null,null,null,1575]
[null,null,null,null,null,null,null,null,null,null,null,null,null,null,null,null,null,null,null,null,null,null,1576]
[null,null,null,null,null,null,null,null,null,null,null,null,null,null,null,null,null,null,null,null,null,null,1577]
[null,null,null,null,null,null,null,null,null,null,null,null,null,null,null,null,null,null,null,null,null,null,1578]
[null,null,null,null,null,null,null,null,null,null,null,null,null,null,null,null,null,null,null,null,null,null,1579]
[null,null,null,null,null,null,null,null,null,null,null,null,null,null,null,null,null,null,null,null,null,null,1580]
[null,null,null,null,null,null,null,null,null,null,null,null,null,null,null,null,null,null,null,null,null,null,1581]
[null,null,null,null,null,null,null,null,null,null,null,null,null,null,null,null,null,null,null,null,null,null,1582]
[null,null,null,null,null,null,null,null,null,null,null,null,null,null,null,null,null,null,null,null,null,null,1583]
[null,null,null,null,null,null,null,null,null,null,null,null,null,null,null,null,null,null,null,null,null,null,1584]
[null,null,null,null,null,null,null,null,null,null,null,null,null,null,null,null,null,null,null,null,null,null,1585]
[null,null,null,null,null,null,null,null,null,null,null,null,null,null,null,null,null,null,null,null,null,null,1586]
[null,null,null,null,null,null,null,null,null,null,null,null,null,null,null,null,null,null,null,null,null,null,1587]
[null,null,null,null,null,null,null,null,null,null,null,null,null,null,null,null,null,null,null,null,null,null,1588]
[null,null,null,null,null,null,null,null,null,null,null,null,null,null,null,null,null,null,null,null,null,null,1589]
[null,null,null,null,null,null,null,null,null,null,null,null,null,null,null,null,null,null,null,null,null,null,1590]
[null,null,null,null,null,null,null,null,null,null,null,null,null,null,null,null,null,null,null,null,null,null,1591]
[null,null,null,null,null,null,null,null,null,null,null,null,null,null,null,null,null,null,null,null,null,null,1592]
[null,null,null,null,null,null,null,null,null,null,null,null,null,null,null,null,null,null,null,null,null,null,1593]
[null,null,null,null,null,null,null,null,null,null,null,null,null,null,null,null,null,null,null,null,null,null,1594]
[null,null,null,null,null,null,null,null,null,null,null,null,null,null,null,null,null,null,null,null,null,null,1595]
[null,null,null,null,null,null,null,null,null,null,null,null,null,null,null,null,null,null,null,null,null,null,1596]
[null,null,null,null,null,null,null,null,null,null,null,null,null,null,null,null,null,null,null,null,null,null,1597]
[null,null,null,null,null,null,null,null,null,null,null,null,null,null,null,null,null,null,null,null,null,null,1598]
[null,null,null,null,null,null,null,null,null,null,null,null,null,null,null,null,null,null,null,null,null,null,1599]
[null,null,null,null,null,null,null,null,null,null,null,null,null,null,null,null,null,null,null,null,null,null,1600]
[null,null,null,null,null,null,null,null,null,null,null,null,null,null,null,null,null,null,null,null,null,null,1601]
[null,null,null,null,null,null,null,null,null,null,null,null,null,null,null,null,null,null,null,null,null,null,1602]
[null,null,null,null,null,null,null,null,null,null,null,null,null,null,null,null,null,null,null,null,null,null,1603]
[null,null,null,null,null,null,null,null,null,null,null,null,null,null,null,null,null,null,null,null,null,null,1604]
[null,null,null,null,null,null,null,null,null,null,null,null,null,null,null,null,null,null,null,null,null,null,1605]
[null,null,null,null,null,null,null,null,null,null,null,null,null,null,null,null,null,null,null,null,null,null,1606]
[null,null,null,null,null,null,null,null,null,null,null,null,null,null,null,null,null,null,null,null,null,null,1607]
[null,null,null,null,null,null,null,null,null,null,null,null,null,null,null,null,null,null,null,null,null,null,1608]
[null,null,null,null,null,null,null,null,null,null,null,null,null,null,null,null,null,null,null,null,null,null,1609]
[null,null,null,null,null,null,null,null,null,null,null,null,null,null,null,null,null,null,null,null,null,null,1610]
[null,null,null,null,null,null,null,null,null,null,null,null,null,null,null,null,null,null,null,null,null,null,1611]
[null,null,null,null,null,null,null,null,null,null,null,null,null,null,null,null,null,null,null,null,null,null,1612]
[null,null,null,null,null,null,null,null,null,null,null,null,null,null,null,null,null,null,null,null,null,null,1613]
[null,null,null,null,null,null,null,null,null,null,null,null,null,null,null,null,null,null,null,null,null,null,1614]
[null,null,null,null,null,null,null,null,null,null,null,null,null,null,null,null,null,null,null,null,null,null,1615]
[null,null,null,null,null,null,null,null,null,null,null,null,null,null,null,null,null,null,null,null,null,null,1616]
[null,null,null,null,null,null,null,null,null,null,null,null,null,null,null,null,null,null,null,null,null,null,1617]
[null,null,null,null,null,null,null,null,null,null,null,null,null,null,null,null,null,null,null,null,null,null,1618]
[null,null,null,null,null,null,null,null,null,null,null,null,null,null,null,null,null,null,null,null,null,null,1619]
[null,null,null,null,null,null,null,null,null,null,null,null,null,null,null,null,null,null,null,null,null,null,1620]
[null,null,null,null,null,null,null,null,null,null,null,null,null,null,null,null,null,null,null,null,null,null,1621]
[null,null,null,null,null,null,null,null,null,null,null,null,null,null,null,null,null,null,null,null,null,null,1622]
[null,null,null,null,null,null,null,null,null,null,null,null,null,null,null,null,null,null,null,null,null,null,1623]
[null,null,null,null,null,null,null,null,null,null,null,null,null,null,null,null,null,null,null,null,null,null,1624]
[null,null,null,null,null,null,null,null,null,null,null,null,null,null,null,null,null,null,null,null,null,null,1625]
[null,null,null,null,null,null,null,null,null,null,null,null,null,null,null,null,null,null,null,null,null,null,1626]
[null,null,null,null,null,null,null,null,null,null,null,null,null,null,null,null,null,null,null,null,null,null,1627]
[null,null,null,null,null,null,null,null,null,null,null,null,null,null,null,null,null,null,null,null,null,null,1628]
[null,null,null,null,null,null,null,null,null,null,null,null,null,null,null,null,null,null,null,null,null,null,1629]
[null,null,null,null,null,null,null,null,null,null,null,null,null,null,null,null,null,null,null,null,null,null,1630]
[null,null,null,null,null,null,null,null,null,null,null,null,null,null,null,null,null,null,null,null,null,null,1631]
[null,null,null,null,null,null,null,null,null,null,null,null,null,null,null,null,null,null,null,null,null,null,1632]
[null,null,null,null,null,null,null,null,null,null,null,null,null,null,null,null,null,null,null,null,null,null,1633]
[null,null,null,null,null,null,null,null,null,null,null,null,null,null,null,null,null,null,null,null,null,null,1634]
[null,null,null,null,null,null,null,null,null,null,null,null,null,null,null,null,null,null,null,null,null,null,1635]
[null,null,null,null,null,null,null,null,null,null,null,null,null,null,null,null,null,null,null,null,null,null,1636]
[null,null,null,null,null,null,null,null,null,null,null,null,null,null,null,null,null,null,null,null,null,null,1637]
[null,null,null,null,null,null,null,null,null,null,null,null,null,null,null,null,null,null,null,null,null,null,1638]
[null,null,null,null,null,null,null,null,null,null,null,null,null,null,null,null,null,null,null,null,null,null,1639]
[null,null,null,null,null,null,null,null,null,null,null,null,null,null,null,null,null,null,null,null,null,null,1640]
[null,null,null,null,null,null,null,null,null,null,null,null,null,null,null,null,null,null,null,null,null,null,1641]
[null,null,null,null,null,null,null,null,null,null,null,null,null,null,null,null,null,null,null,null,null,null,1642]
[null,null,null,null,null,null,null,null,null,null,null,null,null,null,null,null,null,null,null,null,null,null,1643]
[null,null,null,null,null,null,null,null,null,null,null,null,null,null,null,null,null,null,null,null,null,null,1644]
[null,null,null,null,null,null,null,null,null,null,null,null,null,null,null,null,null,null,null,null,null,null,1645]
[null,null,null,null,null,null,null,null,null,null,null,null,null,null,null,null,null,null,null,null,null,null,1646]
[null,null,null,null,null,null,null,null,null,null,null,null,null,null,null,null,null,null,null,null,null,null,1647]
[null,null,null,null,null,null,null,null,null,null,null,null,null,null,null,null,null,null,null,null,null,null,1648]
[null,null,null,null,null,null,null,null,null,null,null,null,null,null,null,null,null,null,null,null,null,null,1649]
[null,null,null,null,null,null,null,null,null,null,null,null,null,null,null,null,null,null,null,null,null,null,1650]
[null,null,null,null,null,null,null,null,null,null,null,null,null,null,null,null,null,null,null,null,null,null,1651]
[null,null,null,null,null,null,null,null,null,null,null,null,null,null,null,null,null,null,null,null,null,null,1652]
[null,null,null,null,null,null,null,null,null,null,null,null,null,null,null,null,null,null,null,null,null,null,1653]
[null,null,null,null,null,null,null,null,null,null,null,null,null,null,null,null,null,null,null,null,null,null,1654]
[null,null,null,null,null,null,null,null,null,null,null,null,null,null,null,null,null,null,null,null,null,null,1655]
[null,null,null,null,null,null,null,null,null,null,null,null,null,null,null,null,null,null,null,null,null,null,1656]
[null,null,null,null,null,null,null,null,null,null,null,null,null,null,null,null,null,null,null,null,null,null,1657]
[null,null,null,null,null,null,null,null,null,null,null,null,null,null,null,null,null,null,null,null,null,null,1658]
[null,null,null,null,null,null,null,null,null,null,null,null,null,null,null,null,null,null,null,null,null,null,1659]
[null,null,null,null,null,null,null,null,null,null,null,null,null,null,null,null,null,null,null,null,null,null,1660]
[null,null,null,null,null,null,null,null,null,null,null,null,null,null,null,null,null,null,null,null,null,null,1661]
[null,null,null,null,null,null,null,null,null,null,null,null,null,null,null,null,null,null,null,null,null,null,1662]
[null,null,null,null,null,null,null,null,null,null,null,null,null,null,null,null,null,null,null,null,null,null,1663]
[null,null,null,null,null,null,null,null,null,null,null,null,null,null,null,null,null,null,null,null,null,null,1664]
[null,null,null,null,null,null,null,null,null,null,null,null,null,null,null,null,null,null,null,null,null,null,1665]
[null,null,null,null,null,null,null,null,null,null,null,null,null,null,null,null,null,null,null,null,null,null,1666]
[null,null,null,null,null,null,null,null,null,null,null,null,null,null,null,null,null,null,null,null,null,null,1667]
[null,null,null,null,null,null,null,null,null,null,null,null,null,null,null,null,null,null,null,null,null,null,1668]
[null,null,null,null,null,null,null,null,null,null,null,null,null,null,null,null,null,null,null,null,null,null,1669]
[null,null,null,null,null,null,null,null,null,null,null,null,null,null,null,null,null,null,null,null,null,null,1670]
[null,null,null,null,null,null,null,null,null,null,null,null,null,null,null,null,null,null,null,null,null,null,1671]
[null,null,null,null,null,null,null,null,null,null,null,null,null,null,null,null,null,null,null,null,null,null,1672]
[null,null,null,null,null,null,null,null,null,null,null,null,null,null,null,null,null,null,null,null,null,null,1673]
[null,null,null,null,null,null,null,null,null,null,null,null,null,null,null,null,null,null,null,null,null,null,1674]
[null,null,null,null,null,null,null,null,null,null,null,null,null,null,null,null,null,null,null,null,null,null,1675]
[null,null,null,null,null,null,null,null,null,null,null,null,null,null,null,null,null,null,null,null,null,null,1676]
[null,null,null,null,null,null,null,null,null,null,null,null,null,null,null,null,null,null,null,null,null,null,1677]
[null,null,null,null,null,null,null,null,null,null,null,null,null,null,null,null,null,null,null,null,null,null,1678]
[null,null,null,null,null,null,null,null,null,null,null,null,null,null,null,null,null,null,null,null,null,null,1679]
[null,null,null,null,null,null,null,null,null,null,null,null,null,null,null,null,null,null,null,null,null,null,1680]
[null,null,null,null,null,null,null,null,null,null,null,null,null,null,null,null,null,null,null,null,null,null,1681]
[null,null,null,null,null,null,null,null,null,null,null,null,null,null,null,null,null,null,null,null,null,null,1682]
[null,null,null,null,null,null,null,null,null,null,null,null,null,null,null,null,null,null,null,null,null,null,1683]
[null,null,null,null,null,null,null,null,null,null,null,null,null,null,null,null,null,null,null,null,null,null,1684]
[null,null,null,null,null,null,null,null,null,null,null,null,null,null,null,null,null,null,null,null,null,null,1685]
[null,null,null,null,null,null,null,null,null,null,null,null,null,null,null,null,null,null,null,null,null,null,1686]
[null,null,null,null,null,null,null,null,null,null,null,null,null,null,null,null,null,null,null,null,null,null,1687]
[null,null,null,null,null,null,null,null,null,null,null,null,null,null,null,null,null,null,null,null,null,null,1688]
[null,null,null,null,null,null,null,null,null,null,null,null,null,null,null,null,null,null,null,null,null,null,1689]
[null,null,null,null,null,null,null,null,null,null,null,null,null,null,null,null,null,null,null,null,null,null,1690]
[null,null,null,null,null,null,null,null,null,null,null,null,null,null,null,null,null,null,null,null,null,null,1691]
[null,null,null,null,null,null,null,null,null,null,null,null,null,null,null,null,null,null,null,null,null,null,1692]
[null,null,null,null,null,null,null,null,null,null,null,null,null,null,null,null,null,null,null,null,null,null,1693]
[null,null,null,null,null,null,null,null,null,null,null,null,null,null,null,null,null,null,null,null,null,null,1694]
[null,null,null,null,null,null,null,null,null,null,null,null,null,null,null,null,null,null,null,null,null,null,1695]
[null,null,null,null,null,null,null,null,null,null,null,null,null,null,null,null,null,null,null,null,null,null,1696]
[null,null,null,null,null,null,null,null,null,null,null,null,null,null,null,null,null,null,null,null,null,null,1697]
[null,null,null,null,null,null,null,null,null,null,null,null,null,null,null,null,null,null,null,null,null,null,1698]
[null,null,null,null,null,null,null,null,null,null,null,null,null,null,null,null,null,null,null,null,null,null,1699]
[null,null,null,null,null,null,null,null,null,null,null,null,null,null,null,null,null,null,null,null,null,null,1700]
[null,null,null,null,null,null,null,null,null,null,null,null,null,null,null,null,null,null,null,null,null,null,1701]
[null,null,null,null,null,null,null,null,null,null,null,null,null,null,null,null,null,null,null,null,null,null,1702]
[null,null,null,null,null,null,null,null,null,null,null,null,null,null,null,null,null,null,null,null,null,null,1703]
[null,null,null,null,null,null,null,null,null,null,null,null,null,null,null,null,null,null,null,null,null,null,1704]
[null,null,null,null,null,null,null,null,null,null,null,null,null,null,null,null,null,null,null,null,null,null,1705]
[null,null,null,null,null,null,null,null,null,null,null,null,null,null,null,null,null,null,null,null,null,null,1706]
[null,null,null,null,null,null,null,null,null,null,null,null,null,null,null,null,null,null,null,null,null,null,1707]
[null,null,null,null,null,null,null,null,null,null,null,null,null,null,null,null,null,null,null,null,null,null,1708]
[null,null,null,null,null,null,null,null,null,null,null,null,null,null,null,null,null,null,null,null,null,null,1709]
[null,null,null,null,null,null,null,null,null,null,null,null,null,null,null,null,null,null,null,null,null,null,1710]
[null,null,null,null,null,null,null,null,null,null,null,null,null,null,null,null,null,null,null,null,null,null,1711]
[null,null,null,null,null,null,null,null,null,null,null,null,null,null,null,null,null,null,null,null,null,null,1712]
[null,null,null,null,null,null,null,null,null,null,null,null,null,null,null,null,null,null,null,null,null,null,1713]
[null,null,null,null,null,null,null,null,null,null,null,null,null,null,null,null,null,null,null,null,null,null,1714]
[null,null,null,null,null,null,null,null,null,null,null,null,null,null,null,null,null,null,null,null,null,null,1715]
[null,null,null,null,null,null,null,null,null,null,null,null,null,null,null,null,null,null,null,null,null,null,1716]
[null,null,null,null,null,null,null,null,null,null,null,null,null,null,null,null,null,null,null,null,null,null,1717]
[null,null,null,null,null,null,null,null,null,null,null,null,null,null,null,null,null,null,null,null,null,null,1718]
[null,null,null,null,null,null,null,null,null,null,null,null,null,null,null,null,null,null,null,null,null,null,1719]
[null,null,null,null,null,null,null,null,null,null,null,null,null,null,null,null,null,null,null,null,null,null,1720]
[null,null,null,null,null,null,null,null,null,null,null,null,null,null,null,null,null,null,null,null,null,null,1721]
[null,null,null,null,null,null,null,null,null,null,null,null,null,null,null,null,null,null,null,null,null,null,1722]
[null,null,null,null,null,null,null,null,null,null,null,null,null,null,null,null,null,null,null,null,null,null,1723]
[null,null,null,null,null,null,null,null,null,null,null,null,null,null,null,null,null,null,null,null,null,null,1724]
[null,null,null,null,null,null,null,null,null,null,null,null,null,null,null,null,null,null,null,null,null,null,1725]
[null,null,null,null,null,null,null,null,null,null,null,null,null,null,null,null,null,null,null,null,null,null,1726]
[null,null,null,null,null,null,null,null,null,null,null,null,null,null,null,null,null,null,null,null,null,null,1727]
[null,null,null,null,null,null,null,null,null,null,null,null,null,null,null,null,null,null,null,null,null,null,1728]
[null,null,null,null,null,null,null,null,null,null,null,null,null,null,null,null,null,null,null,null,null,null,1729]
[null,null,null,null,null,null,null,null,null,null,null,null,null,null,null,null,null,null,null,null,null,null,1730]
[null,null,null,null,null,null,null,null,null,null,null,null,null,null,null,null,null,null,null,null,null,null,1731]
[null,null,null,null,null,null,null,null,null,null,null,null,null,null,null,null,null,null,null,null,null,null,1732]
[null,null,null,null,null,null,null,null,null,null,null,null,null,null,null,null,null,null,null,null,null,null,1733]
[null,null,null,null,null,null,null,null,null,null,null,null,null,null,null,null,null,null,null,null,null,null,1734]
[null,null,null,null,null,null,null,null,null,null,null,null,null,null,null,null,null,null,null,null,null,null,1735]
[null,null,null,null,null,null,null,null,null,null,null,null,null,null,null,null,null,null,null,null,null,null,1736]
[null,null,null,null,null,null,null,null,null,null,null,null,null,null,null,null,null,null,null,null,null,null,1737]
[null,null,null,null,null,null,null,null,null,null,null,null,null,null,null,null,null,null,null,null,null,null,1738]
[null,null,null,null,null,null,null,null,null,null,null,null,null,null,null,null,null,null,null,null,null,null,1739]
[null,null,null,null,null,null,null,null,null,null,null,null,null,null,null,null,null,null,null,null,null,null,1740]
[null,null,null,null,null,null,null,null,null,null,null,null,null,null,null,null,null,null,null,null,null,null,1741]
[null,null,null,null,null,null,null,null,null,null,null,null,null,null,null,null,null,null,null,null,null,null,1742]
[null,null,null,null,null,null,null,null,null,null,null,null,null,null,null,null,null,null,null,null,null,null,1743]
[null,null,null,null,null,null,null,null,null,null,null,null,null,null,null,null,null,null,null,null,null,null,1744]
[null,null,null,null,null,null,null,null,null,null,null,null,null,null,null,null,null,null,null,null,null,null,1745]
[null,null,null,null,null,null,null,null,null,null,null,null,null,null,null,null,null,null,null,null,null,null,1746]
[null,null,null,null,null,null,null,null,null,null,null,null,null,null,null,null,null,null,null,null,null,null,1747]
[null,null,null,null,null,null,null,null,null,null,null,null,null,null,null,null,null,null,null,null,null,null,1748]
[null,null,null,null,null,null,null,null,null,null,null,null,null,null,null,null,null,null,null,null,null,null,1749]
[null,null,null,null,null,null,null,null,null,null,null,null,null,null,null,null,null,null,null,null,null,null,1750]
[null,null,null,null,null,null,null,null,null,null,null,null,null,null,null,null,null,null,null,null,null,null,1751]
[null,null,null,null,null,null,null,null,null,null,null,null,null,null,null,null,null,null,null,null,null,null,1752]
[null,null,null,null,null,null,null,null,null,null,null,null,null,null,null,null,null,null,null,null,null,null,1753]
[null,null,null,null,null,null,null,null,null,null,null,null,null,null,null,null,null,null,null,null,null,null,1754]
[null,null,null,null,null,null,null,null,null,null,null,null,null,null,null,null,null,null,null,null,null,null,1755]
[null,null,null,null,null,null,null,null,null,null,null,null,null,null,null,null,null,null,null,null,null,null,1756]
[null,null,null,null,null,null,null,null,null,null,null,null,null,null,null,null,null,null,null,null,null,null,1757]
[null,null,null,null,null,null,null,null,null,null,null,null,null,null,null,null,null,null,null,null,null,null,1758]
[null,null,null,null,null,null,null,null,null,null,null,null,null,null,null,null,null,null,null,null,null,null,1759]
[null,null,null,null,null,null,null,null,null,null,null,null,null,null,null,null,null,null,null,null,null,null,1760]
[null,null,null,null,null,null,null,null,null,null,null,null,null,null,null,null,null,null,null,null,null,null,1761]
[null,null,null,null,null,null,null,null,null,null,null,null,null,null,null,null,null,null,null,null,null,null,1762]
[null,null,null,null,null,null,null,null,null,null,null,null,null,null,null,null,null,null,null,null,null,null,1763]
[null,null,null,null,null,null,null,null,null,null,null,null,null,null,null,null,null,null,null,null,null,null,1764]
[null,null,null,null,null,null,null,null,null,null,null,null,null,null,null,null,null,null,null,null,null,null,1765]
[null,null,null,null,null,null,null,null,null,null,null,null,null,null,null,null,null,null,null,null,null,null,1766]
[null,null,null,null,null,null,null,null,null,null,null,null,null,null,null,null,null,null,null,null,null,null,1767]
[null,null,null,null,null,null,null,null,null,null,null,null,null,null,null,null,null,null,null,null,null,null,1768]
[null,null,null,null,null,null,null,null,null,null,null,null,null,null,null,null,null,null,null,null,null,null,1769]
[null,null,null,null,null,null,null,null,null,null,null,null,null,null,null,null,null,null,null,null,null,null,1770]
[null,null,null,null,null,null,null,null,null,null,null,null,null,null,null,null,null,null,null,null,null,null,1771]
[null,null,null,null,null,null,null,null,null,null,null,null,null,null,null,null,null,null,null,null,null,null,1772]
[null,null,null,null,null,null,null,null,null,null,null,null,null,null,null,null,null,null,null,null,null,null,1773]
[null,null,null,null,null,null,null,null,null,null,null,null,null,null,null,null,null,null,null,null,null,null,1774]
[null,null,null,null,null,null,null,null,null,null,null,null,null,null,null,null,null,null,null,null,null,null,1775]
[null,null,null,null,null,null,null,null,null,null,null,null,null,null,null,null,null,null,null,null,null,null,1776]
[null,null,null,null,null,null,null,null,null,null,null,null,null,null,null,null,null,null,null,null,null,null,1777]
[null,null,null,null,null,null,null,null,null,null,null,null,null,null,null,null,null,null,null,null,null,null,1778]
[null,null,null,null,null,null,null,null,null,null,null,null,null,null,null,null,null,null,null,null,null,null,1779]
[null,null,null,null,null,null,null,null,null,null,null,null,null,null,null,null,null,null,null,null,null,null,1780]
[null,null,null,null,null,null,null,null,null,null,null,null,null,null,null,null,null,null,null,null,null,null,1781]
[null,null,null,null,null,null,null,null,null,null,null,null,null,null,null,null,null,null,null,null,null,null,1782]
[null,null,null,null,null,null,null,null,null,null,null,null,null,null,null,null,null,null,null,null,null,null,1783]
[null,null,null,null,null,null,null,null,null,null,null,null,null,null,null,null,null,null,null,null,null,null,1784]
[null,null,null,null,null,null,null,null,null,null,null,null,null,null,null,null,null,null,null,null,null,null,1785]
[null,null,null,null,null,null,null,null,null,null,null,null,null,null,null,null,null,null,null,null,null,null,1786]
[null,null,null,null,null,null,null,null,null,null,null,null,null,null,null,null,null,null,null,null,null,null,1787]
[null,null,null,null,null,null,null,null,null,null,null,null,null,null,null,null,null,null,null,null,null,null,1788]
[null,null,null,null,null,null,null,null,null,null,null,null,null,null,null,null,null,null,null,null,null,null,1789]
[null,null,null,null,null,null,null,null,null,null,null,null,null,null,null,null,null,null,null,null,null,null,1790]
[null,null,null,null,null,null,null,null,null,null,null,null,null,null,null,null,null,null,null,null,null,null,1791]
[null,null,null,null,null,null,null,null,null,null,null,null,null,null,null,null,null,null,null,null,null,null,1792]
[null,null,null,null,null,null,null,null,null,null,null,null,null,null,null,null,null,null,null,null,null,null,1793]
[null,null,null,null,null,null,null,null,null,null,null,null,null,null,null,null,null,null,null,null,null,null,1794]
[null,null,null,null,null,null,null,null,null,null,null,null,null,null,null,null,null,null,null,null,null,null,1795]
[null,null,null,null,null,null,null,null,null,null,null,null,null,null,null,null,null,null,null,null,null,null,1796]
[null,null,null,null,null,null,null,null,null,null,null,null,null,null,null,null,null,null,null,null,null,null,1797]
[null,null,null,null,null,null,null,null,null,null,null,null,null,null,null,null,null,null,null,null,null,null,1798]
[null,null,null,null,null,null,null,null,null,null,null,null,null,null,null,null,null,null,null,null,null,null,1799]
[null,null,null,null,null,null,null,null,null,null,null,null,null,null,null,null,null,null,null,null,null,null,1800]
[null,null,null,null,null,null,null,null,null,null,null,null,null,null,null,null,null,null,null,null,null,null,1801]
[null,null,null,null,null,null,null,null,null,null,null,null,null,null,null,null,null,null,null,null,null,null,1802]
[null,null,null,null,null,null,null,null,null,null,null,null,null,null,null,null,null,null,null,null,null,null,1803]
[null,null,null,null,null,null,null,null,null,null,null,null,null,null,null,null,null,null,null,null,null,null,1804]
[null,null,null,null,null,null,null,null,null,null,null,null,null,null,null,null,null,null,null,null,null,null,1805]
[null,null,null,null,null,null,null,null,null,null,null,null,null,null,null,null,null,null,null,null,null,null,1806]
[null,null,null,null,null,null,null,null,null,null,null,null,null,null,null,null,null,null,null,null,null,null,1807]
[null,null,null,null,null,null,null,null,null,null,null,null,null,null,null,null,null,null,null,null,null,null,1808]
[null,null,null,null,null,null,null,null,null,null,null,null,null,null,null,null,null,null,null,null,null,null,1809]
[null,null,null,null,null,null,null,null,null,null,null,null,null,null,null,null,null,null,null,null,null,null,1810]
[null,null,null,null,null,null,null,null,null,null,null,null,null,null,null,null,null,null,null,null,null,null,1811]
[null,null,null,null,null,null,null,null,null,null,null,null,null,null,null,null,null,null,null,null,null,null,1812]
[null,null,null,null,null,null,null,null,null,null,null,null,null,null,null,null,null,null,null,null,null,null,1813]
[null,null,null,null,null,null,null,null,null,null,null,null,null,null,null,null,null,null,null,null,null,null,1814]
[null,null,null,null,null,null,null,null,null,null,null,null,null,null,null,null,null,null,null,null,null,null,1815]
[null,null,null,null,null,null,null,null,null,null,null,null,null,null,null,null,null,null,null,null,null,null,1816]
[null,null,null,null,null,null,null,null,null,null,null,null,null,null,null,null,null,null,null,null,null,null,1817]
[null,null,null,null,null,null,null,null,null,null,null,null,null,null,null,null,null,null,null,null,null,null,1818]
[null,null,null,null,null,null,null,null,null,null,null,null,null,null,null,null,null,null,null,null,null,null,1819]
[null,null,null,null,null,null,null,null,null,null,null,null,null,null,null,null,null,null,null,null,null,null,1820]
[null,null,null,null,null,null,null,null,null,null,null,null,null,null,null,null,null,null,null,null,null,null,1821]
[null,null,null,null,null,null,null,null,null,null,null,null,null,null,null,null,null,null,null,null,null,null,1822]
[null,null,null,null,null,null,null,null,null,null,null,null,null,null,null,null,null,null,null,null,null,null,1823]
[null,null,null,null,null,null,null,null,null,null,null,null,null,null,null,null,null,null,null,null,null,null,1824]
[null,null,null,null,null,null,null,null,null,null,null,null,null,null,null,null,null,null,null,null,null,null,1825]
[null,null,null,null,null,null,null,null,null,null,null,null,null,null,null,null,null,null,null,null,null,null,1826]
[null,null,null,null,null,null,null,null,null,null,null,null,null,null,null,null,null,null,null,null,null,null,1827]
[null,null,null,null,null,null,null,null,null,null,null,null,null,null,null,null,null,null,null,null,null,null,1828]
[null,null,null,null,null,null,null,null,null,null,null,null,null,null,null,null,null,null,null,null,null,null,1829]
[null,null,null,null,null,null,null,null,null,null,null,null,null,null,null,null,null,null,null,null,null,null,1830]
[null,null,null,null,null,null,null,null,null,null,null,null,null,null,null,null,null,null,null,null,null,null,1831]
[null,null,null,null,null,null,null,null,null,null,null,null,null,null,null,null,null,null,null,null,null,null,1832]
[null,null,null,null,null,null,null,null,null,null,null,null,null,null,null,null,null,null,null,null,null,null,1833]
[null,null,null,null,null,null,null,null,null,null,null,null,null,null,null,null,null,null,null,null,null,null,1834]
[null,null,null,null,null,null,null,null,null,null,null,null,null,null,null,null,null,null,null,null,null,null,1835]
[null,null,null,null,null,null,null,null,null,null,null,null,null,null,null,null,null,null,null,null,null,null,1836]
[null,null,null,null,null,null,null,null,null,null,null,null,null,null,null,null,null,null,null,null,null,null,1837]
[null,null,null,null,null,null,null,null,null,null,null,null,null,null,null,null,null,null,null,null,null,null,1838]
[null,null,null,null,null,null,null,null,null,null,null,null,null,null,null,null,null,null,null,null,null,null,1839]
[null,null,null,null,null,null,null,null,null,null,null,null,null,null,null,null,null,null,null,null,null,null,1840]
[null,null,null,null,null,null,null,null,null,null,null,null,null,null,null,null,null,null,null,null,null,null,1841]
[null,null,null,null,null,null,null,null,null,null,null,null,null,null,null,null,null,null,null,null,null,null,1842]
[null,null,null,null,null,null,null,null,null,null,null,null,null,null,null,null,null,null,null,null,null,null,1843]
[null,null,null,null,null,null,null,null,null,null,null,null,null,null,null,null,null,null,null,null,null,null,1844]
[null,null,null,null,null,null,null,null,null,null,null,null,null,null,null,null,null,null,null,null,null,null,1845]
[null,null,null,null,null,null,null,null,null,null,null,null,null,null,null,null,null,null,null,null,null,null,1846]
[null,null,null,null,null,null,null,null,null,null,null,null,null,null,null,null,null,null,null,null,null,null,1847]
[null,null,null,null,null,null,null,null,null,null,null,null,null,null,null,null,null,null,null,null,null,null,1848]
[null,null,null,null,null,null,null,null,null,null,null,null,null,null,null,null,null,null,null,null,null,null,1849]
[null,null,null,null,null,null,null,null,null,null,null,null,null,null,null,null,null,null,null,null,null,null,1850]
[null,null,null,null,null,null,null,null,null,null,null,null,null,null,null,null,null,null,null,null,null,null,1851]
[null,null,null,null,null,null,null,null,null,null,null,null,null,null,null,null,null,null,null,null,null,null,1852]
[null,null,null,null,null,null,null,null,null,null,null,null,null,null,null,null,null,null,null,null,null,null,1853]
[null,null,null,null,null,null,null,null,null,null,null,null,null,null,null,null,null,null,null,null,null,null,1854]
[null,null,null,null,null,null,null,null,null,null,null,null,null,null,null,null,null,null,null,null,null,null,1855]
[null,null,null,null,null,null,null,null,null,null,null,null,null,null,null,null,null,null,null,null,null,null,1856]
[null,null,null,null,null,null,null,null,null,null,null,null,null,null,null,null,null,null,null,null,null,null,1857]
[null,null,null,null,null,null,null,null,null,null,null,null,null,null,null,null,null,null,null,null,null,null,1858]
[null,null,null,null,null,null,null,null,null,null,null,null,null,null,null,null,null,null,null,null,null,null,1859]
[null,null,null,null,null,null,null,null,null,null,null,null,null,null,null,null,null,null,null,null,null,null,1860]
[null,null,null,null,null,null,null,null,null,null,null,null,null,null,null,null,null,null,null,null,null,null,1861]
[null,null,null,null,null,null,null,null,null,null,null,null,null,null,null,null,null,null,null,null,null,null,1862]
[null,null,null,null,null,null,null,null,null,null,null,null,null,null,null,null,null,null,null,null,null,null,1863]
[null,null,null,null,null,null,null,null,null,null,null,null,null,null,null,null,null,null,null,null,null,null,1864]
[null,null,null,null,null,null,null,null,null,null,null,null,null,null,null,null,null,null,null,null,null,null,1865]
[null,null,null,null,null,null,null,null,null,null,null,null,null,null,null,null,null,null,null,null,null,null,1866]
[null,null,null,null,null,null,null,null,null,null,null,null,null,null,null,null,null,null,null,null,null,null,1867]
[null,null,null,null,null,null,null,null,null,null,null,null,null,null,null,null,null,null,null,null,null,null,1868]
[null,null,null,null,null,null,null,null,null,null,null,null,null,null,null,null,null,null,null,null,null,null,1869]
[null,null,null,null,null,null,null,null,null,null,null,null,null,null,null,null,null,null,null,null,null,null,1870]
[null,null,null,null,null,null,null,null,null,null,null,null,null,null,null,null,null,null,null,null,null,null,1871]
[null,null,null,null,null,null,null,null,null,null,null,null,null,null,null,null,null,null,null,null,null,null,1872]
[null,null,null,null,null,null,null,null,null,null,null,null,null,null,null,null,null,null,null,null,null,null,1873]
[null,null,null,null,null,null,null,null,null,null,null,null,null,null,null,null,null,null,null,null,null,null,1874]
[null,null,null,null,null,null,null,null,null,null,null,null,null,null,null,null,null,null,null,null,null,null,1875]
[null,null,null,null,null,null,null,null,null,null,null,null,null,null,null,null,null,null,null,null,null,null,1876]
[null,null,null,null,null,null,null,null,null,null,null,null,null,null,null,null,null,null,null,null,null,null,1877]
[null,null,null,null,null,null,null,null,null,null,null,null,null,null,null,null,null,null,null,null,null,null,1878]
[null,null,null,null,null,null,null,null,null,null,null,null,null,null,null,null,null,null,null,null,null,null,1879]
[null,null,null,null,null,null,null,null,null,null,null,null,null,null,null,null,null,null,null,null,null,null,1880]
[null,null,null,null,null,null,null,null,null,null,null,null,null,null,null,null,null,null,null,null,null,null,1881]
[null,null,null,null,null,null,null,null,null,null,null,null,null,null,null,null,null,null,null,null,null,null,1882]
[null,null,null,null,null,null,null,null,null,null,null,null,null,null,null,null,null,null,null,null,null,null,1883]
[null,null,null,null,null,null,null,null,null,null,null,null,null,null,null,null,null,null,null,null,null,null,1884]
[null,null,null,null,null,null,null,null,null,null,null,null,null,null,null,null,null,null,null,null,null,null,1885]
[null,null,null,null,null,null,null,null,null,null,null,null,null,null,null,null,null,null,null,null,null,null,1886]
[null,null,null,null,null,null,null,null,null,null,null,null,null,null,null,null,null,null,null,null,null,null,1887]
[null,null,null,null,null,null,null,null,null,null,null,null,null,null,null,null,null,null,null,null,null,null,1888]
[null,null,null,null,null,null,null,null,null,null,null,null,null,null,null,null,null,null,null,null,null,null,1889]
[null,null,null,null,null,null,null,null,null,null,null,null,null,null,null,null,null,null,null,null,null,null,1890]
[null,null,null,null,null,null,null,null,null,null,null,null,null,null,null,null,null,null,null,null,null,null,1891]
[null,null,null,null,null,null,null,null,null,null,null,null,null,null,null,null,null,null,null,null,null,null,1892]
[null,null,null,null,null,null,null,null,null,null,null,null,null,null,null,null,null,null,null,null,null,null,1893]
[null,null,null,null,null,null,null,null,null,null,null,null,null,null,null,null,null,null,null,null,null,null,1894]
[null,null,null,null,null,null,null,null,null,null,null,null,null,null,null,null,null,null,null,null,null,null,1895]
[null,null,null,null,null,null,null,null,null,null,null,null,null,null,null,null,null,null,null,null,null,null,1896]
[null,null,null,null,null,null,null,null,null,null,null,null,null,null,null,null,null,null,null,null,null,null,1897]
[null,null,null,null,null,null,null,null,null,null,null,null,null,null,null,null,null,null,null,null,null,null,1898]
[null,null,null,null,null,null,null,null,null,null,null,null,null,null,null,null,null,null,null,null,null,null,1899]
[null,null,null,null,null,null,null,null,null,null,null,null,null,null,null,null,null,null,null,null,null,null,1900]
[null,null,null,null,null,null,null,null,null,null,null,null,null,null,null,null,null,null,null,null,null,null,1901]
[null,null,null,null,null,null,null,null,null,null,null,null,null,null,null,null,null,null,null,null,null,null,1902]
[null,null,null,null,null,null,null,null,null,null,null,null,null,null,null,null,null,null,null,null,null,null,1903]
[null,null,null,null,null,null,null,null,null,null,null,null,null,null,null,null,null,null,null,null,null,null,1904]
[null,null,null,null,null,null,null,null,null,null,null,null,null,null,null,null,null,null,null,null,null,null,1905]
[null,null,null,null,null,null,null,null,null,null,null,null,null,null,null,null,null,null,null,null,null,null,1906]
[null,null,null,null,null,null,null,null,null,null,null,null,null,null,null,null,null,null,null,null,null,null,1907]
[null,null,null,null,null,null,null,null,null,null,null,null,null,null,null,null,null,null,null,null,null,null,1908]
[null,null,null,null,null,null,null,null,null,null,null,null,null,null,null,null,null,null,null,null,null,null,1909]
[null,null,null,null,null,null,null,null,null,null,null,null,null,null,null,null,null,null,null,null,null,null,1910]
[null,null,null,null,null,null,null,null,null,null,null,null,null,null,null,null,null,null,null,null,null,null,1911]
[null,null,null,null,null,null,null,null,null,null,null,null,null,null,null,null,null,null,null,null,null,null,1912]
[null,null,null,null,null,null,null,null,null,null,null,null,null,null,null,null,null,null,null,null,null,null,1913]
[null,null,null,null,null,null,null,null,null,null,null,null,null,null,null,null,null,null,null,null,null,null,1914]

{"sheet":"attachement n°1","index":2,"n_rows":12,"n_cols":3,"rows_kept":12,"cut":false,"hidden":true,"merged":[]}
[{"$f":"\"                                         \"&inf!A1","v":"                                         REPUBLIQUE ALGERIENNE DEMOCRATIQUE ET POPULAIRE"}]
[{"$f":"inf!A2","v":"                                                        WILAYA DE NAAMA"}]
[{"$f":"inf!A3","v":"                               DIRECTION DES EQUIPEMENTS PUBLICS NAAMA "}]
[{"$f":"\"                \"&inf!A4","v":"                ENTREPRISE (raison sociale et adresse) :  MOHAMMED TALHA"}]
[{"$f":"\"                \"&inf!A5","v":"                HAI BELKHADEM RAMDAN MRCHERIA  WILAYA DE NAAMA"}]
[{"$f":"\"                \"&inf!A6","v":"                Opération : Aménagement des établissements scolaires du cycle secondaire  à travers la wilaya   \n"}]
[{"$f":"\"                \"&inf!A7","v":"                Lot09 : Travaux d’aménagement et de réhabilitions au lycée IMAM MALEK à AIN SEFRA\n \n                                                            \n"}]
[{"$f":"\"                \"&inf!A8","v":"                Montant du marche en chiffre :5 186 466,25 DA"}]
[{"$f":"\"                \"&inf!A9","v":"                CODE FISCALE : 1234567891011"}]
[{"$f":"\"                \"&inf!A10","v":"                COMPTE :  00100 01010101010101  BNA. AGENCE : ALGER."}]
[{"$f":"\"                \"&inf!A11","v":"                N R C:16/00 000000A 00   En date du : 04/05/2014"}]
[null,null,"ATTACHEMENT N°01"]

{"sheet":"attachement n°2","index":3,"n_rows":12,"n_cols":3,"rows_kept":12,"cut":false,"hidden":true,"merged":[]}
[{"$f":"\"                                         \"&inf!A1","v":"                                         REPUBLIQUE ALGERIENNE DEMOCRATIQUE ET POPULAIRE"}]
[{"$f":"inf!A2","v":"                                                        WILAYA DE NAAMA"}]
[{"$f":"inf!A3","v":"                               DIRECTION DES EQUIPEMENTS PUBLICS NAAMA "}]
[{"$f":"\"                \"&inf!A4","v":"                ENTREPRISE (raison sociale et adresse) :  MOHAMMED TALHA"}]
[{"$f":"\"                \"&inf!A5","v":"                HAI BELKHADEM RAMDAN MRCHERIA  WILAYA DE NAAMA"}]
[{"$f":"\"                \"&inf!A6","v":"                Opération : Aménagement des établissements scolaires du cycle secondaire  à travers la wilaya   \n"}]
[{"$f":"\"                \"&inf!A7","v":"                Lot09 : Travaux d’aménagement et de réhabilitions au lycée IMAM MALEK à AIN SEFRA\n \n                                                            \n"}]
[{"$f":"\"                \"&inf!A8","v":"                Montant du marche en chiffre :5 186 466,25 DA"}]
[{"$f":"\"                \"&inf!A9","v":"                CODE FISCALE : 1234567891011"}]
[{"$f":"\"                \"&inf!A10","v":"                COMPTE :  00100 01010101010101  BNA. AGENCE : ALGER."}]
[{"$f":"\"                \"&inf!A11","v":"                N R C:16/00 000000A 00   En date du : 04/05/2014"}]
[null,null,"ATTACHEMENT N°02"]

{"sheet":"attachement n°3","index":4,"n_rows":12,"n_cols":3,"rows_kept":12,"cut":false,"hidden":true,"merged":[]}
[{"$f":"\"                                         \"&inf!A1","v":"                                         REPUBLIQUE ALGERIENNE DEMOCRATIQUE ET POPULAIRE"}]
[{"$f":"inf!A2","v":"                                                        WILAYA DE NAAMA"}]
[{"$f":"inf!A3","v":"                               DIRECTION DES EQUIPEMENTS PUBLICS NAAMA "}]
[{"$f":"\"                \"&inf!A4","v":"                ENTREPRISE (raison sociale et adresse) :  MOHAMMED TALHA"}]
[{"$f":"\"                \"&inf!A5","v":"                HAI BELKHADEM RAMDAN MRCHERIA  WILAYA DE NAAMA"}]
[{"$f":"\"                \"&inf!A6","v":"                Opération : Aménagement des établissements scolaires du cycle secondaire  à travers la wilaya   \n"}]
[{"$f":"\"                \"&inf!A7","v":"                Lot09 : Travaux d’aménagement et de réhabilitions au lycée IMAM MALEK à AIN SEFRA\n \n                                                            \n"}]
[{"$f":"\"                \"&inf!A8","v":"                Montant du marche en chiffre :5 186 466,25 DA"}]
[{"$f":"\"                \"&inf!A9","v":"                CODE FISCALE : 1234567891011"}]
[{"$f":"\"                \"&inf!A10","v":"                COMPTE :  00100 01010101010101  BNA. AGENCE : ALGER."}]
[{"$f":"\"                \"&inf!A11","v":"                N R C:16/00 000000A 00   En date du : 04/05/2014"}]
[null,null,"ATTACHEMENT N°03"]

{"sheet":"attachement n°4","index":5,"n_rows":12,"n_cols":3,"rows_kept":12,"cut":false,"hidden":true,"merged":[]}
[{"$f":"\"                                         \"&inf!A1","v":"                                         REPUBLIQUE ALGERIENNE DEMOCRATIQUE ET POPULAIRE"}]
[{"$f":"inf!A2","v":"                                                        WILAYA DE NAAMA"}]
[{"$f":"inf!A3","v":"                               DIRECTION DES EQUIPEMENTS PUBLICS NAAMA "}]
[{"$f":"\"                \"&inf!A4","v":"                ENTREPRISE (raison sociale et adresse) :  MOHAMMED TALHA"}]
[{"$f":"\"                \"&inf!A5","v":"                HAI BELKHADEM RAMDAN MRCHERIA  WILAYA DE NAAMA"}]
[{"$f":"\"                \"&inf!A6","v":"                Opération : Aménagement des établissements scolaires du cycle secondaire  à travers la wilaya   \n"}]
[{"$f":"\"                \"&inf!A7","v":"                Lot09 : Travaux d’aménagement et de réhabilitions au lycée IMAM MALEK à AIN SEFRA\n \n                                                            \n"}]
[{"$f":"\"                \"&inf!A8","v":"                Montant du marche en chiffre :5 186 466,25 DA"}]
[{"$f":"\"                \"&inf!A9","v":"                CODE FISCALE : 1234567891011"}]
[{"$f":"\"                \"&inf!A10","v":"                COMPTE :  00100 01010101010101  BNA. AGENCE : ALGER."}]
[{"$f":"\"                \"&inf!A11","v":"                N R C:16/00 000000A 00   En date du : 04/05/2014"}]
[null,null,"ATTACHEMENT N°04"]

{"sheet":"avn1","index":6,"n_rows":12,"n_cols":8,"rows_kept":12,"cut":false,"hidden":true,"merged":[]}
[{"$f":"\"                                         \"&inf!A1","v":"                                         REPUBLIQUE ALGERIENNE DEMOCRATIQUE ET POPULAIRE"},null,null,null,null,null,null,"Fouille en pleine masse Fouille en pleine masse  Fouille en pleine masse "]
[{"$f":"inf!A2","v":"                                                        WILAYA DE NAAMA"},null,null,null,null,null,null,{"$f":"IFERROR(MATCH(H1,B:B,0),0)","v":0}]
[{"$f":"inf!A3","v":"                               DIRECTION DES EQUIPEMENTS PUBLICS NAAMA "}]
[{"$f":"\"                \"&inf!A4","v":"                ENTREPRISE (raison sociale et adresse) :  MOHAMMED TALHA"}]
[{"$f":"\"                \"&inf!A5","v":"                HAI BELKHADEM RAMDAN MRCHERIA  WILAYA DE NAAMA"}]
[{"$f":"\"                \"&inf!A6","v":"                Opération : Aménagement des établissements scolaires du cycle secondaire  à travers la wilaya   \n"}]
[{"$f":"\"                \"&inf!A7","v":"                Lot09 : Travaux d’aménagement et de réhabilitions au lycée IMAM MALEK à AIN SEFRA\n \n                                                            \n"}]
[{"$f":"\"                \"&inf!A8","v":"                Montant du marche en chiffre :5 186 466,25 DA"}]
[{"$f":"\"                \"&inf!A9","v":"                CODE FISCALE : 1234567891011"}]
[{"$f":"\"                \"&inf!A10","v":"                COMPTE :  00100 01010101010101  BNA. AGENCE : ALGER."}]
[{"$f":"\"                \"&inf!A11","v":"                N R C:16/00 000000A 00   En date du : 04/05/2014"}]
["                     ","AVNON N°02"]

{"sheet":"avn2","index":7,"n_rows":12,"n_cols":8,"rows_kept":12,"cut":false,"hidden":true,"merged":[]}
[{"$f":"\"                                         \"&inf!A1","v":"                                         REPUBLIQUE ALGERIENNE DEMOCRATIQUE ET POPULAIRE"},null,null,null,null,null,null,"Fouille en pleine masse Fouille en pleine masse  Fouille en pleine masse "]
[{"$f":"inf!A2","v":"                                                        WILAYA DE NAAMA"},null,null,null,null,null,null,{"$f":"IFERROR(MATCH(H1,B:B,0),0)","v":0}]
[{"$f":"inf!A3","v":"                               DIRECTION DES EQUIPEMENTS PUBLICS NAAMA "}]
[{"$f":"\"                \"&inf!A4","v":"                ENTREPRISE (raison sociale et adresse) :  MOHAMMED TALHA"}]
[{"$f":"\"                \"&inf!A5","v":"                HAI BELKHADEM RAMDAN MRCHERIA  WILAYA DE NAAMA"}]
[{"$f":"\"                \"&inf!A6","v":"                Opération : Aménagement des établissements scolaires du cycle secondaire  à travers la wilaya   \n"}]
[{"$f":"\"                \"&inf!A7","v":"                Lot09 : Travaux d’aménagement et de réhabilitions au lycée IMAM MALEK à AIN SEFRA\n \n                                                            \n"}]
[{"$f":"\"                \"&inf!A8","v":"                Montant du marche en chiffre :5 186 466,25 DA"}]
[{"$f":"\"                \"&inf!A9","v":"                CODE FISCALE : 1234567891011"}]
[{"$f":"\"                \"&inf!A10","v":"                COMPTE :  00100 01010101010101  BNA. AGENCE : ALGER."}]
[{"$f":"\"                \"&inf!A11","v":"                N R C:16/00 000000A 00   En date du : 04/05/2014"}]
["                     ","AVNON N°02"]

{"sheet":"avn3","index":8,"n_rows":12,"n_cols":8,"rows_kept":12,"cut":false,"hidden":true,"merged":[]}
[{"$f":"\"                                         \"&inf!A1","v":"                                         REPUBLIQUE ALGERIENNE DEMOCRATIQUE ET POPULAIRE"},null,null,null,null,null,null,"Béton armé en élévation en ciment CPI-42,5 "]
[{"$f":"inf!A2","v":"                                                        WILAYA DE NAAMA"},null,null,null,null,null,null,{"$f":"IFERROR(MATCH(H1,B:B,0),0)","v":0}]
[{"$f":"inf!A3","v":"                               DIRECTION DES EQUIPEMENTS PUBLICS NAAMA "}]
[{"$f":"\"                \"&inf!A4","v":"                ENTREPRISE (raison sociale et adresse) :  MOHAMMED TALHA"}]
[{"$f":"\"                \"&inf!A5","v":"                HAI BELKHADEM RAMDAN MRCHERIA  WILAYA DE NAAMA"}]
[{"$f":"\"                \"&inf!A6","v":"                Opération : Aménagement des établissements scolaires du cycle secondaire  à travers la wilaya   \n"}]
[{"$f":"\"                \"&inf!A7","v":"                Lot09 : Travaux d’aménagement et de réhabilitions au lycée IMAM MALEK à AIN SEFRA\n \n                                                            \n"}]
[{"$f":"\"                \"&inf!A8","v":"                Montant du marche en chiffre :5 186 466,25 DA"}]
[{"$f":"\"                \"&inf!A9","v":"                CODE FISCALE : 1234567891011"}]
[{"$f":"\"                \"&inf!A10","v":"                COMPTE :  00100 01010101010101  BNA. AGENCE : ALGER."}]
[{"$f":"\"                \"&inf!A11","v":"                N R C:16/00 000000A 00   En date du : 04/05/2014"}]
["                     ","AVNON N°03"]

{"sheet":"avn4","index":9,"n_rows":12,"n_cols":2,"rows_kept":12,"cut":false,"hidden":true,"merged":[]}
[{"$f":"\"                                         \"&inf!A1","v":"                                         REPUBLIQUE ALGERIENNE DEMOCRATIQUE ET POPULAIRE"}]
[{"$f":"inf!A2","v":"                                                        WILAYA DE NAAMA"}]
[{"$f":"inf!A3","v":"                               DIRECTION DES EQUIPEMENTS PUBLICS NAAMA "}]
[{"$f":"\"                \"&inf!A4","v":"                ENTREPRISE (raison sociale et adresse) :  MOHAMMED TALHA"}]
[{"$f":"\"                \"&inf!A5","v":"                HAI BELKHADEM RAMDAN MRCHERIA  WILAYA DE NAAMA"}]
[{"$f":"\"                \"&inf!A6","v":"                Opération : Aménagement des établissements scolaires du cycle secondaire  à travers la wilaya   \n"}]
[{"$f":"\"                \"&inf!A7","v":"                Lot09 : Travaux d’aménagement et de réhabilitions au lycée IMAM MALEK à AIN SEFRA\n \n                                                            \n"}]
[{"$f":"\"                \"&inf!A8","v":"                Montant du marche en chiffre :5 186 466,25 DA"}]
[{"$f":"\"                \"&inf!A9","v":"                CODE FISCALE : 1234567891011"}]
[{"$f":"\"                \"&inf!A10","v":"                COMPTE :  00100 01010101010101  BNA. AGENCE : ALGER."}]
[{"$f":"\"                \"&inf!A11","v":"                N R C:16/00 000000A 00   En date du : 04/05/2014"}]
[null,"AVNON N°04"]

{"sheet":"situation1","index":10,"n_rows":38,"n_cols":12,"rows_kept":38,"cut":false,"hidden":true,"merged":[[10,0,10,11],[11,0,11,11],[14,8,14,11],[14,0,15,0],[14,1,15,1],[14,2,15,2],[14,3,14,6],[14,7,15,7],[0,0,0,7],[1,0,1,11],[2,0,2,11],[4,0,4,11],[9,0,9,11],[3,0,3,11],[5,0,5,11],[6,0,6,11],[7,0,7,11],[8,0,8,11]]}
[{"$f":"'attachement n°1'!A1","v":"                                         REPUBLIQUE ALGERIENNE DEMOCRATIQUE ET POPULAIRE"}]
[{"$f":"'attachement n°1'!A2","v":"                                                        WILAYA DE NAAMA"}]
[{"$f":"'attachement n°1'!A3","v":"                               DIRECTION DES EQUIPEMENTS PUBLICS NAAMA "}]
[{"$f":"'attachement n°1'!A4","v":"                ENTREPRISE (raison sociale et adresse) :  MOHAMMED TALHA"}]
[{"$f":"'attachement n°1'!A5","v":"                HAI BELKHADEM RAMDAN MRCHERIA  WILAYA DE NAAMA"}]
[{"$f":"'attachement n°1'!A6","v":"                Opération : Aménagement des établissements scolaires du cycle secondaire  à travers la wilaya   \n"}]
[{"$f":"'attachement n°1'!A7","v":"                Lot09 : Travaux d’aménagement et de réhabilitions au lycée IMAM MALEK à AIN SEFRA\n \n                                                            \n"}]
[{"$f":"'attachement n°1'!A8","v":"                Montant du marche en chiffre :5 186 466,25 DA"}]
[{"$f":"'attachement n°1'!A9","v":"                CODE FISCALE : 1234567891011"}]
[{"$f":"'attachement n°1'!A10","v":"                COMPTE :  00100 01010101010101  BNA. AGENCE : ALGER."}]
[{"$f":"'attachement n°1'!A11","v":"                N R C:16/00 000000A 00   En date du : 04/05/2014"}]
["                                                           DECOMPTE  PROVISOIRE DE LA  SITUATION N°01 ET DEFINITIF"]
[]
[]
["N","DESIGNATION","U","QUANTITE",null,null,null,"PRIX UNITAIRE","MONTANT"]
[null,null,null,"PREVU AU MARCHE","PRECEDENTE","MOIS","CUMULEE",null,"PREVU AU MARCHE","PRECEDENT","MOIS","CUMULE"]
[{"$f":"IF(Q2=0,\"\",Q2)","v":""},{"$f":"R2","v":0},{"$f":"IFERROR(IF(VLOOKUP(B17,préattach!AT:AW,2,0)=0,\"\",VLOOKUP(B17,préattach!AT:AW,2,0)),\"\")","v":""},{"$f":"IFERROR(IF(VLOOKUP(B17,préattach!AT:AW,3,0)=0,\"\",VLOOKUP(B17,préattach!AT:AW,3,0)),\"\")","v":""},{"$f":"IF(D17=\"\",\"\",0)","v":""},{"$f":"IFERROR(VLOOKUP(B17,$R:$S,2,0),\"\")","v":""},{"$f":"F17","v":""},{"$f":"IFERROR(IF(VLOOKUP(B17,préattach!AT:AW,4,0)=\"\",\"\",VLOOKUP(B17,préattach!AT:AW,4,0)),\"\")","v":""},{"$f":"IFERROR(D17*H17,\"\")","v":""},{"$f":"E17","v":""},{"$f":"IFERROR(H17*F17,\"\")","v":""},{"$f":"IF(K17=\"\",\"\",K17)","v":""}]
["",0,{"$f":"IFERROR(IF(VLOOKUP(B18,préattach!AT:AW,2,0)=0,\"\",VLOOKUP(B18,préattach!AT:AW,2,0)),\"\")","v":""},{"$f":"IFERROR(IF(VLOOKUP(B18,préattach!AT:AW,3,0)=0,\"\",VLOOKUP(B18,préattach!AT:AW,3,0)),\"\")","v":""},{"$f":"IF(D18=\"\",\"\",0)","v":""},"",{"$f":"F18","v":""},{"$f":"IFERROR(IF(VLOOKUP(B18,préattach!AT:AW,4,0)=\"\",\"\",VLOOKUP(B18,préattach!AT:AW,4,0)),\"\")","v":""},{"$f":"IFERROR(D18*H18,\"\")","v":""},{"$f":"E18","v":""},{"$f":"IFERROR(H18*F18,\"\")","v":""},{"$f":"IF(K18=\"\",\"\",K18)","v":""}]
["",0,{"$f":"IFERROR(IF(VLOOKUP(B19,préattach!AT:AW,2,0)=0,\"\",VLOOKUP(B19,préattach!AT:AW,2,0)),\"\")","v":""},{"$f":"IFERROR(IF(VLOOKUP(B19,préattach!AT:AW,3,0)=0,\"\",VLOOKUP(B19,préattach!AT:AW,3,0)),\"\")","v":""},"","",{"$f":"F19","v":""},{"$f":"IFERROR(IF(VLOOKUP(B19,préattach!AT:AW,4,0)=\"\",\"\",VLOOKUP(B19,préattach!AT:AW,4,0)),\"\")","v":""},"","","",{"$f":"IF(K19=\"\",\"\",K19)","v":""}]
["",0,{"$f":"IFERROR(IF(VLOOKUP(B20,préattach!AT:AW,2,0)=0,\"\",VLOOKUP(B20,préattach!AT:AW,2,0)),\"\")","v":""},{"$f":"IFERROR(IF(VLOOKUP(B20,préattach!AT:AW,3,0)=0,\"\",VLOOKUP(B20,préattach!AT:AW,3,0)),\"\")","v":""},"","","",{"$f":"IFERROR(IF(VLOOKUP(B20,préattach!AT:AW,4,0)=\"\",\"\",VLOOKUP(B20,préattach!AT:AW,4,0)),\"\")","v":""},"","","",""]
["",0,{"$f":"IFERROR(IF(VLOOKUP(B21,préattach!AT:AW,2,0)=0,\"\",VLOOKUP(B21,préattach!AT:AW,2,0)),\"\")","v":""},{"$f":"IFERROR(IF(VLOOKUP(B21,préattach!AT:AW,3,0)=0,\"\",VLOOKUP(B21,préattach!AT:AW,3,0)),\"\")","v":""},"","","",{"$f":"IFERROR(IF(VLOOKUP(B21,préattach!AT:AW,4,0)=\"\",\"\",VLOOKUP(B21,préattach!AT:AW,4,0)),\"\")","v":""},"","","",""]
["",0,{"$f":"IFERROR(IF(VLOOKUP(B22,préattach!AT:AW,2,0)=0,\"\",VLOOKUP(B22,préattach!AT:AW,2,0)),\"\")","v":""},{"$f":"IFERROR(IF(VLOOKUP(B22,préattach!AT:AW,3,0)=0,\"\",VLOOKUP(B22,préattach!AT:AW,3,0)),\"\")","v":""},"","","",{"$f":"IFERROR(IF(VLOOKUP(B22,préattach!AT:AW,4,0)=\"\",\"\",VLOOKUP(B22,préattach!AT:AW,4,0)),\"\")","v":""},{"$f":"IFERROR(D22*H22,\"\")","v":""},{"$f":"E22","v":""},{"$f":"IFERROR(H22*F22,\"\")","v":""},{"$f":"IF(K22=\"\",\"\",K22)","v":""}]
["",0,{"$f":"IFERROR(IF(VLOOKUP(B23,préattach!AT:AW,2,0)=0,\"\",VLOOKUP(B23,préattach!AT:AW,2,0)),\"\")","v":""},{"$f":"IFERROR(IF(VLOOKUP(B23,préattach!AT:AW,3,0)=0,\"\",VLOOKUP(B23,préattach!AT:AW,3,0)),\"\")","v":""},"","","",{"$f":"IFERROR(IF(VLOOKUP(B23,préattach!AT:AW,4,0)=\"\",\"\",VLOOKUP(B23,préattach!AT:AW,4,0)),\"\")","v":""},"","","",""]
["",0,{"$f":"IFERROR(IF(VLOOKUP(B24,préattach!AT:AW,2,0)=0,\"\",VLOOKUP(B24,préattach!AT:AW,2,0)),\"\")","v":""},{"$f":"IFERROR(IF(VLOOKUP(B24,préattach!AT:AW,3,0)=0,\"\",VLOOKUP(B24,préattach!AT:AW,3,0)),\"\")","v":""},"","","",{"$f":"IFERROR(IF(VLOOKUP(B24,préattach!AT:AW,4,0)=\"\",\"\",VLOOKUP(B24,préattach!AT:AW,4,0)),\"\")","v":""},"","","",""]
["",0,{"$f":"IFERROR(IF(VLOOKUP(B25,préattach!AT:AW,2,0)=0,\"\",VLOOKUP(B25,préattach!AT:AW,2,0)),\"\")","v":""},{"$f":"IFERROR(IF(VLOOKUP(B25,préattach!AT:AW,3,0)=0,\"\",VLOOKUP(B25,préattach!AT:AW,3,0)),\"\")","v":""},"","","",{"$f":"IFERROR(IF(VLOOKUP(B25,préattach!AT:AW,4,0)=\"\",\"\",VLOOKUP(B25,préattach!AT:AW,4,0)),\"\")","v":""},"","","",""]
[null,0,{"$f":"IFERROR(IF(VLOOKUP(B26,préattach!AT:AW,2,0)=0,\"\",VLOOKUP(B26,préattach!AT:AW,2,0)),\"\")","v":""},{"$f":"IFERROR(IF(VLOOKUP(B26,préattach!AT:AW,3,0)=0,\"\",VLOOKUP(B26,préattach!AT:AW,3,0)),\"\")","v":""},"","","",{"$f":"IFERROR(IF(VLOOKUP(B26,préattach!AT:AW,4,0)=\"\",\"\",VLOOKUP(B26,préattach!AT:AW,4,0)),\"\")","v":""},"","","",""]
[null,0,{"$f":"IFERROR(IF(VLOOKUP(B27,préattach!AT:AW,2,0)=0,\"\",VLOOKUP(B27,préattach!AT:AW,2,0)),\"\")","v":""},{"$f":"IFERROR(IF(VLOOKUP(B27,préattach!AT:AW,3,0)=0,\"\",VLOOKUP(B27,préattach!AT:AW,3,0)),\"\")","v":""},"","","",{"$f":"IFERROR(IF(VLOOKUP(B27,préattach!AT:AW,4,0)=\"\",\"\",VLOOKUP(B27,préattach!AT:AW,4,0)),\"\")","v":""},"","","",""]
[null,0,{"$f":"IFERROR(IF(VLOOKUP(B28,préattach!AT:AW,2,0)=0,\"\",VLOOKUP(B28,préattach!AT:AW,2,0)),\"\")","v":""},{"$f":"IFERROR(IF(VLOOKUP(B28,préattach!AT:AW,3,0)=0,\"\",VLOOKUP(B28,préattach!AT:AW,3,0)),\"\")","v":""},"","","",{"$f":"IFERROR(IF(VLOOKUP(B28,préattach!AT:AW,4,0)=\"\",\"\",VLOOKUP(B28,préattach!AT:AW,4,0)),\"\")","v":""},"","","",""]
[null,0,{"$f":"IFERROR(IF(VLOOKUP(B29,préattach!AT:AW,2,0)=0,\"\",VLOOKUP(B29,préattach!AT:AW,2,0)),\"\")","v":""},{"$f":"IFERROR(IF(VLOOKUP(B29,préattach!AT:AW,3,0)=0,\"\",VLOOKUP(B29,préattach!AT:AW,3,0)),\"\")","v":""},"","","",{"$f":"IFERROR(IF(VLOOKUP(B29,préattach!AT:AW,4,0)=\"\",\"\",VLOOKUP(B29,préattach!AT:AW,4,0)),\"\")","v":""},"","","",""]
[null,0,{"$f":"IFERROR(IF(VLOOKUP(B30,préattach!AT:AW,2,0)=0,\"\",VLOOKUP(B30,préattach!AT:AW,2,0)),\"\")","v":""},{"$f":"IFERROR(IF(VLOOKUP(B30,préattach!AT:AW,3,0)=0,\"\",VLOOKUP(B30,préattach!AT:AW,3,0)),\"\")","v":""},"","","",{"$f":"IFERROR(IF(VLOOKUP(B30,préattach!AT:AW,4,0)=\"\",\"\",VLOOKUP(B30,préattach!AT:AW,4,0)),\"\")","v":""},"","","",""]
[null,0,{"$f":"IFERROR(IF(VLOOKUP(B31,préattach!AT:AW,2,0)=0,\"\",VLOOKUP(B31,préattach!AT:AW,2,0)),\"\")","v":""},{"$f":"IFERROR(IF(VLOOKUP(B31,préattach!AT:AW,3,0)=0,\"\",VLOOKUP(B31,préattach!AT:AW,3,0)),\"\")","v":""},"","","",{"$f":"IFERROR(IF(VLOOKUP(B31,préattach!AT:AW,4,0)=\"\",\"\",VLOOKUP(B31,préattach!AT:AW,4,0)),\"\")","v":""},"","","",""]
[null,0,{"$f":"IFERROR(IF(VLOOKUP(B32,préattach!AT:AW,2,0)=0,\"\",VLOOKUP(B32,préattach!AT:AW,2,0)),\"\")","v":""},{"$f":"IFERROR(IF(VLOOKUP(B32,préattach!AT:AW,3,0)=0,\"\",VLOOKUP(B32,préattach!AT:AW,3,0)),\"\")","v":""},"","","",{"$f":"IFERROR(IF(VLOOKUP(B32,préattach!AT:AW,4,0)=\"\",\"\",VLOOKUP(B32,préattach!AT:AW,4,0)),\"\")","v":""},"","","",""]
[null,0,{"$f":"IFERROR(IF(VLOOKUP(B33,préattach!AT:AW,2,0)=0,\"\",VLOOKUP(B33,préattach!AT:AW,2,0)),\"\")","v":""},{"$f":"IFERROR(IF(VLOOKUP(B33,préattach!AT:AW,3,0)=0,\"\",VLOOKUP(B33,préattach!AT:AW,3,0)),\"\")","v":""},"","","",{"$f":"IFERROR(IF(VLOOKUP(B33,préattach!AT:AW,4,0)=\"\",\"\",VLOOKUP(B33,préattach!AT:AW,4,0)),\"\")","v":""},"","","",""]
[null,null,null,null,null,null,"TOTAL GENERAL EN HT ",null,{"$f":"SUM(I17:I33)","v":0},{"$f":"SUM(J17:J33)","v":0},0,0]
[null,null,null,null,null,null,"RABAIS 3%",null,{"$f":"I34*3%","v":0},{"$f":"J34*3%","v":0},0,0]
[null,null,null,null,null,null,"MONTANT APRES RABAIS",null,{"$f":"I34-I35","v":0},{"$f":"J34-J35","v":0},0,0]
[null,null,null,null,null,null,"T.V.A 19 %",null,{"$f":"I36*19%","v":0},{"$f":"J36*19%","v":0},{"$f":"K36*19%","v":0},{"$f":"L36*19%","v":0}]
[null,null,null,null,null,null,"TOTAL /TTC",null,{"$f":"I36+I37","v":0},{"$f":"J36+J37","v":0},0,0]

{"sheet":"situation2","index":11,"n_rows":42,"n_cols":12,"rows_kept":42,"cut":false,"hidden":true,"merged":[[10,0,10,11],[11,0,11,11],[5,0,5,11],[6,0,6,11],[7,0,7,11],[8,0,8,11],[9,0,9,11],[0,0,0,7],[1,0,1,11],[2,0,2,11],[4,0,4,11],[3,0,3,11],[14,0,15,0],[14,1,15,1],[14,3,14,6],[14,8,14,11],[14,2,15,2],[14,7,15,7]]}
[{"$f":"situation1!A1","v":"                                         REPUBLIQUE ALGERIENNE DEMOCRATIQUE ET POPULAIRE"}]
[{"$f":"situation1!A2","v":"                                                        WILAYA DE NAAMA"}]
[{"$f":"'attachement n°1'!A3","v":"                               DIRECTION DES EQUIPEMENTS PUBLICS NAAMA "}]
[{"$f":"'attachement n°1'!A4","v":"                ENTREPRISE (raison sociale et adresse) :  MOHAMMED TALHA"}]
[{"$f":"'attachement n°1'!A5","v":"                HAI BELKHADEM RAMDAN MRCHERIA  WILAYA DE NAAMA"}]
[{"$f":"'attachement n°1'!A6","v":"                Opération : Aménagement des établissements scolaires du cycle secondaire  à travers la wilaya   \n"}]
[{"$f":"'attachement n°1'!A7","v":"                Lot09 : Travaux d’aménagement et de réhabilitions au lycée IMAM MALEK à AIN SEFRA\n \n                                                            \n"}]
[{"$f":"'attachement n°1'!A8","v":"                Montant du marche en chiffre :5 186 466,25 DA"}]
[{"$f":"'attachement n°1'!A9","v":"                CODE FISCALE : 1234567891011"}]
[{"$f":"'attachement n°1'!A10","v":"                COMPTE :  00100 01010101010101  BNA. AGENCE : ALGER."}]
[{"$f":"'attachement n°1'!A11","v":"                N R C:16/00 000000A 00   En date du : 04/05/2014"}]
["                                                           DECOMPTE  PROVISOIRE DE LA  SITUATION N°02 ET DEFINITIF"]
[]
[]
["N","DESIGNATION","U","QUANTITE",null,null,null,"PRIX UNITAIRE","MONTANT"]
[null,null,null,"PREVU AU MARCHE","PRECEDENTE","MOIS","CUMULEE",null,"PREVU AU MARCHE","PRECEDENT","MOIS","CUMULE"]
[{"$f":"IF(Q2=0,\"\",Q2)","v":""},{"$f":"R2","v":0},{"$f":"IFERROR(IF(VLOOKUP(B17,préattach!AT:AW,2,0)=0,\"\",VLOOKUP(B17,préattach!AT:AW,2,0)),\"\")","v":""},{"$f":"IFERROR(IF(VLOOKUP(B17,préattach!AT:AW,3,0)=0,\"\",VLOOKUP(B17,préattach!AT:AW,3,0)),\"\")","v":""},{"$f":"IF(C17=\"\",\"\",IFERROR(VLOOKUP(B17,situation1!R:S,2,0),0))","v":""},{"$f":"IFERROR(VLOOKUP(B17,$R:$S,2,0),\"\")","v":""},{"$f":"IF(E17=\"\",F17,F17+E17)","v":""},{"$f":"IFERROR(IF(VLOOKUP(B17,préattach!AT:AW,4,0)=\"\",\"\",VLOOKUP(B17,préattach!AT:AW,4,0)),\"\")","v":""},{"$f":"IFERROR(D17*H17,\"\")","v":""},{"$f":"IF(C17=\"\",\"\",IFERROR(E17*H17,0))","v":""},{"$f":"IFERROR(H17*F17,\"\")","v":""},{"$f":"IF(K17=\"\",\"\",K17)","v":""}]
["",0,{"$f":"IFERROR(IF(VLOOKUP(B18,préattach!AT:AW,2,0)=0,\"\",VLOOKUP(B18,préattach!AT:AW,2,0)),\"\")","v":""},{"$f":"IFERROR(IF(VLOOKUP(B18,préattach!AT:AW,3,0)=0,\"\",VLOOKUP(B18,préattach!AT:AW,3,0)),\"\")","v":""},{"$f":"IF(C18=\"\",\"\",IFERROR(VLOOKUP(B18,situation1!R:S,2,0),0))","v":""},{"$f":"IFERROR(VLOOKUP(B18,$R:$S,2,0),\"\")","v":""},{"$f":"IF(E18=\"\",F18,F18+E18)","v":""},{"$f":"IFERROR(IF(VLOOKUP(B18,préattach!AT:AW,4,0)=\"\",\"\",VLOOKUP(B18,préattach!AT:AW,4,0)),\"\")","v":""},{"$f":"IFERROR(D18*H18,\"\")","v":""},{"$f":"IF(C18=\"\",\"\",IFERROR(E18*H18,0))","v":""},{"$f":"IFERROR(H18*F18,\"\")","v":""},{"$f":"IFERROR(K18+J18,\"\")","v":""}]
["",0,{"$f":"IFERROR(IF(VLOOKUP(B19,préattach!AT:AW,2,0)=0,\"\",VLOOKUP(B19,préattach!AT:AW,2,0)),\"\")","v":""},{"$f":"IFERROR(IF(VLOOKUP(B19,préattach!AT:AW,3,0)=0,\"\",VLOOKUP(B19,préattach!AT:AW,3,0)),\"\")","v":""},{"$f":"IF(C19=\"\",\"\",IFERROR(VLOOKUP(B19,situation1!R:S,2,0),0))","v":""},"",{"$f":"IF(E19=\"\",F19,F19+E19)","v":""},{"$f":"IFERROR(IF(VLOOKUP(B19,préattach!AT:AW,4,0)=\"\",\"\",VLOOKUP(B19,préattach!AT:AW,4,0)),\"\")","v":""},"","","",{"$f":"IFERROR(K19+J19,\"\")","v":""}]
["",0,{"$f":"IFERROR(IF(VLOOKUP(B20,préattach!AT:AW,2,0)=0,\"\",VLOOKUP(B20,préattach!AT:AW,2,0)),\"\")","v":""},{"$f":"IFERROR(IF(VLOOKUP(B20,préattach!AT:AW,3,0)=0,\"\",VLOOKUP(B20,préattach!AT:AW,3,0)),\"\")","v":""},{"$f":"IF(C20=\"\",\"\",IFERROR(VLOOKUP(B20,situation1!R:S,2,0),0))","v":""},"","",{"$f":"IFERROR(IF(VLOOKUP(B20,préattach!AT:AW,4,0)=\"\",\"\",VLOOKUP(B20,préattach!AT:AW,4,0)),\"\")","v":""},"","","",""]
["",0,{"$f":"IFERROR(IF(VLOOKUP(B21,préattach!AT:AW,2,0)=0,\"\",VLOOKUP(B21,préattach!AT:AW,2,0)),\"\")","v":""},{"$f":"IFERROR(IF(VLOOKUP(B21,préattach!AT:AW,3,0)=0,\"\",VLOOKUP(B21,préattach!AT:AW,3,0)),\"\")","v":""},{"$f":"IF(C21=\"\",\"\",IFERROR(VLOOKUP(B21,situation1!R:S,2,0),0))","v":""},"","",{"$f":"IFERROR(IF(VLOOKUP(B21,préattach!AT:AW,4,0)=\"\",\"\",VLOOKUP(B21,préattach!AT:AW,4,0)),\"\")","v":""},"","","",""]
["",0,{"$f":"IFERROR(IF(VLOOKUP(B22,préattach!AT:AW,2,0)=0,\"\",VLOOKUP(B22,préattach!AT:AW,2,0)),\"\")","v":""},{"$f":"IFERROR(IF(VLOOKUP(B22,préattach!AT:AW,3,0)=0,\"\",VLOOKUP(B22,préattach!AT:AW,3,0)),\"\")","v":""},{"$f":"IF(C22=\"\",\"\",IFERROR(VLOOKUP(B22,situation1!R:S,2,0),0))","v":""},"","",{"$f":"IFERROR(IF(VLOOKUP(B22,préattach!AT:AW,4,0)=\"\",\"\",VLOOKUP(B22,préattach!AT:AW,4,0)),\"\")","v":""},"","","",""]
["",0,{"$f":"IFERROR(IF(VLOOKUP(B23,préattach!AT:AW,2,0)=0,\"\",VLOOKUP(B23,préattach!AT:AW,2,0)),\"\")","v":""},{"$f":"IFERROR(IF(VLOOKUP(B23,préattach!AT:AW,3,0)=0,\"\",VLOOKUP(B23,préattach!AT:AW,3,0)),\"\")","v":""},{"$f":"IF(C23=\"\",\"\",IFERROR(VLOOKUP(B23,situation1!R:S,2,0),0))","v":""},"","",{"$f":"IFERROR(IF(VLOOKUP(B23,préattach!AT:AW,4,0)=\"\",\"\",VLOOKUP(B23,préattach!AT:AW,4,0)),\"\")","v":""},"","","",""]
["",0,{"$f":"IFERROR(IF(VLOOKUP(B24,préattach!AT:AW,2,0)=0,\"\",VLOOKUP(B24,préattach!AT:AW,2,0)),\"\")","v":""},{"$f":"IFERROR(IF(VLOOKUP(B24,préattach!AT:AW,3,0)=0,\"\",VLOOKUP(B24,préattach!AT:AW,3,0)),\"\")","v":""},{"$f":"IF(C24=\"\",\"\",IFERROR(VLOOKUP(B24,situation1!R:S,2,0),0))","v":""},"","",{"$f":"IFERROR(IF(VLOOKUP(B24,préattach!AT:AW,4,0)=\"\",\"\",VLOOKUP(B24,préattach!AT:AW,4,0)),\"\")","v":""},"","","",""]
["",0,{"$f":"IFERROR(IF(VLOOKUP(B25,préattach!AT:AW,2,0)=0,\"\",VLOOKUP(B25,préattach!AT:AW,2,0)),\"\")","v":""},{"$f":"IFERROR(IF(VLOOKUP(B25,préattach!AT:AW,3,0)=0,\"\",VLOOKUP(B25,préattach!AT:AW,3,0)),\"\")","v":""},{"$f":"IF(C25=\"\",\"\",IFERROR(VLOOKUP(B25,situation1!R:S,2,0),0))","v":""},"","",{"$f":"IFERROR(IF(VLOOKUP(B25,préattach!AT:AW,4,0)=\"\",\"\",VLOOKUP(B25,préattach!AT:AW,4,0)),\"\")","v":""},"","","",""]
[null,0,{"$f":"IFERROR(IF(VLOOKUP(B26,préattach!AT:AW,2,0)=0,\"\",VLOOKUP(B26,préattach!AT:AW,2,0)),\"\")","v":""},{"$f":"IFERROR(IF(VLOOKUP(B26,préattach!AT:AW,3,0)=0,\"\",VLOOKUP(B26,préattach!AT:AW,3,0)),\"\")","v":""},{"$f":"IF(C26=\"\",\"\",IFERROR(VLOOKUP(B26,situation1!R:S,2,0),0))","v":""},"","",{"$f":"IFERROR(IF(VLOOKUP(B26,préattach!AT:AW,4,0)=\"\",\"\",VLOOKUP(B26,préattach!AT:AW,4,0)),\"\")","v":""},"","","",""]
[null,0,{"$f":"IFERROR(IF(VLOOKUP(B27,préattach!AT:AW,2,0)=0,\"\",VLOOKUP(B27,préattach!AT:AW,2,0)),\"\")","v":""},{"$f":"IFERROR(IF(VLOOKUP(B27,préattach!AT:AW,3,0)=0,\"\",VLOOKUP(B27,préattach!AT:AW,3,0)),\"\")","v":""},{"$f":"IF(C27=\"\",\"\",IFERROR(VLOOKUP(B27,situation1!R:S,2,0),0))","v":""},"","",{"$f":"IFERROR(IF(VLOOKUP(B27,préattach!AT:AW,4,0)=\"\",\"\",VLOOKUP(B27,préattach!AT:AW,4,0)),\"\")","v":""},"","","",""]
[null,0,{"$f":"IFERROR(IF(VLOOKUP(B28,préattach!AT:AW,2,0)=0,\"\",VLOOKUP(B28,préattach!AT:AW,2,0)),\"\")","v":""},{"$f":"IFERROR(IF(VLOOKUP(B28,préattach!AT:AW,3,0)=0,\"\",VLOOKUP(B28,préattach!AT:AW,3,0)),\"\")","v":""},{"$f":"IF(C28=\"\",\"\",IFERROR(VLOOKUP(B28,situation1!R:S,2,0),0))","v":""},"","",{"$f":"IFERROR(IF(VLOOKUP(B28,préattach!AT:AW,4,0)=\"\",\"\",VLOOKUP(B28,préattach!AT:AW,4,0)),\"\")","v":""},"","","",""]
[null,null,null,{"$f":"IFERROR(IF(VLOOKUP(B29,préattach!AT:AW,3,0)=0,\"\",VLOOKUP(B29,préattach!AT:AW,3,0)),\"\")","v":""},{"$f":"IF(C29=\"\",\"\",IFERROR(VLOOKUP(B29,situation1!R:S,2,0),0))","v":""},"","",{"$f":"IFERROR(IF(VLOOKUP(B29,préattach!AT:AW,4,0)=\"\",\"\",VLOOKUP(B29,préattach!AT:AW,4,0)),\"\")","v":""},"","","",""]
[null,null,null,{"$f":"IFERROR(IF(VLOOKUP(B30,préattach!AT:AW,3,0)=0,\"\",VLOOKUP(B30,préattach!AT:AW,3,0)),\"\")","v":""},{"$f":"IF(C30=\"\",\"\",IFERROR(VLOOKUP(B30,situation1!R:S,2,0),0))","v":""},"","",{"$f":"IFERROR(IF(VLOOKUP(B30,préattach!AT:AW,4,0)=\"\",\"\",VLOOKUP(B30,préattach!AT:AW,4,0)),\"\")","v":""},"","","",""]
[null,null,null,{"$f":"IFERROR(IF(VLOOKUP(B31,préattach!AT:AW,3,0)=0,\"\",VLOOKUP(B31,préattach!AT:AW,3,0)),\"\")","v":""},{"$f":"IF(C31=\"\",\"\",IFERROR(VLOOKUP(B31,situation1!R:S,2,0),0))","v":""},"","",{"$f":"IFERROR(IF(VLOOKUP(B31,préattach!AT:AW,4,0)=\"\",\"\",VLOOKUP(B31,préattach!AT:AW,4,0)),\"\")","v":""},"","","",""]
[null,null,null,null,{"$f":"IF(C32=\"\",\"\",IFERROR(VLOOKUP(B32,situation1!R:S,2,0),0))","v":""},null,0,null,null,"",null,""]
[null,null,null,null,{"$f":"IF(C33=\"\",\"\",IFERROR(VLOOKUP(B33,situation1!R:S,2,0),0))","v":""},null,0,null,null,"",null,""]
[null,null,null,null,null,null,"TOTAL GENERAL EN HT ",null,{"$f":"SUM(I17:I33)","v":0},{"$f":"SUM(J17:J33)","v":0},0,{"$f":"IFERROR(K34+J34,\"\")","v":0}]
[null,null,null,null,null,null,"RABAIS 3%",null,{"$f":"I34*3%","v":0},{"$f":"J34*3%","v":0},0,0]
[null,null,null,null,null,null,"MONTANT APRES RABAIS",null,{"$f":"I34-I35","v":0},{"$f":"J34-J35","v":0},0,0]
[null,null,null,null,null,null,"T.V.A 19 %",null,{"$f":"I36*19%","v":0},{"$f":"J36*19%","v":0},{"$f":"K36*19%","v":0},0]
[null,null,null,null,null,null,"TOTAL /TTC",null,{"$f":"I36+I37","v":0},{"$f":"J36+J37","v":0},0,0]
["Arrêté le montant de la présente decompte  à la somme de : "]
[]
[]
["Entreprise ",null,null,null,null,null,null,null,"Sous traitant "]

{"sheet":"situation3","index":12,"n_rows":42,"n_cols":12,"rows_kept":42,"cut":false,"hidden":true,"merged":[[11,0,11,11],[5,0,5,11],[6,0,6,11],[7,0,7,11],[8,0,8,11],[9,0,9,11],[10,0,10,11],[0,0,0,7],[1,0,1,11],[2,0,2,11],[4,0,4,11],[3,0,3,11],[14,0,15,0],[14,1,15,1],[14,3,14,6],[14,8,14,11],[14,7,15,7],[14,2,15,2]]}
[{"$f":"situation1!A1","v":"                                         REPUBLIQUE ALGERIENNE DEMOCRATIQUE ET POPULAIRE"}]
[{"$f":"situation1!A2","v":"                                                        WILAYA DE NAAMA"}]
[{"$f":"'attachement n°1'!A3","v":"                               DIRECTION DES EQUIPEMENTS PUBLICS NAAMA "}]
[{"$f":"'attachement n°1'!A4","v":"                ENTREPRISE (raison sociale et adresse) :  MOHAMMED TALHA"}]
[{"$f":"'attachement n°1'!A5","v":"                HAI BELKHADEM RAMDAN MRCHERIA  WILAYA DE NAAMA"}]
[{"$f":"'attachement n°1'!A6","v":"                Opération : Aménagement des établissements scolaires du cycle secondaire  à travers la wilaya   \n"}]
[{"$f":"'attachement n°1'!A7","v":"                Lot09 : Travaux d’aménagement et de réhabilitions au lycée IMAM MALEK à AIN SEFRA\n \n                                                            \n"}]
[{"$f":"'attachement n°1'!A8","v":"                Montant du marche en chiffre :5 186 466,25 DA"}]
[{"$f":"'attachement n°1'!A9","v":"                CODE FISCALE : 1234567891011"}]
[{"$f":"'attachement n°1'!A10","v":"                COMPTE :  00100 01010101010101  BNA. AGENCE : ALGER."}]
[{"$f":"'attachement n°1'!A11","v":"                N R C:16/00 000000A 00   En date du : 04/05/2014"}]
["                                                           DECOMPTE  PROVISOIRE DE LA  SITUATION N°03 ET DEFINITIF"]
[]
[]
["N","DESIGNATION","U","QUANTITE",null,null,null,"PRIX UNITAIRE","MONTANT"]
[null,null,null,"PREVU AU MARCHE","PRECEDENTE","MOIS","CUMULEE",null,"PREVU AU MARCHE","PRECEDENT","MOIS","CUMULE"]
[{"$f":"IF(Q2=0,\"\",Q2)","v":""},{"$f":"R2","v":0},{"$f":"IFERROR(IF(VLOOKUP(B17,préattach!AT:AW,2,0)=0,\"\",VLOOKUP(B17,préattach!AT:AW,2,0)),\"\")","v":""},{"$f":"IFERROR(IF(VLOOKUP(B17,préattach!AT:AW,3,0)=0,\"\",VLOOKUP(B17,préattach!AT:AW,3,0)),\"\")","v":""},{"$f":"IF(C17=\"\",\"\",IFERROR(VLOOKUP(B17,situation1!R:S,2,0),0)+IFERROR(VLOOKUP(B17,situation2!R:S,2,0),0))","v":""},{"$f":"IFERROR(VLOOKUP(B17,$R:$S,2,0),\"\")","v":""},{"$f":"IF(E17=\"\",F17,F17+E17)","v":""},{"$f":"IFERROR(IF(VLOOKUP(B17,préattach!AT:AW,4,0)=\"\",\"\",VLOOKUP(B17,préattach!AT:AW,4,0)),\"\")","v":""},{"$f":"IFERROR(D17*H17,\"\")","v":""},{"$f":"IF(C17=\"\",\"\",IFERROR(E17*H17,0))","v":""},{"$f":"IFERROR(H17*F17,\"\")","v":""},{"$f":"IF(K17=\"\",\"\",K17)","v":""}]
["",0,{"$f":"IFERROR(IF(VLOOKUP(B18,préattach!AT:AW,2,0)=0,\"\",VLOOKUP(B18,préattach!AT:AW,2,0)),\"\")","v":""},{"$f":"IFERROR(IF(VLOOKUP(B18,préattach!AT:AW,3,0)=0,\"\",VLOOKUP(B18,préattach!AT:AW,3,0)),\"\")","v":""},{"$f":"IF(C18=\"\",\"\",IFERROR(VLOOKUP(B18,situation1!R:S,2,0),0)+IFERROR(VLOOKUP(B18,situation2!R:S,2,0),0))","v":""},{"$f":"IFERROR(VLOOKUP(B18,$R:$S,2,0),\"\")","v":""},{"$f":"IF(E18=\"\",F18,F18+E18)","v":""},{"$f":"IFERROR(IF(VLOOKUP(B18,préattach!AT:AW,4,0)=\"\",\"\",VLOOKUP(B18,préattach!AT:AW,4,0)),\"\")","v":""},{"$f":"IFERROR(D18*H18,\"\")","v":""},{"$f":"IF(C18=\"\",\"\",IFERROR(E18*H18,0))","v":""},{"$f":"IFERROR(H18*F18,\"\")","v":""},{"$f":"IFERROR(K18+J18,\"\")","v":""}]
["",0,{"$f":"IFERROR(IF(VLOOKUP(B19,préattach!AT:AW,2,0)=0,\"\",VLOOKUP(B19,préattach!AT:AW,2,0)),\"\")","v":""},{"$f":"IFERROR(IF(VLOOKUP(B19,préattach!AT:AW,3,0)=0,\"\",VLOOKUP(B19,préattach!AT:AW,3,0)),\"\")","v":""},{"$f":"IF(C19=\"\",\"\",IFERROR(VLOOKUP(B19,situation1!R:S,2,0),0)+IFERROR(VLOOKUP(B19,situation2!R:S,2,0),0))","v":""},"",{"$f":"IF(E19=\"\",F19,F19+E19)","v":""},{"$f":"IFERROR(IF(VLOOKUP(B19,préattach!AT:AW,4,0)=\"\",\"\",VLOOKUP(B19,préattach!AT:AW,4,0)),\"\")","v":""},"","","",{"$f":"IFERROR(K19+J19,\"\")","v":""}]
["",0,{"$f":"IFERROR(IF(VLOOKUP(B20,préattach!AT:AW,2,0)=0,\"\",VLOOKUP(B20,préattach!AT:AW,2,0)),\"\")","v":""},{"$f":"IFERROR(IF(VLOOKUP(B20,préattach!AT:AW,3,0)=0,\"\",VLOOKUP(B20,préattach!AT:AW,3,0)),\"\")","v":""},{"$f":"IF(C20=\"\",\"\",IFERROR(VLOOKUP(B20,situation1!R:S,2,0),0)+IFERROR(VLOOKUP(B20,situation2!R:S,2,0),0))","v":""},"","",{"$f":"IFERROR(IF(VLOOKUP(B20,préattach!AT:AW,4,0)=\"\",\"\",VLOOKUP(B20,préattach!AT:AW,4,0)),\"\")","v":""},"","","",""]
["",0,{"$f":"IFERROR(IF(VLOOKUP(B21,préattach!AT:AW,2,0)=0,\"\",VLOOKUP(B21,préattach!AT:AW,2,0)),\"\")","v":""},{"$f":"IFERROR(IF(VLOOKUP(B21,préattach!AT:AW,3,0)=0,\"\",VLOOKUP(B21,préattach!AT:AW,3,0)),\"\")","v":""},{"$f":"IF(C21=\"\",\"\",IFERROR(VLOOKUP(B21,situation1!R:S,2,0),0)+IFERROR(VLOOKUP(B21,situation2!R:S,2,0),0))","v":""},"","",{"$f":"IFERROR(IF(VLOOKUP(B21,préattach!AT:AW,4,0)=\"\",\"\",VLOOKUP(B21,préattach!AT:AW,4,0)),\"\")","v":""},"","","",""]
["",0,{"$f":"IFERROR(IF(VLOOKUP(B22,préattach!AT:AW,2,0)=0,\"\",VLOOKUP(B22,préattach!AT:AW,2,0)),\"\")","v":""},{"$f":"IFERROR(IF(VLOOKUP(B22,préattach!AT:AW,3,0)=0,\"\",VLOOKUP(B22,préattach!AT:AW,3,0)),\"\")","v":""},{"$f":"IF(C22=\"\",\"\",IFERROR(VLOOKUP(B22,situation1!R:S,2,0),0)+IFERROR(VLOOKUP(B22,situation2!R:S,2,0),0))","v":""},"","",{"$f":"IFERROR(IF(VLOOKUP(B22,préattach!AT:AW,4,0)=\"\",\"\",VLOOKUP(B22,préattach!AT:AW,4,0)),\"\")","v":""},"","","",""]
["",0,{"$f":"IFERROR(IF(VLOOKUP(B23,préattach!AT:AW,2,0)=0,\"\",VLOOKUP(B23,préattach!AT:AW,2,0)),\"\")","v":""},{"$f":"IFERROR(IF(VLOOKUP(B23,préattach!AT:AW,3,0)=0,\"\",VLOOKUP(B23,préattach!AT:AW,3,0)),\"\")","v":""},{"$f":"IF(C23=\"\",\"\",IFERROR(VLOOKUP(B23,situation1!R:S,2,0),0)+IFERROR(VLOOKUP(B23,situation2!R:S,2,0),0))","v":""},"","",{"$f":"IFERROR(IF(VLOOKUP(B23,préattach!AT:AW,4,0)=\"\",\"\",VLOOKUP(B23,préattach!AT:AW,4,0)),\"\")","v":""},"","","",""]
["",0,{"$f":"IFERROR(IF(VLOOKUP(B24,préattach!AT:AW,2,0)=0,\"\",VLOOKUP(B24,préattach!AT:AW,2,0)),\"\")","v":""},{"$f":"IFERROR(IF(VLOOKUP(B24,préattach!AT:AW,3,0)=0,\"\",VLOOKUP(B24,préattach!AT:AW,3,0)),\"\")","v":""},{"$f":"IF(C24=\"\",\"\",IFERROR(VLOOKUP(B24,situation1!R:S,2,0),0)+IFERROR(VLOOKUP(B24,situation2!R:S,2,0),0))","v":""},"","",{"$f":"IFERROR(IF(VLOOKUP(B24,préattach!AT:AW,4,0)=\"\",\"\",VLOOKUP(B24,préattach!AT:AW,4,0)),\"\")","v":""},"","","",""]
["",0,{"$f":"IFERROR(IF(VLOOKUP(B25,préattach!AT:AW,2,0)=0,\"\",VLOOKUP(B25,préattach!AT:AW,2,0)),\"\")","v":""},{"$f":"IFERROR(IF(VLOOKUP(B25,préattach!AT:AW,3,0)=0,\"\",VLOOKUP(B25,préattach!AT:AW,3,0)),\"\")","v":""},{"$f":"IF(C25=\"\",\"\",IFERROR(VLOOKUP(B25,situation1!R:S,2,0),0)+IFERROR(VLOOKUP(B25,situation2!R:S,2,0),0))","v":""},"","",{"$f":"IFERROR(IF(VLOOKUP(B25,préattach!AT:AW,4,0)=\"\",\"\",VLOOKUP(B25,préattach!AT:AW,4,0)),\"\")","v":""},"","","",""]
[null,0,{"$f":"IFERROR(IF(VLOOKUP(B26,préattach!AT:AW,2,0)=0,\"\",VLOOKUP(B26,préattach!AT:AW,2,0)),\"\")","v":""},{"$f":"IFERROR(IF(VLOOKUP(B26,préattach!AT:AW,3,0)=0,\"\",VLOOKUP(B26,préattach!AT:AW,3,0)),\"\")","v":""},{"$f":"IF(C26=\"\",\"\",IFERROR(VLOOKUP(B26,situation1!R:S,2,0),0)+IFERROR(VLOOKUP(B26,situation2!R:S,2,0),0))","v":""},"","",{"$f":"IFERROR(IF(VLOOKUP(B26,préattach!AT:AW,4,0)=\"\",\"\",VLOOKUP(B26,préattach!AT:AW,4,0)),\"\")","v":""},"","","",""]
[null,0,{"$f":"IFERROR(IF(VLOOKUP(B27,préattach!AT:AW,2,0)=0,\"\",VLOOKUP(B27,préattach!AT:AW,2,0)),\"\")","v":""},{"$f":"IFERROR(IF(VLOOKUP(B27,préattach!AT:AW,3,0)=0,\"\",VLOOKUP(B27,préattach!AT:AW,3,0)),\"\")","v":""},{"$f":"IF(C27=\"\",\"\",IFERROR(VLOOKUP(B27,situation1!R:S,2,0),0)+IFERROR(VLOOKUP(B27,situation2!R:S,2,0),0))","v":""},"","",{"$f":"IFERROR(IF(VLOOKUP(B27,préattach!AT:AW,4,0)=\"\",\"\",VLOOKUP(B27,préattach!AT:AW,4,0)),\"\")","v":""},"","","",""]
[null,0,{"$f":"IFERROR(IF(VLOOKUP(B28,préattach!AT:AW,2,0)=0,\"\",VLOOKUP(B28,préattach!AT:AW,2,0)),\"\")","v":""},{"$f":"IFERROR(IF(VLOOKUP(B28,préattach!AT:AW,3,0)=0,\"\",VLOOKUP(B28,préattach!AT:AW,3,0)),\"\")","v":""},{"$f":"IF(C28=\"\",\"\",IFERROR(VLOOKUP(B28,situation1!R:S,2,0),0)+IFERROR(VLOOKUP(B28,situation2!R:S,2,0),0))","v":""},"","",{"$f":"IFERROR(IF(VLOOKUP(B28,préattach!AT:AW,4,0)=\"\",\"\",VLOOKUP(B28,préattach!AT:AW,4,0)),\"\")","v":""},"","","",""]
[null,null,null,{"$f":"IFERROR(IF(VLOOKUP(B29,préattach!AT:AW,3,0)=0,\"\",VLOOKUP(B29,préattach!AT:AW,3,0)),\"\")","v":""},{"$f":"IF(C29=\"\",\"\",IFERROR(VLOOKUP(B29,situation1!R:S,2,0),0)+IFERROR(VLOOKUP(B29,situation2!R:S,2,0),0))","v":""},"","",{"$f":"IFERROR(IF(VLOOKUP(B29,préattach!AT:AW,4,0)=\"\",\"\",VLOOKUP(B29,préattach!AT:AW,4,0)),\"\")","v":""},"","","",""]
[null,null,null,{"$f":"IFERROR(IF(VLOOKUP(B30,préattach!AT:AW,3,0)=0,\"\",VLOOKUP(B30,préattach!AT:AW,3,0)),\"\")","v":""},{"$f":"IF(C30=\"\",\"\",IFERROR(VLOOKUP(B30,situation1!R:S,2,0),0)+IFERROR(VLOOKUP(B30,situation2!R:S,2,0),0))","v":""},"","",{"$f":"IFERROR(IF(VLOOKUP(B30,préattach!AT:AW,4,0)=\"\",\"\",VLOOKUP(B30,préattach!AT:AW,4,0)),\"\")","v":""},"","","",""]
[null,null,null,{"$f":"IFERROR(IF(VLOOKUP(B31,préattach!AT:AW,3,0)=0,\"\",VLOOKUP(B31,préattach!AT:AW,3,0)),\"\")","v":""},{"$f":"IF(C31=\"\",\"\",IFERROR(VLOOKUP(B31,situation1!R:S,2,0),0)+IFERROR(VLOOKUP(B31,situation2!R:S,2,0),0))","v":""},"","",{"$f":"IFERROR(IF(VLOOKUP(B31,préattach!AT:AW,4,0)=\"\",\"\",VLOOKUP(B31,préattach!AT:AW,4,0)),\"\")","v":""},"","","",""]
[null,null,null,null,{"$f":"IF(C32=\"\",\"\",IFERROR(VLOOKUP(B32,situation1!R:S,2,0),0)+IFERROR(VLOOKUP(B32,situation2!R:S,2,0),0))","v":""},null,0,null,null,"",null,""]
[null,null,null,null,{"$f":"IF(C33=\"\",\"\",IFERROR(VLOOKUP(B33,situation1!R:S,2,0),0)+IFERROR(VLOOKUP(B33,situation2!R:S,2,0),0))","v":""},null,0,null,null,"",null,""]
[null,null,null,null,null,null,"TOTAL GENERAL EN HT ",null,{"$f":"SUM(I17:I33)","v":0},{"$f":"SUM(J17:J33)","v":0},0,{"$f":"IFERROR(K34+J34,\"\")","v":0}]
[null,null,null,null,null,null,"RABAIS 3%",null,{"$f":"I34*3%","v":0},{"$f":"J34*3%","v":0},0,0]
[null,null,null,null,null,null,"MONTANT APRES RABAIS",null,{"$f":"I34-I35","v":0},{"$f":"J34-J35","v":0},0,0]
[null,null,null,null,null,null,"T.V.A 19 %",null,{"$f":"I36*19%","v":0},{"$f":"J36*19%","v":0},{"$f":"K36*19%","v":0},0]
[null,null,null,null,null,null,"TOTAL /TTC",null,{"$f":"I36+I37","v":0},{"$f":"J36+J37","v":0},0,0]
["Arrêté le montant de la présente decompte  à la somme de : "]
[]
[]
["Entreprise ",null,null,null,null,null,null,null,"Sous traitant "]

{"sheet":"situation4","index":13,"n_rows":14,"n_cols":1,"rows_kept":14,"cut":false,"hidden":true,"merged":[]}
[]
["REPUBLIQUE ALGERIENNE DEMOCRATIQUE ET POPULAIRE"]
["WILAYA DE NAAMA"]
["DIRECTION DES EQUIPEMENTS PUBLICS NAAMA "]
["ENTREPRISE (raison sociale et adresse) :  BOUZID ZOUBEYR"]
["HAI BELKHADEM RAMDAN MRCHERIA  WILAYA DE NAAMA"]
["Opération : Aménagement des établissements scolaires du cycle secondaire  à travers la wilaya   \n"]
["Lot09 : Travaux d’aménagement et de réhabilitions au lycée IMAM MALEK à AIN SEFRA\n \n                                                            \n"]
["Montant du marche en chiffre :5 186 466,25 DA"]
["CODE FISCALE : 198345020059917"]
["COMPTE :  00100 725 0300 001048 35  BNA. AGENCE : MECHERIA."]
["N R C:45/00 4125023A 14   En date du : 04/05/2014"]
[]
["                                        DECOMPTE  PROVISOIRE DE LA  SITUATION N°01 ET DEFINITIF"]

{"sheet":"inf","index":14,"n_rows":13,"n_cols":1,"rows_kept":13,"cut":false,"hidden":false,"merged":[]}
["REPUBLIQUE ALGERIENNE DEMOCRATIQUE ET POPULAIRE"]
["                                                        WILAYA DE NAAMA"]
["                               DIRECTION DES EQUIPEMENTS PUBLICS NAAMA "]
["ENTREPRISE (raison sociale et adresse) :  MOHAMMED TALHA"]
["HAI BELKHADEM RAMDAN MRCHERIA  WILAYA DE NAAMA"]
["Opération : Aménagement des établissements scolaires du cycle secondaire  à travers la wilaya   \n"]
["Lot09 : Travaux d’aménagement et de réhabilitions au lycée IMAM MALEK à AIN SEFRA\n \n                                                            \n"]
["Montant du marche en chiffre :5 186 466,25 DA"]
["CODE FISCALE : 1234567891011"]
["COMPTE :  00100 01010101010101  BNA. AGENCE : ALGER."]
["N R C:16/00 000000A 00   En date du : 04/05/2014"]
[]
["                                        DECOMPTE  PROVISOIRE DE LA  SITUATION N°01 ET DEFINITIF"]